{"text_format":"1","workbook":"xlsx","n_sheets":11,"sheets":["Hoofdmenu","Toelichting","NAW_gegevens","Voorblad","Kostenverzamelstaat","Specifieke informatie A","Specifieke informatie C","Contractinformatie","Controleoverzicht","Blad1","Parameters"],"not_rendered":{"charts":0,"images":1,"macros":1,"external_links":1,"defined_names":110,"comments":0,"pivot_tables":0},"unopened":[],"bounds":{"document_bytes":16777216,"sheet_cells":100000,"rows_first":2000,"rows_last":500,"rows_between":2000,"halvings":0,"cell_chars":16384,"cell_head_chars":4096},"cells_cut":0,"cells_raw":0,"read":"whole","date_system":"1900"}

{"sheet":"Hoofdmenu","index":0,"n_rows":3,"n_cols":2,"rows_kept":3,"cut":false,"hidden":false,"merged":[[0,0,0,1],[1,0,1,1]]}
["HOOFDMENU"]
[{"$f":"CONCATENATE(\"JAARSTAAT ZVW \",jaar_id)","v":"JAARSTAAT ZVW 2018"}]
["Navigatie","Afdrukken"]

{"sheet":"Toelichting","index":1,"n_rows":3,"n_cols":2,"rows_kept":3,"cut":false,"hidden":false,"merged":[]}
[]
[]
[null,{"$f":"CONCATENATE(\" JAARSTAAT ZVW \",jaar_id,\" (VERSIE: \",document_id,\")\")","v":" JAARSTAAT ZVW 2018 (VERSIE: JS2018ZVW.A)"}]

{"sheet":"NAW_gegevens","index":2,"n_rows":43,"n_cols":5,"rows_kept":43,"cut":false,"hidden":false,"merged":[[2,0,2,1],[3,0,3,1]]}
[]
[]
["NAW-GEGEVENS"]
["JAARSTAAT ZVW 2018"]
[" Selecteer uw nummer:>","0000 KIES UW UZOVI-NUMMER"]
[" Uzovi-nummer:",{"$f":"MID(keuze_uzovi_nummer,1,4)","v":"0000"}]
[" Verzekeraar:"]
[" Plaats:"]
[" Contactpersoon:"]
[" Telefoonnummer:"]
[" E-mail:"]
[]
[]
["Let op dat u het goede UZOVI-nummer invult, zie onderstaand overzicht:"]
[]
["UZOVI","NAAM",null,null,"PLAATS"]
["0101","N.V. UNIVÉ ZORG",null,null,"ARNHEM"]
["0104","CENTRALE ZIEKTEKOSTENVERZEKERING NZV N.V.",null,null,"TILBURG"]
["0201","OHRA ZIEKTEKOSTENVERZEKERINGEN N.V. ",null,null,"TILBURG"]
["0403","ASR BASIS ZIEKTEKOSTENVERZEKERINGEN N.V.",null,null,"AMERSFOORT"]
["0420","ZORGVERZEKERAAR CARES GOUDA  N.V.",null,null,"ARNHEM"]
["0699","IZA ZORGVERZEKERAAR N.V.",null,null,"ARNHEM"]
["0736","N.V. ZORGVERZEKERAAR UMC",null,null,"ARNHEM"]
["3311","ZILVEREN KRUIS ACHMEA ZORGVERZEKERINGEN N.V.",null,null,"AMSTERDAM"]
["3313","INTERPOLIS ZORGVERZEKERINGEN N.V.",null,null,"AMSTERDAM"]
["3314","OZF ACHMEA ZORGVERZEKERINGEN N.V. ",null,null,"HENGELO"]
[3329,"AVÉRO ACHMEA ZORGVERZEKERINGEN N.V.",null,null,"AMSTERDAM"]
[3332,"MENZIS ZORGVERZEKERAAR NV",null,null,"WAGENINGEN"]
[3333,"ANDERZORG NV",null,null,"WAGENINGEN"]
[3337,"AGIS ZORGVERZEKERINGEN N.V.",null,null,"AMERSFOORT"]
[3343,"ONVZ ZIEKTEKOSTENVERZEKERAAR N.V.",null,null,"HOUTEN"]
[3351,"FBTO ZORGVERZEKERINGEN N.V.",null,null,"LEEUWARDEN"]
[3352,"IPTIQ LIFE S.A.",null,null,"AMSTELVEEN"]
["7029","OWM ZORGVERZEKERAAR 'DSW' U.A.",null,null,"SCHIEDAM"]
["7032","ENO ZORGVERZEKERAAR N.V.",null,null,"DEVENTER"]
["7037","STAD HOLLAND ZORGVERZEKERAAR OWM U.A.",null,null,"SCHIEDAM"]
["7053","OHRA ZORGVERZEKERINGEN  N.V.",null,null,"TILBURG"]
["7054","AZIVO ZORGVERZEKERAAR N.V.",null,null,"WAGENINGEN"]
["7084","DE FRIESLAND ZORGVERZEKERAAR N.V.",null,null,"LEEUWARDEN"]
["7085","OWM ZORGVERZEKERAAR ZORG EN ZEKERHEID U.A.",null,null,"LEIDEN"]
["7095","VGZ ZORGVERZEKERAAR N.V.",null,null,"ARNHEM"]
["7119","OWM CENTRALE ZORGVERZEKERAARS GROEP ZORGVERZEKERAAR UA",null,null,"TILBURG"]
["9015","VGZ VOOR DE ZORG N.V.",null,null,"ARNHEM"]

{"sheet":"Voorblad","index":3,"n_rows":35,"n_cols":4,"rows_kept":35,"cut":false,"hidden":false,"merged":[[13,3,14,11],[15,3,16,11],[19,3,20,11],[21,3,22,11]]}
[null,null,"VOORBLAD"]
[]
[]
[]
[]
["Pagina 1"]
[]
[]
[]
[]
[]
[]
[]
[]
[]
[null,null,null,{"$f":"CONCATENATE(\"JAARSTAAT ZVW \",jaar_id)","v":"JAARSTAAT ZVW 2018"}]
[]
[]
[]
[null,null,null,"SPECIFIEKE INFORMATIE"]
[]
[]
[]
[null,null,null,"  SPECIFIEKE INFORMATIE A (met accountantsverklaring)"]
[null,null,null,"     ● Kostenverzamelstaat (pagina 1 t/m 3)"]
[null,null,null,"     ● Specificatie informatie risicoverevening (pagina 1 t/m 3)"]
[null,null,null,"     ● Overige specificaties (pagina 3)"]
[]
[null,null,null,"  SPECIFIEKE INFORMATIE C (beleidsinformatie zonder accountantsverklaring)"]
[null,null,null,"     ● Specificaties van kosten en productie (pagina 1 t/m 12)"]
[null,null,null,"     ● Informatie t.b.v. afrekeningen met het buitenland (pagina 12 t/m 14)"]
[]
[null,null,null,"  CONTRACTINFORMATIE (pagina 1 t/m 2)"]
[]
[null,null,null,"  CONTROLEOVERZICHT (pagina 1 t/m 5)"]

{"sheet":"Kostenverzamelstaat","index":4,"n_rows":119,"n_cols":13,"rows_kept":119,"cut":false,"hidden":false,"merged":[[77,3,77,4],[118,3,118,4],[115,3,115,6],[111,3,112,6],[114,3,114,6],[113,3,113,6],[84,3,87,6],[88,3,88,7],[109,3,109,7],[111,7,112,7],[86,7,87,7],[94,3,94,7],[84,12,85,12],[111,12,112,12],[86,12,87,12],[86,10,87,10],[84,10,85,11],[86,8,87,8],[84,8,85,9],[86,9,87,9],[86,11,87,11],[111,11,112,11],[111,10,112,10],[111,8,112,8],[111,9,112,9],[67,3,67,6],[71,3,71,6],[69,3,69,6],[66,3,66,6],[57,3,57,6],[59,3,59,6],[63,3,63,6],[64,3,64,6],[70,3,70,6],[50,3,50,7],[61,3,61,6],[62,3,62,6],[60,3,60,6],[39,3,39,4],[48,7,49,7],[51,3,51,6],[55,3,55,6],[56,3,56,6],[10,12,11,12],[10,8,11,9],[10,10,11,11],[12,11,13,11],[12,12,13,12],[12,10,13,10],[12,9,13,9],[12,8,13,8],[46,12,47,12],[46,8,47,9],[46,10,47,11],[21,3,21,6],[20,3,20,6],[46,3,49,6],[48,12,49,12],[48,11,49,11],[12,7,13,7],[10,3,13,6],[19,3,19,6],[22,3,22,6],[48,10,49,10],[48,8,49,8],[48,9,49,9]]}
[null,null,"INVULSPECIFICATIES SPECIFIEKE INFORMATIE A"]
[]
[]
[]
[]
["Pagina 1",null,null,{"$f":"CONCATENATE(\"JAARSTAAT ZVW \", jaar_id)","v":"JAARSTAAT ZVW 2018"}]
[null,null,null,"KOSTENVERZAMELSTAAT (SPECIFIEKE INFORMATIE A)"]
[null,null,null,{"$f":"IF(naw_uzovi_zorgverzekeraar<>\"0000\",CONCATENATE(UPPER(naw_naam_zorgverzekeraar),\", \",UPPER(naw_plaats_zorgverzekeraar)),\"\")","v":""},null,null,null,null,null,null,null,null,{"$f":"CONCATENATE(\"UZOVI: \",naw_uzovi_zorgverzekeraar)","v":"UZOVI: 0000"}]
[null,null,null,"SPECIFICATIES INFORMATIE RISICOVEREVENING"]
[null,null,null,"KOSTENVERZAMELSTAAT"]
[null,null,null," KOSTENRUBRIEK",null,null,null,null,{"$f":"CONCATENATE(\"LASTEN \",jaar_id,)","v":"LASTEN 2018"},null,{"$f":"CONCATENATE(\"LASTEN \",jaar_id-1,)","v":"LASTEN 2017"},null,{"$f":"CONCATENATE(\"LASTEN \",jaar_id-2,\" \nEN OUDER\")","v":"LASTEN 2016 \nEN OUDER"}]
[]
[null,null,null,null,null,null,null,"Code","Lasten 2018 inclusief balanspost ","Ontvangen en geaccepteerde declaraties m.b.t. 2018","Lasten 2017 inclusief balanspost","Ontvangen en geaccepteerde declaraties m.b.t. 2017","Ontvangen en geaccepteerde declaraties m.b.t. 2016 en ouder"]
[null,null,null,null,null,null,null,null,null,"Ontvangen en geaccepteerde declaraties mbt jaar T","Lasten jaar T-1 inclusief balanspost","Ontvangen en geaccepteerde declaraties mbt jaar T-1","Ontvangen en geaccepteerde declaraties mbt jaar T-1"]
[null,null,null," 01  HUISARTSENZORG en MDZ"]
[null,null,null," Bijzondere betalingen",null,null,null,"503   "]
[null,null,null," Avond-, nacht- en weekenddiensten",null,null,null,"504   "]
[null,null,null," Inschrijftarieven",null,null,null,"505   "]
[null,null,null," Consulttarieven",null,null,null,"506   "]
[null,null,null," Overige tarieven",null,null,null,"507   "]
[null,null,null," Multidisciplinaire zorg",null,null,null,"510   "]
[null,null,null," Resultaatbeloning en zorgvernieuwing huisartsen",null,null,null,"515   "]
[null,null,null," Resultaatbeloning en zorgvernieuwing MDZ",null,null,null,"516   "]
[null,null,null," TOTAAL RUBRIEK 01",null,null,null,null,{"$f":"SUM(I16:I23)","v":0},{"$f":"SUM(J16:J23)","v":0},{"$f":"SUM(K16:K23)","v":0},{"$f":"SUM(L16:L23)","v":0},{"$f":"SUM(M16:M23)","v":0}]
[null,null,null," 02 FARMACEUTISCHE ZORG"]
[null,null,null," TOTAAL RUBRIEK 02",null,null,null,"520   "]
[null,null,null," 03 VERPLEGING EN VERZORGING"]
[null,null,null," Kosten van verpleging en verzorging ",null,null,null,"530   "]
[null,null,null," 04  MONDZORG"]
[null,null,null," Kosten mondzorg volwassen verzekerden",null,null,null,"560.1"]
[null,null,null," Kosten mondzorg jeugdige verzekerden",null,null,null,"560.2"]
[null,null,null," Kosten gebitsprothesen",null,null,null,"561   "]
[null,null,null," TOTAAL RUBRIEK 04",null,null,null,null,{"$f":"SUM(I30:I32)","v":0},{"$f":"SUM(J30:J32)","v":0},{"$f":"SUM(K30:K32)","v":0},{"$f":"SUM(L30:L32)","v":0},{"$f":"SUM(M30:M32)","v":0}]
[null,null,null," 05  VERLOSKUNDIGE ZORG"]
[null,null,null," Kosten verloskundige zorg door verloskundigen",null,null,null,"580   "]
[null,null,null," Kosten verloskundige zorg door huisartsen",null,null,null,"581   "]
[null,null,null," TOTAAL RUBRIEK 05",null,null,null,null,{"$f":"SUM(I35:I36)","v":0},{"$f":"SUM(J35:J36)","v":0},{"$f":"SUM(K35:K36)","v":0},{"$f":"SUM(L35:L36)","v":0},{"$f":"SUM(M35:M36)","v":0}]
[]
[]
[null,null,null,{"$f":"NOW()","v":"2019-02-05T13:41:52.070"},null,null,null,null,null,null,null,null,{"$f":"CONCATENATE(\"Kostenverzamelstaat, \",LOWER(A6))","v":"Kostenverzamelstaat, pagina 1"}]
[]
["Pagina 2",null,null,{"$f":"CONCATENATE(\"JAARSTAAT ZVW \", jaar_id)","v":"JAARSTAAT ZVW 2018"}]
[null,null,null,"KOSTENVERZAMELSTAAT (SPECIFIEKE INFORMATIE A)"]
[null,null,null,{"$f":"IF(naw_uzovi_zorgverzekeraar<>\"0000\",CONCATENATE(UPPER(naw_naam_zorgverzekeraar),\", \",UPPER(naw_plaats_zorgverzekeraar)),\"\")","v":""},null,null,null,null,null,null,null,null,{"$f":"CONCATENATE(\"UZOVI: \",naw_uzovi_zorgverzekeraar)","v":"UZOVI: 0000"}]
[null,null,null,"SPECIFICATIES INFORMATIE RISICOVEREVENING"]
[null,null,null,"KOSTENVERZAMELSTAAT - vervolg"]
[null,null,null," KOSTENRUBRIEK",null,null,null,null,{"$f":"CONCATENATE(\"LASTEN \",jaar_id,)","v":"LASTEN 2018"},null,{"$f":"CONCATENATE(\"LASTEN \",jaar_id-1,)","v":"LASTEN 2017"},null,{"$f":"CONCATENATE(\"LASTEN \",jaar_id-2,\" \nEN OUDER\")","v":"LASTEN 2016 \nEN OUDER"}]
[]
[null,null,null,null,null,null,null,"Code","Lasten 2018 inclusief balanspost ","Ontvangen en geaccepteerde declaraties m.b.t. 2018","Lasten 2017 inclusief balanspost","Ontvangen en geaccepteerde declaraties m.b.t. 2017","Ontvangen en geaccepteerde declaraties m.b.t. 2016 en ouder"]
[null,null,null,null,null,null,null,null,null,"Ontvangen en geaccepteerde declaraties mbt jaar T","Lasten jaar T-1 inclusief balanspost","Ontvangen en geaccepteerde declaraties mbt jaar T-1","Ontvangen en geaccepteerde declaraties mbt jaar T-1"]
[null,null,null," 06  MEDISCH SPECIALISTISCHE ZORG"]
[null,null,null," Kosten specialisten mondziekten en kaakchirurgie",null,null,null,"545   "]
[null,null,null," Overige kosten ziekenhuiszorg en curatieve zorg",null,null,null,"610   "]
[null,null,null," Overige zorgproducten ",null,null,null,"611   "]
[null,null,null," Kosten add-ons",null,null,null,"612   "]
[null,null,null," Integrale kosten DBC-zorgproduct gereguleerde \n segment ",null,null,null,"613.1"]
[null,null,null," Integrale kosten DBC-zorgproduct vrije segment ",null,null,null,"615.1"]
[null,null,null," Integrale kosten extramuraal werkende \n specialisten",null,null,null,"619   "]
[null,null,null," TOTAAL RUBRIEK 06",null,null,null,null,{"$f":"SUM(I52:I58)","v":0},{"$f":"SUM(J52:J58)","v":0},{"$f":"SUM(K52:K58)","v":0},{"$f":"SUM(L52:L58)","v":0},{"$f":"SUM(M52:M58)","v":0}]
[null,null,null," 07  PARAMEDISCHE ZORG"]
[null,null,null," Kosten fysiotherapie",null,null,null,"620   "]
[null,null,null," Kosten oefentherapie Mensendieck/Cesar",null,null,null,"621   "]
[null,null,null," Kosten logopedie",null,null,null,"623   "]
[null,null,null," Kosten ergotherapie",null,null,null,"624   "]
[null,null,null," Kosten dieetadvisering",null,null,null,"625   "]
[null,null,null," TOTAAL RUBRIEK 07",null,null,null,null,{"$f":"SUM(I61:I65)","v":0},{"$f":"SUM(J61:J65)","v":0},{"$f":"SUM(K61:K65)","v":0},{"$f":"SUM(L61:L65)","v":0},{"$f":"SUM(M61:M65)","v":0}]
[null,null,null," 08  HULPMIDDELENZORG"]
[null,null,null," TOTAAL RUBRIEK 08",null,null,null,"640   "]
[null,null,null," 09  ZIEKENVERVOER"]
[null,null,null," Kosten vervoer per ambulance/helikopter",null,null,null,"650   "]
[null,null,null," Opbrengstenverrekeningen regionale \n ambulancevoorzieningen ",null,null,null,"650.1"]
[null,null,null," Kosten vervoer per openbaar vervoer, taxi \n en eigen auto",null,null,null,"651   "]
[null,null,null," TOTAAL RUBRIEK 09",null,null,null,null,{"$f":"SUM(I70:I72)","v":0},{"$f":"SUM(J70:J72)","v":0},{"$f":"SUM(K70:K72)","v":0},{"$f":"SUM(L70:L72)","v":0},{"$f":"SUM(M70:M72)","v":0}]
[]
[]
[]
[]
[null,null,null,{"$f":"NOW()","v":"2019-02-05T13:41:52.070"},null,null,null,null,null,null,null,null,{"$f":"CONCATENATE(\"Kostenverzamelstaat, \",LOWER(A42))","v":"Kostenverzamelstaat, pagina 2"}]
[]
["Pagina 3",null,null,{"$f":"CONCATENATE(\"JAARSTAAT ZVW \", jaar_id)","v":"JAARSTAAT ZVW 2018"}]
[null,null,null,"KOSTENVERZAMELSTAAT (SPECIFIEKE INFORMATIE A)"]
[null,null,null,{"$f":"IF(naw_uzovi_zorgverzekeraar<>\"0000\",CONCATENATE(UPPER(naw_naam_zorgverzekeraar),\", \",UPPER(naw_plaats_zorgverzekeraar)),\"\")","v":""},null,null,null,null,null,null,null,null,{"$f":"CONCATENATE(\"UZOVI: \",naw_uzovi_zorgverzekeraar)","v":"UZOVI: 0000"}]
[null,null,null,"SPECIFICATIES INFORMATIE RISICOVEREVENING"]
[null,null,null,"KOSTENVERZAMELSTAAT - vervolg"]
[null,null,null," KOSTENRUBRIEK",null,null,null,null,{"$f":"CONCATENATE(\"LASTEN \",jaar_id,)","v":"LASTEN 2018"},null,{"$f":"CONCATENATE(\"LASTEN \",jaar_id-1,)","v":"LASTEN 2017"},null,{"$f":"CONCATENATE(\"LASTEN \",jaar_id-2,\" \nEN OUDER\")","v":"LASTEN 2016 \nEN OUDER"}]
[]
[null,null,null,null,null,null,null,"Code","Lasten 2018 inclusief balanspost ","Ontvangen en geaccepteerde declaraties m.b.t. 2018","Lasten 2017 inclusief balanspost","Ontvangen en geaccepteerde declaraties m.b.t. 2017","Ontvangen en geaccepteerde declaraties m.b.t. 2016 en ouder"]
[null,null,null,null,null,null,null,null,null,"Ontvangen en geaccepteerde declaraties mbt jaar T","Lasten jaar T-1 inclusief balanspost","Ontvangen en geaccepteerde declaraties mbt jaar T-1","Ontvangen en geaccepteerde declaraties mbt jaar T-1"]
[null,null,null," 10 GENEESKUNDIGE GEESTELIJKE   \n     GEZONDHEIDSZORG"]
[null,null,null," Kosten specialistische GGZ met verblijf",null,null,null,"661   "]
[null,null,null," Kosten LGGZ (langdurige GGZ, jaar 2 en 3)",null,null,null,"661.1"]
[null,null,null," Kosten specialistische GGZ zonder verblijf",null,null,null,"662   "]
[null,null,null," Generalistische basis GGZ",null,null,null,"665   "]
[null,null,null," TOTAAL RUBRIEK 10",null,null,null,null,{"$f":"SUM(I90:I93)","v":0},{"$f":"SUM(J90:J93)","v":0},{"$f":"SUM(K90:K93)","v":0},{"$f":"SUM(L90:L93)","v":0},{"$f":"SUM(M90:M93)","v":0}]
[null,null,null," 11 GERIATRISCHE REVALIDATIE EN \n     EERSTELIJNSVERBLIJF"]
[null,null,null," Geriatrische Revalidatie ",null,null,null,"670   "]
[null,null,null," Eerstelijnsverblijf ",null,null,null,"671   "]
[null,null,null," TOTAAL RUBRIEK 11",null,null,null,null,{"$f":"SUM(I96:I97)","v":0},{"$f":"SUM(J96:J97)","v":0},{"$f":"SUM(K96:K97)","v":0},{"$f":"SUM(L96:L97)","v":0},{"$f":"SUM(M96:M97)","v":0}]
[null,null,null," 12  KRAAMZORG"]
[null,null,null," TOTAAL RUBRIEK 12",null,null,null,"680   "]
[null,null,null," 13  DIVERSE OVERIGE KOSTEN"]
[null,null,null," Overige kosten",null,null,null,"700   "]
[null,null,null," Overige geneeskundige zorg",null,null,null,"701   "]
[null,null,null," Kosten van zorg zintuiglijk gehandicapten",null,null,null,"702   "]
[null,null,null," TOTAAL RUBRIEK 13",null,null,null,null,{"$f":"SUM(I102:I104)","v":0},{"$f":"SUM(J102:J104)","v":0},{"$f":"SUM(K102:K104)","v":0},{"$f":"SUM(L102:L104)","v":0},{"$f":"SUM(M102:M104)","v":0}]
[null,null,null," 15  GRENSOVERSCHRIJDENDE ZORG"]
[null,null,null," TOTAAL RUBRIEK 15",null,null,null,"720   "]
[null,null,null," 16  KWALITEITSGELDEN"]
[null,null,null," TOTAAL RUBRIEK 16",null,null,null,"730   "]
[null,null,null," TOTAAL LASTEN  (bruto-schade, definitie ZIN)",null,null,null,null,{"$f":"SUM(I24,I26,I28,I33,I37,I59,I66,I68,I73,I94,I98,I100,I105,I107,I109)","v":0},{"$f":"SUM(J24,J26,J28,J33,J37,J59,J66,J68,J73,J94,J98,J100,J105,J107,J109)","v":0},0,0,{"$f":"SUM(M24,M26,M28,M33,M37,M59,M66,M68,M73,M94,M98,M100,M105,M107,M109)","v":0}]
[]
[null,null,null," VERSCHIL POSTEN SCHADE DE NEDERLANDSCHE BANK",null,null,null,"Code","Lasten 2018 inclusief balanspost ","Ontvangen en geaccepteerde declaraties m.b.t. 2018","Lasten 2017 inclusief balanspost","Ontvangen en geaccepteerde declaraties m.b.t. 2017","Ontvangen en geaccepteerde declaraties m.b.t. 2016 en ouder"]
[null,null,null,null,null,null,null,null,null,"Ontvangen en geaccepteerde declaraties mbt jaar T","Lasten jaar T-1 inclusief balanspost","Ontvangen en geaccepteerde declaraties mbt jaar T-1","Ontvangen en geaccepteerde declaraties mbt jaar T-1"]
[null,null,null," OPBRENGSTEN VERHAAL",null,null,null,"890.1"]
[null,null,null," SCHADE T.L.V. HET VRIJWILLIG EIGEN RISICO",null,null,null,"910   "]
[null,null,null," SCHADE T.L.V. HET VERPLICHT EIGEN RISICO",null,null,null,"915   "]
[null,null,null," SCHADE-AFHANDELINGSKOSTEN",null,null,null,"920   "]
[null,null,null," NETTO PREMIEOPBRENGSTEN",null,null,null,"940   "]
[null,null,null,{"$f":"NOW()","v":"2019-02-05T13:41:52.070"},null,null,null,null,null,null,null,null,{"$f":"CONCATENATE(\"Kostenverzamelstaat, \",LOWER(A80))","v":"Kostenverzamelstaat, pagina 3"}]

{"sheet":"Specifieke informatie A","index":5,"n_rows":135,"n_cols":12,"rows_kept":135,"cut":false,"hidden":false,"merged":[[125,3,125,10],[98,9,99,10],[98,4,99,8],[100,9,100,10],[100,4,100,8],[101,4,101,8],[101,9,101,10],[102,4,102,8],[102,9,102,10],[103,4,103,8],[103,9,103,10],[104,4,104,8],[104,9,104,10],[105,4,105,8],[105,9,105,10],[106,4,106,8],[119,4,119,8],[119,9,119,10],[120,4,120,8],[120,9,120,10],[109,4,109,8],[109,9,109,10],[115,4,115,8],[115,9,115,10],[57,3,57,9],[58,3,58,9],[60,3,60,9],[63,3,64,9],[63,10,64,10],[63,11,64,11],[53,3,54,9],[53,10,54,10],[53,11,54,11],[55,3,55,9],[56,3,56,9],[106,9,106,10],[107,4,107,8],[90,3,90,4],[118,4,118,8],[118,9,118,10],[59,3,59,9],[70,3,70,9],[65,3,65,9],[66,3,66,9],[67,3,67,9],[68,3,68,9],[69,3,69,9],[71,3,71,9],[107,9,107,10],[112,9,112,10],[113,4,113,8],[113,9,113,10],[114,4,114,8],[114,9,114,10],[11,11,12,11],[13,3,13,9],[16,3,16,9],[11,10,12,10],[11,3,12,9],[14,3,14,9],[15,3,15,9],[17,3,17,9],[21,10,22,10],[21,3,22,9],[18,3,18,9],[23,3,23,9],[25,11,26,11],[25,3,26,9],[25,10,26,10],[21,11,22,11],[33,5,33,9],[32,5,32,9],[30,10,31,10],[45,3,45,4],[34,5,34,9],[32,3,34,4],[30,3,31,9],[30,11,31,11],[35,3,35,9],[27,3,27,9],[36,3,36,9],[98,11,99,11],[134,3,134,4],[98,3,99,3],[116,4,116,8],[116,9,116,10],[117,4,117,8],[117,9,117,10],[110,4,110,8],[110,9,110,10],[111,4,111,8],[111,9,111,10],[112,4,112,8],[129,3,129,10],[130,3,130,10],[122,4,122,8],[122,9,122,10],[123,4,123,8],[123,9,123,10],[124,4,124,8],[124,9,124,10],[121,4,121,8],[121,9,121,10],[108,4,108,8],[108,9,108,10]]}
[null,null,"INVULSPECIFICATIES SPECIFIEKE INFORMATIE A"]
[]
[]
[]
[]
["Pagina 1",null,null,{"$f":"CONCATENATE(\"JAARSTAAT ZVW \", jaar_id)","v":"JAARSTAAT ZVW 2018"}]
[null,null,null,"SPECIFIEKE INFORMATIE A"]
[null,null,null,{"$f":"IF(naw_uzovi_zorgverzekeraar<>\"0000\",CONCATENATE(UPPER(naw_naam_zorgverzekeraar),\", \",UPPER(naw_plaats_zorgverzekeraar)),\"\")","v":""},null,null,null,null,null,null,null,{"$f":"CONCATENATE(\"UZOVI: \",naw_uzovi_zorgverzekeraar)","v":"UZOVI: 0000"}]
[]
[null,null,null,"SPECIFICATIES INFORMATIE RISICOVEREVENING"]
[null,null,null,"KOSTEN NAAR DEELBIJDRAGE"]
[null,null,null," KOSTEN NAAR DEELBIJDRAGE",null,null,null,null,null,null,"Lasten 2018 inclusief balanspost","Ontvangen en geaccepteerde declaraties m.b.t. 2016 en ouder"]
[]
[null,null,null," Variabele zorgkosten"]
[null,null,null," Vaste zorgkosten "]
[null,null,null," Kosten geneeskundige geestelijke gezondheidszorg"]
[null,null,null," Kosten van verpleging en verzorging "]
[null,null,null," Kosten van langdurige geestelijke gezondheidszorg (LGGZ)"]
[null,null,null," TOTAAL kosten ",null,null,null,null,null,null,{"$f":"SUM(K14:K16)","v":0},{"$f":"SUM(L14:L18)","v":0}]
[]
[null,null,null,"RUBRIEK 06 MEDISCH SPECIALISTISCHE ZORG"]
[null,null,null," CODE 610  - OVERIGE KOSTEN ZIEKENHUISZORG EN CURATIEVE ZORG",null,null,null,null,null,null,"Lasten 2018 inclusief balanspost","Ontvangen en geaccepteerde declaraties m.b.t. 2016 en ouder"]
[]
[null,null,null," Kosten SKION en NTS (deel code 610) "]
[]
[null,null,null," CODE 612  - KOSTEN ADD-ONS ",null,null,null,null,null,null,"Lasten 2018 inclusief balanspost","Ontvangen en geaccepteerde declaraties m.b.t. 2016 en ouder"]
[]
[null,null,null," Add-ons dure intramurale geneesmiddelen (artikel 1, regeling risicoverevening)"]
[]
[null,null,null,"RUBRIEK 15 GRENSOVERSCHRIJDENDE ZORG"]
[null,null,null," CODE 720 - GRENSOVERSCHRIJDENDE ZORG",null,null,null,null,null,null,"Lasten 2018 inclusief balanspost","Ontvangen en geaccepteerde declaraties m.b.t. 2016 en ouder"]
[]
[null,null,null," Toepassing verordening  \n of verdrag inzake sociale  \n zekerheid, via Zorginstituut \n Nederland. (Kosten conform \n brief CAK) ",null," Behandeling in het buitenland met toepassing van artikel 20. \n EG-verordening 883/2004 of overeenkomstige verdragsbepaling"]
[null,null,null,null,null," Kosten gemaakt bij tijdelijk verblijf in het buitenland van Zvw \n verzekerden die wonen in Nederland"]
[null,null,null,null,null," Kosten gemaakt in het buitenland van Zvw verzekerden die wonen\n in het buitenland"]
[null,null,null," Kosten gemaakt in het buitenland, via verzekeraar",null,null,null,null,null,null,{"$f":"K61","v":0},{"$f":"L61","v":0}]
[null,null,null," TOTAAL code 720",null,null,null,null,null,null,{"$f":"SUM(K33:K36)","v":0},{"$f":"SUM(L33:L36)","v":0}]
[]
[]
[]
[]
[]
[]
[]
[]
[null,null,null,{"$f":"NOW()","v":"2019-02-05T13:41:52.070"},null,null,null,null,null,null,null,{"$f":"CONCATENATE(\"Specifieke informatie A, \",LOWER(A6))","v":"Specifieke informatie A, pagina 1"}]
[]
["Pagina 2",null,null,{"$f":"CONCATENATE(\"JAARSTAAT ZVW \", jaar_id)","v":"JAARSTAAT ZVW 2018"}]
[null,null,null,"SPECIFIEKE INFORMATIE A"]
[null,null,null,{"$f":"IF(naw_uzovi_zorgverzekeraar<>\"0000\",CONCATENATE(UPPER(naw_naam_zorgverzekeraar),\", \",UPPER(naw_plaats_zorgverzekeraar)),\"\")","v":""},null,null,null,null,null,null,null,{"$f":"CONCATENATE(\"UZOVI: \",naw_uzovi_zorgverzekeraar)","v":"UZOVI: 0000"}]
[]
[null,null,null,"SPECIFICATIES INFORMATIE RISICOVEREVENING"]
[null,null,null,"RUBRIEK 15 GRENSOVERSCHRIJDENDE ZORG - vervolg"]
[null,null,null," CODE 720 - GRENSOVERSCHRIJDENDE ZORG\n                     KOSTEN GEMAAKT IN HET BUITENLAND, VIA VERZEKERAAR",null,null,null,null,null,null,"Lasten 2018 inclusief balanspost","Ontvangen en geaccepteerde declaraties m.b.t. 2016 en ouder"]
[]
[null,null,null," Variabele zorgkosten"]
[null,null,null," Kosten van verpleging en verzorging "]
[null,null,null," Kosten van geneeskundige geestelijke gezondheidszorg"]
[null,null,null," Kosten van langdurige geestelijke gezondheidszorg (LGGZ)"]
[null,null,null," Kosten van geneeskundige geestelijke gezondheidszorg"]
[null,null,null," TOTAAL kosten gemaakt in het buitenland, via verzekeraar",null,null,null,null,null,null,{"$f":"SUM(K56:K60)","v":0},{"$f":"SUM(L56:L60)","v":0}]
[]
[null,null,null,"RUBRIEK 16 KWALITEITSGELDEN"]
[null,null,null," CODE 730 - KWALITEITSGELDEN",null,null,null,null,null,null,"Lasten 2018 inclusief balanspost","Ontvangen en geaccepteerde declaraties m.b.t. 2016 en ouder"]
[]
[null,null,null," Kosten Stichting Kwaliteitsontwikkeling GGZ"]
[null,null,null," Kosten ondersteuning eerstelijnszorg"]
[null,null,null," Kosten Stichting Kwaliteitsgelden Medisch Specialisten "]
[null,null,null," Kosten Stichting Kwaliteitsgelden Patiënten Consumenten  "]
[null,null,null," Kosten Projectgelden kwaliteitsbeleid eerstelijnszorg"]
[null,null,null," Kosten Stichting Kwaliteitsgelden wijkverpleging"]
[null,null,null," TOTAAL kosten Kwaliteitsgelden",null,null,null,null,null,null,{"$f":"SUM(K66:K71)","v":0},{"$f":"SUM(L66:L71)","v":0}]
[]
[]
[]
[]
[]
[]
[]
[]
[]
[]
[]
[]
[]
[]
[]
[]
[]
[]
[null,null,null,{"$f":"NOW()","v":"2019-02-05T13:41:52.070"},null,null,null,null,null,null,null,{"$f":"CONCATENATE(\"Specifieke informatie A, \",LOWER(A48))","v":"Specifieke informatie A, pagina 2"}]
[]
["Pagina 3",null,null,{"$f":"CONCATENATE(\"JAARSTAAT ZVW \", jaar_id)","v":"JAARSTAAT ZVW 2018"}]
[null,null,null,"SPECIFIEKE INFORMATIE A"]
[null,null,null,{"$f":"IF(naw_uzovi_zorgverzekeraar<>\"0000\",CONCATENATE(UPPER(naw_naam_zorgverzekeraar),\", \",UPPER(naw_plaats_zorgverzekeraar)),\"\")","v":""},null,null,null,null,null,null,null,{"$f":"CONCATENATE(\"UZOVI: \",naw_uzovi_zorgverzekeraar)","v":"UZOVI: 0000"}]
[]
[null,null,null,"SPECIFICATIES INFORMATIE RISICOVEREVENING - vervolg"]
[null,null,null,"KOSTEN REGIONALE AMBULANCEVOORZIENINGEN 2017"]
[null,null,null," NZa-code","Naam Instelling",null,null,null,null,"Plaats",null," Kosten van vervoer per ambulance 2017"]
[]
[null,null,null," 240-4290"," Veiligheidsregio Zuid-Holland Zuid "," Veiligheidsregio Zuid-Holland Zuid "," Veiligheidsregio Zuid-Holland Zuid "," Veiligheidsregio Zuid-Holland Zuid "," Veiligheidsregio Zuid-Holland Zuid "," Zwijndrecht"]
[null,null,null," 240-4380"," Regionale Ambulancevoorziening Flevoland"," Regionale Ambulancevoorziening Flevoland"," Regionale Ambulancevoorziening Flevoland"," Regionale Ambulancevoorziening Flevoland"," Regionale Ambulancevoorziening Flevoland"," Lelystad"]
[null,null,null," 240-4440"," Stichting Regionale Ambulancevoorziening UMCG"," Stichting Regionale Ambulancevoorziening UMCG"," Stichting Regionale Ambulancevoorziening UMCG"," Stichting Regionale Ambulancevoorziening UMCG"," Stichting Regionale Ambulancevoorziening UMCG"," Tynaarlo"]
[null,null,null," 240-4590"," Regionale Ambulancevoorziening IJsselland"," Regionale Ambulancevoorziening IJsselland"," Regionale Ambulancevoorziening IJsselland"," Regionale Ambulancevoorziening IJsselland"," Regionale Ambulancevoorziening IJsselland"," Zwolle"]
[null,null,null," 240-4650"," Ambulance Oost"," Ambulance Oost"," Ambulance Oost"," Ambulance Oost"," Ambulance Oost"," Hengelo (OV) "]
[null,null,null," 240-4660"," Regionale Ambulancevoorziening Brabant Noord"," Regionale Ambulancevoorziening Brabant Noord"," Regionale Ambulancevoorziening Brabant Noord"," Regionale Ambulancevoorziening Brabant Noord"," Regionale Ambulancevoorziening Brabant Noord"," 's-Hertogenbosch "]
[null,null,null," 240-4690"," Regionale Ambulancevoorziening Gelderland-Zuid"," Regionale Ambulancevoorziening Gelderland-Zuid"," Regionale Ambulancevoorziening Gelderland-Zuid"," Regionale Ambulancevoorziening Gelderland-Zuid"," Regionale Ambulancevoorziening Gelderland-Zuid"," Nijmegen"]
[null,null,null," 240-4700"," Regionale Ambulancevoorziening Gelderland-Midden "," Regionale Ambulancevoorziening Gelderland-Midden "," Regionale Ambulancevoorziening Gelderland-Midden "," Regionale Ambulancevoorziening Gelderland-Midden "," Regionale Ambulancevoorziening Gelderland-Midden "," Arnhem "]
[null,null,null," 240-4730"," Ambulance Amsterdam B.V. (regio Amsterdam Amstelland)"," Ambulance Amsterdam B.V. (regio Amsterdam Amstelland)"," Ambulance Amsterdam B.V. (regio Amsterdam Amstelland)"," Ambulance Amsterdam B.V. (regio Amsterdam Amstelland)"," Ambulance Amsterdam B.V. (regio Amsterdam Amstelland)"," Amsterdam"]
[null,null,null," 240-5000"," Regionale Ambulancevoorziening Utrecht (RAVU)"," Regionale Ambulancevoorziening Utrecht (RAVU)"," Regionale Ambulancevoorziening Utrecht (RAVU)"," Regionale Ambulancevoorziening Utrecht (RAVU)"," Regionale Ambulancevoorziening Utrecht (RAVU)"," Bilthoven"]
[null,null,null," 240-5100"," Regionale Ambulancevoorziening Limburg-Noord"," Regionale Ambulancevoorziening Limburg-Noord"," Regionale Ambulancevoorziening Limburg-Noord"," Regionale Ambulancevoorziening Limburg-Noord"," Regionale Ambulancevoorziening Limburg-Noord"," Venlo"]
[null,null,null," 240-5200"," Regionale Ambulancevoorziening Zuid-Limburg"," Regionale Ambulancevoorziening Zuid-Limburg"," Regionale Ambulancevoorziening Zuid-Limburg"," Regionale Ambulancevoorziening Zuid-Limburg"," Regionale Ambulancevoorziening Zuid-Limburg"," Geleen"]
[null,null,null," 240-5310"," Veiligheidsregio Brabant-Zuidoost"," Veiligheidsregio Brabant-Zuidoost"," Veiligheidsregio Brabant-Zuidoost"," Veiligheidsregio Brabant-Zuidoost"," Veiligheidsregio Brabant-Zuidoost"," Eindhoven"]
[null,null,null," 240-5410"," Regionale Ambulancevoorziening Midden-West Brabant"," Regionale Ambulancevoorziening Midden-West Brabant"," Regionale Ambulancevoorziening Midden-West Brabant"," Regionale Ambulancevoorziening Midden-West Brabant"," Regionale Ambulancevoorziening Midden-West Brabant"," 's-Hertogenbosch"]
[null,null,null," 240-6320"," Regionale Ambulancevoorziening Groningen"," Regionale Ambulancevoorziening Groningen"," Regionale Ambulancevoorziening Groningen"," Regionale Ambulancevoorziening Groningen"," Regionale Ambulancevoorziening Groningen"," Groningen"]
[null,null,null," 240-6710"," Regionale Ambulancevoorziening Hollands Midden"," Regionale Ambulancevoorziening Hollands Midden"," Regionale Ambulancevoorziening Hollands Midden"," Regionale Ambulancevoorziening Hollands Midden"," Regionale Ambulancevoorziening Hollands Midden"," Leiden"]
[null,null,null," 240-6900"," Regionale Ambulancevoorziening Gooi en Vechtstreek"," Regionale Ambulancevoorziening Gooi en Vechtstreek"," Regionale Ambulancevoorziening Gooi en Vechtstreek"," Regionale Ambulancevoorziening Gooi en Vechtstreek"," Regionale Ambulancevoorziening Gooi en Vechtstreek"," Bussum"]
[null,null,null," 240-7004"," Coöperatie AmbulanceZorg Rotterdam Rijnmond U.A."," Coöperatie AmbulanceZorg Rotterdam Rijnmond U.A."," Coöperatie AmbulanceZorg Rotterdam Rijnmond U.A."," Coöperatie AmbulanceZorg Rotterdam Rijnmond U.A."," Coöperatie AmbulanceZorg Rotterdam Rijnmond U.A."," Barendrecht"]
[null,null,null," 240-7005 "," Witte Kruis Ambulance Services B.V. (regio Zeeland)"," Witte Kruis Ambulance Services B.V. (regio Zeeland)"," Witte Kruis Ambulance Services B.V. (regio Zeeland)"," Witte Kruis Ambulance Services B.V. (regio Zeeland)"," Witte Kruis Ambulance Services B.V. (regio Zeeland)"," Alkmaar"]
[null,null,null," 240-7006"," Coöperatie Regionale Ambulancevoorziening Fryslan U.A."," Coöperatie Regionale Ambulancevoorziening Fryslan U.A."," Coöperatie Regionale Ambulancevoorziening Fryslan U.A."," Coöperatie Regionale Ambulancevoorziening Fryslan U.A."," Coöperatie Regionale Ambulancevoorziening Fryslan U.A."," Tynaarlo"]
[null,null,null," 240-7007"," Regionale Ambulancevoorziening Haaglanden"," Regionale Ambulancevoorziening Haaglanden"," Regionale Ambulancevoorziening Haaglanden"," Regionale Ambulancevoorziening Haaglanden"," Regionale Ambulancevoorziening Haaglanden"," 's-Gravenhage"]
[null,null,null," 240-7008"," Witte Kruis Ambulance Services B.V. (regio Noordoost Gelderland)"," Witte Kruis Ambulance Services B.V. (regio Noordoost Gelderland)"," Witte Kruis Ambulance Services B.V. (regio Noordoost Gelderland)"," Witte Kruis Ambulance Services B.V. (regio Noordoost Gelderland)"," Witte Kruis Ambulance Services B.V. (regio Noordoost Gelderland)"," Alkmaar "]
[null,null,null," 240-7009"," Vereniging Ambulancezorg U.A. (regio Noord-Holland Noord)"," Vereniging Ambulancezorg U.A. (regio Noord-Holland Noord)"," Vereniging Ambulancezorg U.A. (regio Noord-Holland Noord)"," Vereniging Ambulancezorg U.A. (regio Noord-Holland Noord)"," Vereniging Ambulancezorg U.A. (regio Noord-Holland Noord)"," Alkmaar"]
[null,null,null," 240-7010"," Ambulance Amsterdam B.V. (regio Zaanstreek-Waterland)"," Ambulance Amsterdam B.V. (regio Zaanstreek-Waterland)"," Ambulance Amsterdam B.V. (regio Zaanstreek-Waterland)"," Ambulance Amsterdam B.V. (regio Zaanstreek-Waterland)"," Ambulance Amsterdam B.V. (regio Zaanstreek-Waterland)"," Amsterdam"]
[null,null,null," 240-7011"," Coöperatie Regionale Ambulancevoorziening Kennemerland"," Coöperatie Regionale Ambulancevoorziening Kennemerland"," Coöperatie Regionale Ambulancevoorziening Kennemerland"," Coöperatie Regionale Ambulancevoorziening Kennemerland"," Coöperatie Regionale Ambulancevoorziening Kennemerland"," Haarlem"]
[null,null,null," TOTALE KOSTEN VAN VERVOER PER AMBULANCE ",null,null,null," TOTALE KOSTEN VAN VERVOER PER AMBULANCE ",null,null,null,{"$f":"SUM(L101:L125)","v":0}]
[]
[null,null,null,"OVERIGE SPECIFICATIES"]
[null,null,null,"BEREKENDE NOMINALE REKENPREMIES GEDETINEERDEN"]
[null,null,null,null,null,null,null,null,null,null,null,"BEDRAG"]
[null,null,null," Totaal berekende nominale rekenpremies 2018 tijdens de detentieperiode van verzekerden van 18 jaar en ouder"]
[]
[]
[]
[null,null,null,{"$f":"NOW()","v":"2019-02-05T13:41:52.070"},null,null,null,null,null,null,null,{"$f":"CONCATENATE(\"Specifieke informatie A, \",LOWER(A93))","v":"Specifieke informatie A, pagina 3"}]

{"sheet":"Specifieke informatie C","index":6,"n_rows":604,"n_cols":12,"rows_kept":604,"cut":false,"hidden":false,"merged":[[310,11,311,11],[360,3,360,9],[362,10,363,10],[405,11,406,11],[520,3,521,10],[537,3,537,10],[538,3,538,10],[523,3,523,10],[294,5,294,9],[295,3,295,9],[504,3,505,10],[504,11,505,11],[506,3,506,10],[507,3,507,10],[310,10,311,10],[400,3,400,9],[370,3,370,8],[375,3,375,8],[396,11,397,11],[372,9,373,9],[332,10,333,10],[332,11,333,11],[329,5,329,9],[312,5,312,9],[328,5,328,9],[313,5,313,9],[326,5,326,9],[314,5,314,9],[376,3,376,8],[372,10,373,10],[378,10,379,10],[374,3,374,8],[381,3,381,9],[508,3,508,10],[509,3,509,10],[548,11,549,11],[551,3,551,10],[548,3,549,10],[545,3,545,10],[525,3,525,10],[524,3,524,10],[546,3,546,10],[541,11,542,11],[527,11,528,11],[534,11,535,11],[520,11,521,11],[522,3,522,10],[527,3,528,10],[530,3,530,10],[529,3,529,10],[541,3,542,10],[536,3,536,10],[531,3,531,10],[543,3,543,10],[544,3,544,10],[539,3,539,10],[362,11,363,11],[372,3,373,8],[362,3,363,9],[366,10,367,10],[366,11,367,11],[366,9,367,9],[372,11,373,11],[366,3,367,8],[364,3,364,9],[368,3,368,8],[369,3,369,8],[416,3,416,9],[423,10,424,10],[389,3,389,4],[383,3,383,9],[378,3,379,9],[380,3,380,9],[410,10,411,10],[417,3,417,9],[401,3,401,9],[402,3,402,9],[423,3,424,9],[421,3,421,9],[396,10,397,10],[382,3,382,9],[398,3,398,9],[405,10,406,10],[396,3,397,9],[399,3,399,9],[385,3,385,9],[384,3,384,9],[405,3,406,9],[378,11,379,11],[425,3,425,9],[430,3,430,9],[410,11,411,11],[410,3,411,9],[414,3,414,9],[415,3,415,9],[442,9,443,9],[433,3,433,9],[419,3,419,9],[431,3,431,9],[412,3,412,9],[423,11,424,11],[434,3,434,9],[435,3,435,4],[429,3,429,9],[413,3,413,9],[426,3,426,9],[432,3,432,9],[420,3,420,9],[428,3,428,9],[427,3,427,9],[418,3,418,9],[407,3,407,9],[285,11,286,11],[334,3,334,8],[358,3,359,9],[354,3,355,9],[354,11,355,11],[318,5,318,9],[324,5,324,9],[315,5,315,9],[320,5,320,9],[315,3,317,4],[327,3,329,4],[327,5,327,9],[325,5,325,9],[358,11,359,11],[316,5,316,9],[358,10,359,10],[324,3,326,4],[347,3,347,4],[321,5,321,9],[319,5,319,9],[332,3,333,9],[354,10,355,10],[356,3,356,9],[291,11,292,11],[310,3,311,9],[312,3,314,4],[288,3,288,9],[289,3,289,9],[291,3,292,9],[291,10,292,10],[124,10,125,10],[278,3,278,6],[269,7,270,7],[244,4,244,6],[233,3,233,8],[235,9,235,10],[235,3,237,6],[235,7,235,8],[236,8,237,8],[236,9,237,9],[242,4,242,6],[238,3,241,3],[238,4,238,6],[236,7,237,7],[269,9,270,9],[271,5,271,6],[293,3,294,4],[293,5,293,9],[120,3,120,9],[85,3,85,9],[97,3,98,9],[115,10,116,10],[138,10,139,10],[184,10,185,10],[208,9,208,10],[201,9,202,9],[149,3,149,9],[157,10,158,10],[117,3,117,9],[110,3,110,9],[87,3,87,9],[196,10,197,10],[161,3,161,9],[193,3,193,9],[163,10,164,10],[131,3,131,4],[194,3,194,9],[138,3,139,9],[143,3,143,9],[150,3,150,9],[187,3,187,9],[107,10,108,10],[26,3,26,9],[37,3,38,9],[33,3,33,9],[39,3,39,9],[69,5,69,9],[27,3,27,9],[31,3,31,9],[29,3,30,9],[56,3,56,9],[42,3,42,9],[43,3,43,9],[10,11,11,11],[10,10,11,10],[22,5,22,9],[21,5,21,9],[10,3,11,9],[67,10,68,10],[72,3,74,4],[17,11,18,11],[21,3,22,4],[64,3,64,9],[60,10,61,10],[20,5,20,9],[23,3,23,9],[40,3,40,9],[34,3,34,9],[17,3,18,9],[24,3,24,9],[25,3,25,9],[57,3,57,9],[29,10,30,10],[54,10,55,10],[67,11,68,11],[73,5,73,9],[32,3,32,9],[115,3,116,9],[89,3,89,9],[75,5,75,9],[71,5,71,9],[58,3,58,9],[69,3,71,4],[63,3,63,9],[62,3,62,9],[107,3,108,9],[109,3,109,9],[88,3,88,9],[81,3,81,9],[77,5,77,9],[60,3,61,9],[101,3,101,9],[100,3,100,9],[75,3,77,4],[76,5,76,9],[74,5,74,9],[72,5,72,9],[67,3,68,9],[70,5,70,9],[115,11,116,11],[60,11,61,11],[12,3,12,9],[19,3,20,4],[19,5,19,9],[17,10,18,10],[35,3,35,8],[112,3,112,9],[105,3,105,9],[86,3,86,9],[54,3,55,9],[41,3,41,9],[44,3,44,9],[47,3,47,4],[80,5,80,9],[78,3,80,4],[104,3,104,9],[102,3,103,3],[13,3,13,9],[14,3,14,9],[54,11,55,11],[37,10,38,10],[29,11,30,11],[15,3,15,9],[97,10,98,10],[83,10,84,10],[107,11,108,11],[97,11,98,11],[37,11,38,11],[99,3,99,9],[103,4,103,9],[83,11,84,11],[79,5,79,9],[102,4,102,9],[83,3,84,9],[78,5,78,9],[495,11,496,11],[211,7,211,11],[271,3,271,4],[163,11,164,11],[190,11,191,11],[236,10,237,10],[229,3,229,8],[243,4,243,6],[209,11,210,11],[208,7,208,8],[209,10,210,10],[218,3,218,4],[201,11,202,11],[196,11,197,11],[211,5,211,6],[212,3,212,6],[213,3,213,6],[201,10,202,10],[236,11,237,11],[184,11,185,11],[231,3,231,8],[330,3,330,9],[285,10,286,10],[285,3,286,9],[124,11,125,11],[138,11,139,11],[171,11,172,11],[157,11,158,11],[513,3,513,4],[500,3,500,9],[463,3,463,9],[493,3,493,9],[498,5,498,9],[464,3,464,9],[499,3,499,9],[465,3,465,9],[497,3,498,4],[497,5,497,9],[466,3,466,9],[488,5,488,9],[486,3,487,9],[490,3,490,9],[489,5,489,9],[485,3,485,11],[488,3,489,4],[486,11,487,11],[478,3,478,4],[268,7,268,8],[495,3,496,9],[495,10,496,10],[486,10,487,10],[491,3,491,9],[492,3,492,9],[461,3,462,9],[442,3,443,8],[446,3,446,8],[461,11,462,11],[461,10,462,10],[459,3,459,9],[450,11,451,11],[458,3,458,9],[450,10,451,10],[452,3,452,9],[457,3,457,9],[454,3,454,9],[453,3,453,9],[450,3,451,9],[447,3,447,8],[456,3,456,9],[455,3,455,9],[442,11,443,11],[442,10,443,10],[444,3,444,8],[445,3,445,8],[321,3,323,4],[322,5,322,9],[303,3,303,4],[245,4,245,6],[317,5,317,9],[318,3,320,4],[323,5,323,9],[261,3,261,4],[272,3,272,6],[273,3,273,6],[281,3,281,6],[282,3,282,6],[287,3,287,9],[268,5,270,6],[268,9,268,10],[268,3,270,4],[280,3,280,6],[274,3,274,6],[275,3,275,6],[279,3,279,6],[277,7,277,11],[269,11,270,11],[269,8,270,8],[271,7,271,11],[277,5,277,6],[276,3,276,6],[277,3,277,4],[216,3,216,6],[239,4,239,6],[240,4,240,6],[246,3,246,6],[241,4,241,6],[227,3,227,8],[230,3,230,8],[225,3,226,8],[242,3,245,3],[232,3,232,8],[225,10,226,10],[269,10,270,10],[209,7,210,7],[214,3,214,6],[209,8,210,8],[228,3,228,8],[118,3,119,4],[203,3,203,6],[208,3,210,4],[157,3,158,9],[119,5,119,9],[140,3,140,9],[174,5,174,9],[146,3,146,9],[147,3,147,9],[118,5,118,9],[126,8,126,9],[124,3,125,9],[126,3,126,7],[122,3,122,9],[121,3,121,9],[209,9,210,9],[204,3,204,6],[205,3,205,6],[154,3,154,9],[169,3,169,9],[141,3,141,9],[153,3,153,9],[142,3,142,9],[145,3,145,9],[151,3,151,9],[148,3,148,9],[144,3,144,9],[184,3,185,9],[155,3,155,9],[152,3,152,9],[166,3,166,9],[167,3,167,9],[168,3,168,9],[175,3,176,4],[175,5,175,9],[176,5,176,9],[201,8,202,8],[196,3,197,9],[159,3,159,9],[160,3,160,9],[190,3,191,9],[177,3,177,4],[165,3,165,9],[225,9,226,9],[215,3,215,6],[211,3,211,4],[201,7,202,7],[192,3,192,9],[200,7,200,8],[200,3,202,6],[198,3,198,9],[208,5,210,6],[200,9,200,10],[163,3,164,9],[171,10,172,10],[190,10,191,10],[186,3,186,9],[173,3,174,4],[171,3,172,9],[173,5,173,9],[603,3,603,4],[579,3,580,10],[591,3,591,10],[590,3,590,10],[558,3,558,4],[532,3,532,10],[534,3,535,10],[593,11,594,11],[584,3,584,10],[586,3,587,10],[588,3,588,10],[589,3,589,10],[586,11,587,11],[570,3,570,10],[568,3,568,10],[565,3,566,10],[581,3,581,10],[579,11,580,11],[577,3,577,10],[572,3,573,10],[575,3,575,10],[565,11,566,11],[572,11,573,11],[583,3,583,10],[596,3,596,10],[598,3,598,10],[597,3,597,10],[595,3,595,10],[582,3,582,10],[593,3,594,10],[576,3,576,10],[553,3,553,10],[550,3,550,10],[574,3,574,10],[569,3,569,10],[567,3,567,10],[552,3,552,10]]}
[null,null,"INVULSPECIFICATIES SPECIFIEKE INFORMATIE C"]
[]
[]
[]
[]
["Pagina 1",null,null,{"$f":"CONCATENATE(\"JAARSTAAT ZVW \", jaar_id)","v":"JAARSTAAT ZVW 2018"}]
[null,null,null,"SPECIFIEKE INFORMATIE C (BELEIDSINFORMATIE)"]
[null,null,null,{"$f":"IF(naw_uzovi_zorgverzekeraar<>\"0000\",CONCATENATE(UPPER(naw_naam_zorgverzekeraar),\", \",UPPER(naw_plaats_zorgverzekeraar)),\"\")","v":""},null,null,null,null,null,null,null,{"$f":"CONCATENATE(\"UZOVI: \",naw_uzovi_zorgverzekeraar)","v":"UZOVI: 0000"}]
[null,null,null,"SPECIFICATIES VAN KOSTEN EN PRODUCTIE"]
[null,null,null,"RUBRIEK 01 HUISARTSENZORG en MDZ"]
[null,null,null,"  CODE 503 - BIJZONDERE BETALINGEN",null,null,null,null,null,null,"Ontvangen en geaccepteerde declaraties mbt 2018","Ontvangen en geaccepteerde declaraties mbt 2017 "]
[null,null,null,null,null,null,null,null,null,null,"Ontvangen en geaccepteerde declaraties mbt jaar T","Ontvangen en geaccepteerde declaraties mbt jaar T-1"]
[null,null,null," Module achterstandsfonds"]
[null,null,null," Module modernisering en innovatie "]
[null,null,null," Overige kosten"]
[null,null,null," TOTAAL code 503",null,null,null,null,null,null,{"$f":"SUM(K13:K15)","v":0},{"$f":"SUM(L13:L15)","v":0}]
[]
[null,null,null,"  CODE 506 - CONSULTTARIEVEN",null,null,null,null,null,null,"Ontvangen en geaccepteerde declaraties mbt 2018 ","Ontvangen en geaccepteerde declaraties mbt 2017 "]
[null,null,null,null,null,null,null,null,null,null,"Ontvangen en geaccepteerde declaraties mbt jaar T-1","Ontvangen en geaccepteerde declaraties mbt jaar T-1"]
[null,null,null," Kosten consulten huisartsen",null," ≤ 20 minuten"]
[null,null,null,null,null," > 20 minuten"]
[null,null,null," Kosten visites huisartsen",null," ≤ 20 minuten"]
[null,null,null,null,null," > 20 minuten"]
[null,null,null," Kosten telefonisch consulten huisartsen"]
[null,null,null," Kosten e-mailconsulten huisartsen"]
[null,null,null," Kosten consulttarieven POH GGZ"]
[null,null,null," Kosten huisartsenzorg ELV en Intensieve zorg"]
[null,null,null," TOTAAL code 506",null,null,null,null,null,null,{"$f":"SUM(K20:K27)","v":0},{"$f":"SUM(L20:L27)","v":0}]
[]
[null,null,null,"  CODE 507 - OVERIGE TARIEVEN",null,null,null,null,null,null,"Ontvangen en geaccepteerde declaraties mbt 2018","Ontvangen en geaccepteerde declaraties mbt 2017 "]
[null,null,null,null,null,null,null,null,null,null,"Ontvangen en geaccepteerde declaraties mbt jaar T","Ontvangen en geaccepteerde declaraties mbt jaar T-1"]
[null,null,null," Module POH GGZ"]
[null,null,null," S1 verrichtingen"]
[null,null,null," Vaccinaties"]
[null,null,null," Passantentarieven"]
[null,null,null," TOTAAL code 507",null,null,null,null,null,null,{"$f":"SUM(K32:K35)","v":0},{"$f":"SUM(L32:L35)","v":0}]
[]
[null,null,null,"  CODE 510 - MULTIDISCIPLINAIRE ZORG",null,null,null,null,null,null,"Ontvangen en geaccepteerde declaraties mbt 2018","Ontvangen en geaccepteerde declaraties mbt 2017 "]
[null,null,null,null,null,null,null,null,null,null,"Ontvangen en geaccepteerde declaraties mbt jaar T","Ontvangen en geaccepteerde declaraties mbt jaar T-1"]
[null,null,null," Multidisciplinaire zorgverlening Diabetes Mellitus type 2 en multidisciplinaire zorgverlening \n Cardiovasculair risicomanagement (vergoedingscomponent te verzekeren prestatie ZVW) ",null,null,null,null,null,null," "]
[null,null,null," Multidisciplinaire zorgverlening COPD (vergoedingscomponent te verzekeren prestatie ZVW) ",null,null,null,null,null,null," "]
[null,null,null," Kosten i.v.m. beleidsregel samenwerking t.b.v. geïntegreerde 1e lijnszorgproducten"]
[null,null,null," Ondersteuning en infrastructuur",null,null,null,null,null,null," "]
[null,null,null," Programma stoppen met roken",null,null,null,null,null,null," "]
[null,null,null," TOTAAL code 510",null,null,null,null,null,null,{"$f":"SUM(K40:K44)","v":0},{"$f":"SUM(L40:L42)","v":0}]
[]
[]
[null,null,null,{"$f":"NOW()","v":"2019-02-05T13:41:52.070"},null,null,null,null,null,null,null,{"$f":"CONCATENATE(\"Specifieke informatie C, \",LOWER(A6))","v":"Specifieke informatie C, pagina 1"}]
[]
["Pagina 2",null,null,{"$f":"CONCATENATE(\"JAARSTAAT ZVW \", jaar_id)","v":"JAARSTAAT ZVW 2018"}]
[null,null,null,"SPECIFIEKE INFORMATIE C (BELEIDSINFORMATIE)"]
[null,null,null,{"$f":"IF(naw_uzovi_zorgverzekeraar<>\"0000\",CONCATENATE(UPPER(naw_naam_zorgverzekeraar),\", \",UPPER(naw_plaats_zorgverzekeraar)),\"\")","v":""},null,null,null,null,null,null,null,{"$f":"CONCATENATE(\"UZOVI: \",naw_uzovi_zorgverzekeraar)","v":"UZOVI: 0000"}]
[null,null,null,"SPECIFICATIES VAN KOSTEN EN PRODUCTIE"]
[null,null,null,"RUBRIEK 01 HUISARTSENZORG en MDZ - vervolg"]
[null,null,null,"  CODE 515 - RESULTAATBELONING EN ZORGVERNIEUWING HUISARTSEN ",null,null,null,null,null,null,"Ontvangen en geaccepteerde declaraties mbt 2018","Ontvangen en geaccepteerde declaraties mbt 2017 "]
[null,null,null,null,null,null,null,null,null,null,"Ontvangen en geaccepteerde declaraties mbt jaar T","Ontvangen en geaccepteerde declaraties mbt jaar T-1"]
[null,null,null," Resultaatbeloning huisartsen"]
[null,null,null," Zorgvernieuwing huisartsen"]
[null,null,null," TOTAAL code 515",null,null,null,null,null,null,{"$f":"SUM(K57:K58)","v":0},{"$f":"SUM(L57:L58)","v":0}]
[]
[null,null,null,"  CODE 516 - RESULTAATBELONING EN ZORGVERNIEUWING MDZ ",null,null,null,null,null,null,"Ontvangen en geaccepteerde declaraties mbt 2018","Ontvangen en geaccepteerde declaraties mbt 2017 "]
[null,null,null,null,null,null,null,null,null,null,"Ontvangen en geaccepteerde declaraties mbt jaar T","Ontvangen en geaccepteerde declaraties mbt jaar T-1"]
[null,null,null," Resultaatbeloning MDZ"]
[null,null,null," Zorgvernieuwing MDZ"]
[null,null,null," TOTAAL code 516",null,null,null,null,null,null,{"$f":"SUM(K63:K64)","v":0},{"$f":"SUM(L63:L64)","v":0}]
[]
[null,null,null,"RUBRIEK 02 FARMACEUTISCHE ZORG"]
[null,null,null," CODE 520 - FARMACEUTISCHE ZORG",null,null,null,null,null,null,"Ontvangen en geaccepteerde declaraties mbt 2018","Ontvangen en geaccepteerde declaraties mbt 2017 "]
[null,null,null,null,null,null,null,null,null,null,"Ontvangen en geaccepteerde declaraties mbt jaar T","Ontvangen en geaccepteerde declaraties mbt jaar T-1"]
[null,null,null," Apothekers",null," Kosten geneesmiddel"]
[null,null,null,null,null," Kosten aflevering"]
[null,null,null,null,null," Kosten niet verstrekking gerelateerde prestaties"]
[null,null,null," Apotheekhoudende huisartsen",null," Kosten geneesmiddel"]
[null,null,null,null,null," Kosten aflevering"]
[null,null,null,null,null," Kosten niet verstrekking gerelateerde prestaties"]
[null,null,null," Eigen instellingen",null," Kosten geneesmiddel"]
[null,null,null,null,null," Kosten aflevering"]
[null,null,null,null,null," Kosten niet verstrekking gerelateerde prestaties"]
[null,null,null," Overige afleveraars",null," Kosten geneesmiddel"]
[null,null,null,null,null," Kosten aflevering"]
[null,null,null,null,null," Kosten niet verstrekking gerelateerde prestaties"]
[null,null,null," TOTAAL code 520",null,null,null,null,null,null,{"$f":"SUM(K70:K81)","v":0},{"$f":"SUM(L70:L81)","v":0}]
[]
[null,null,null,"  CODE 520 - FARMACEUTISCHE ZORG - vervolg",null,null,null,null,null,null,"Aantal uitgiftes mbt 2018","Aantal uitgiftes mbt 2017"]
[]
[null,null,null," Apothekers"]
[null,null,null," Apotheekhoudende huisartsen"]
[null,null,null," Eigen instellingen"]
[null,null,null," Overige afleveraars"]
[null,null,null," TOTAAL uitgiftes",null,null,null,null,null,null,{"$f":"SUM(K86:K89)","v":0},{"$f":"SUM(L86:L89)","v":0}]
[null,null,null,null,null,null,null,null,null,null,null,{"$f":"CONCATENATE(\"Specifieke informatie C, \",LOWER(A50))","v":"Specifieke informatie C, pagina 2"}]
[]
["Pagina 3",null,null,{"$f":"CONCATENATE(\"JAARSTAAT ZVW \", jaar_id)","v":"JAARSTAAT ZVW 2018"}]
[null,null,null,"SPECIFIEKE INFORMATIE C (BELEIDSINFORMATIE)"]
[null,null,null,{"$f":"IF(naw_uzovi_zorgverzekeraar<>\"0000\",CONCATENATE(UPPER(naw_naam_zorgverzekeraar),\", \",UPPER(naw_plaats_zorgverzekeraar)),\"\")","v":""},null,null,null,null,null,null,null,{"$f":"CONCATENATE(\"UZOVI: \",naw_uzovi_zorgverzekeraar)","v":"UZOVI: 0000"}]
[null,null,null,"SPECIFICATIES VAN KOSTEN EN PRODUCTIE"]
[null,null,null,"RUBRIEK 03 VERPLEGING EN VERZORGING "]
[null,null,null,"  CODE 530 - VERPLEGING EN VERZORGING",null,null,null,null,null,null,"Ontvangen en geaccepteerde declaraties mbt 2018","Ontvangen en geaccepteerde declaraties mbt 2017 "]
[null,null,null,null,null,null,null,null,null,null,"Ontvangen en geaccepteerde declaraties mbt jaar T","Ontvangen en geaccepteerde declaraties mbt jaar T-1"]
[null,null,null," Kosten verpleging"]
[null,null,null," Kosten verzorging"]
[null,null,null," Kosten PGB's"]
[null,null,null," Overige kosten"," Prestaties AIV, Beloning op maat, Experiment bekostiging VenV \n (prestaties op verzekerdenniveau)"]
[null,null,null,null," Wijkgericht werken, Experiment regelarme instelling, Regionale \n beschikbaarheidsfunctie, Experimenten ketenzorg dementie \n (prestaties niet op verzekerdenniveau)"]
[null,null,null," Kosten verpleegkundige dagopvang en verblijf bij Intensieve kindzorg"]
[null,null,null," TOTAAL code 530",null,null,null,null,null,null,{"$f":"SUM(K100:K105)","v":0},{"$f":"SUM(L100:L105)","v":0}]
[]
[null,null,null,"  CODE 530 - VERPLEGING EN VERZORGING",null,null,null,null,null,null,"Aantal mbt 2018","Aantal mbt 2017"]
[]
[null,null,null," Verpleging"]
[null,null,null," Verzorging"]
[null,null,null," Verpleegkundige dagopvang en verblijf bij Intensieve kindzorg"]
[null,null,null," TOTAAL code 530",null,null,null,null,null,null,{"$f":"SUM(K110:K112)","v":0},{"$f":"SUM(L110:L112)","v":0}]
[]
[null,null,null,"RUBRIEK 04 MONDZORG"]
[null,null,null,"  CODE 560.1 - MONDZORG VOLWASSEN VERZEKERDEN",null,null,null,null,null,null,"Ontvangen en geaccepteerde declaraties mbt 2018","Ontvangen en geaccepteerde declaraties mbt 2017 "]
[null,null,null,null,null,null,null,null,null,null,"Ontvangen en geaccepteerde declaraties mbt jaar T","Ontvangen en geaccepteerde declaraties mbt jaar T-1"]
[null,null,null," X Maken en beoordelen foto's (Röntgendiagnostiek)"]
[null,null,null," Bijzondere tandheelkundige zorg \n (art. 2.7, lid 1, sub a)",null," Implantaten "]
[null,null,null,null,null," Overig"]
[null,null,null," Bijzondere tandheelkundige zorg (art. 2.7, lid 1, sub b en c)"]
[null,null,null," Bijzondere tandheelkundige zorg (art. 2.7, lid 3), Orthodontie"]
[null,null,null," TOTAAL code 560.1",null,null,null,null,null,null,{"$f":"SUM(K118:K122)","v":0},{"$f":"SUM(L118:L122)","v":0}]
[]
[null,null,null,"  CODE 560.1 - MONDZORG VOLWASSEN VERZEKERDEN",null,null,null,null,null,null,"Aantal mbt 2018","Aantal mbt 2017"]
[null,null,null,null,null,null,null,null,null,null,"Ontvangen en geaccepteerde declaraties mbt jaar T","Ontvangen en geaccepteerde declaraties mbt jaar T"]
[null,null,null," Bijzondere tandheelkundige zorg (art. 2.7, lid 1, sub a)",null,null,null,null," Implantaten"]
[]
[]
[]
[]
[null,null,null,{"$f":"NOW()","v":"2019-02-05T13:41:52.070"},null,null,null,null,null,null,null,{"$f":"CONCATENATE(\"Specifieke informatie C, \",LOWER(A93))","v":"Specifieke informatie C, pagina 3"}]
[]
["Pagina 4",null,null,{"$f":"CONCATENATE(\"JAARSTAAT ZVW \", jaar_id)","v":"JAARSTAAT ZVW 2018"}]
[null,null,null,"SPECIFIEKE INFORMATIE C (BELEIDSINFORMATIE)"]
[null,null,null,{"$f":"IF(naw_uzovi_zorgverzekeraar<>\"0000\",CONCATENATE(UPPER(naw_naam_zorgverzekeraar),\", \",UPPER(naw_plaats_zorgverzekeraar)),\"\")","v":""},null,null,null,null,null,null,null,{"$f":"CONCATENATE(\"UZOVI: \",naw_uzovi_zorgverzekeraar)","v":"UZOVI: 0000"}]
[null,null,null,"SPECIFICATIES VAN KOSTEN EN PRODUCTIE"]
[null,null,null,"RUBRIEK 04 MONDZORG - vervolg"]
[null,null,null,"  CODE 560.2 - MONDZORG JEUGDIGE VERZEKERDEN",null,null,null,null,null,null,"Ontvangen en geaccepteerde declaraties mbt 2018 ","Ontvangen en geaccepteerde declaraties mbt 2017 "]
[null,null,null,null,null,null,null,null,null,null,"Ontvangen en geaccepteerde declaraties mbt jaar T-1","Ontvangen en geaccepteerde declaraties mbt jaar T-1"]
[null,null,null," C        Consultatie en diagnostiek"]
[null,null,null," X        Maken en beoordelen foto's"]
[null,null,null," M        Preventieve mondzorg"]
[null,null,null," A+B    Verdoving"]
[null,null,null," V        Vullingen"]
[null,null,null," E        Wortelkanaalbehandelingen"]
[null,null,null," R        Kronen en bruggen"]
[null,null,null," G        Kaakgewrichtbehandelingen"]
[null,null,null," H        Chirurgische ingrepen"]
[null,null,null," P        Uitneembare prothetische voorzieningen"]
[null,null,null," T        Tandvleesbehandelingen"]
[null,null,null," J         Implantaten"]
[null,null,null," Z        Abonnementstarieven"]
[null,null,null," Bijzondere tandheelkundige zorg (art. 2.7, lid 1, sub a, b en c)"]
[null,null,null," Bijzondere tandheelkundige zorg (art. 2.7, lid 3), Orthodontie"]
[null,null,null," TOTAAL code 560.2",null,null,null,null,null,null,{"$f":"SUM(K141:K155)","v":0},{"$f":"SUM(L141:L155)","v":0}]
[]
[null,null,null,"  CODE 560.2 - MONDZORG JEUGDIGE VERZEKERDEN",null,null,null,null,null,null,"Aantal mbt 2018","Aantal mbt 2017"]
[]
[null,null,null," C     Consultatie en diagnostiek (C11, periodieke controle)"]
[null,null,null," M     Preventieve mondzorg (M01, Preventieve voorlichting en/of instructie)"]
[null,null,null," M     Preventieve mondzorg (M02, Consult voor evaluatie van preventie)"]
[]
[null,null,null,"  CODE 561 - GEBITSPROTHESEN",null,null,null,null,null,null,"Ontvangen en geaccepteerde declaraties mbt 2018","Ontvangen en geaccepteerde declaraties mbt 2017"]
[null,null,null,null,null,null,null,null,null,null,"Ontvangen en geaccepteerde declaraties mbt jaar T-1","Ontvangen en geaccepteerde declaraties mbt jaar T-1"]
[null,null,null," Volledige conventionele gebitsprothesen voor onder- en/of bovenkaak"]
[null,null,null," Rebasings en reparaties van de conventionele gebitsprothesen "]
[null,null,null," Volledige implantaat gedragen gebitsprothesen voor onder- en/of bovenkaak"]
[null,null,null," Rebasings en reparaties implantaat gedragen gebitsprothesen"]
[null,null,null," TOTAAL code 561",null,null,null,null,null,null,{"$f":"SUM(K166:K169)","v":0},{"$f":"SUM(L166:L169)","v":0}]
[]
[null,null,null,"  CODE 561 - GEBITSPROTHESEN",null,null,null,null,null,null,"Aantal mbt 2018","Aantal mbt 2017"]
[null,null,null,null,null,null,null,null,null,null,"Ontvangen en geaccepteerde declaraties mbt jaar T","Ontvangen en geaccepteerde declaraties mbt jaar T"]
[null,null,null," Volledige conventionele \n gebitsprothesen \n ",null," onder en boven"]
[null,null,null,null,null," onder of boven (tellen per kaak) "]
[null,null,null," Volledige implantaat gedragen \n gebitsprothesen \n ",null," onder en boven"]
[null,null,null,null,null," onder of boven (tellen per kaak) "]
[null,null,null,{"$f":"NOW()","v":"2019-02-05T13:41:52.070"},null,null,null,null,null,null,null,{"$f":"CONCATENATE(\"Specifieke informatie C, \",LOWER(A134))","v":"Specifieke informatie C, pagina 4"}]
[]
["Pagina 5",null,null,{"$f":"CONCATENATE(\"JAARSTAAT ZVW \", jaar_id)","v":"JAARSTAAT ZVW 2018"}]
[null,null,null,"SPECIFIEKE INFORMATIE C (BELEIDSINFORMATIE)"]
[null,null,null,{"$f":"IF(naw_uzovi_zorgverzekeraar<>\"0000\",CONCATENATE(UPPER(naw_naam_zorgverzekeraar),\", \",UPPER(naw_plaats_zorgverzekeraar)),\"\")","v":""},null,null,null,null,null,null,null,{"$f":"CONCATENATE(\"UZOVI: \",naw_uzovi_zorgverzekeraar)","v":"UZOVI: 0000"}]
[null,null,null,"SPECIFICATIES VAN KOSTEN EN PRODUCTIE"]
[null,null,null,"RUBRIEK 05 VERLOSKUNDIGE ZORG"]
[null,null,null," SPECIFICATIE AANTALLEN VERLOSSINGEN",null,null,null,null,null,null,"Aantal mbt 2018","Aantal mbt 2017"]
[null,null,null,null,null,null,null,null,null,null,"Ontvangen en geaccepteerde declaraties mbt jaar T","Ontvangen en geaccepteerde declaraties mbt jaar T"]
[null,null,null," Volledige verlossingen door verloskundigen (code 580)"]
[null,null,null," Volledige verlossingen door huisartsen (code 581)"]
[]
[null,null,null,"RUBRIEK 06 MEDISCH SPECIALISTISCHE ZORG "]
[null,null,null,"  CODE 545 - KOSTEN SPECIALISTEN MONDZIEKTEN EN KAAKCHIRURGIE",null,null,null,null,null,null,"Ontvangen en geaccepteerde declaraties mbt 2018","Ontvangen en geaccepteerde declaraties mbt 2017"]
[null,null,null,null,null,null,null,null,null,null,"Ontvangen en geaccepteerde declaraties mbt jaar T","Ontvangen en geaccepteerde declaraties mbt jaar T-1"]
[null,null,null," Implantaten"]
[null,null,null," Overige prestaties"]
[null,null,null," TOTAAL code 545",null,null,null,null,null,null,{"$f":"SUM(K193:K194)","v":0},{"$f":"SUM(L193:L194)","v":0}]
[]
[null,null,null,"  CODE 545 - KOSTEN SPECIALISTEN MONDZIEKTEN EN KAAKCHIRURGIE",null,null,null,null,null,null,"Aantal mbt 2018","Aantal mbt 2017"]
[null,null,null,null,null,null,null,null,null,null,"Ontvangen en geaccepteerde declaraties mbt jaar T","Ontvangen en geaccepteerde declaraties mbt jaar T"]
[null,null,null," Implantaten"]
[]
[null,null,null," CODE 610 - OVERIGE KOSTEN \n ZIEKENHUISZORG EN CURATIEVE ZORG",null,null,null,"Lasten 2018",null,"Lasten 2017",null,"Lasten 2016 \nen ouder"]
[null,null,null,null,null,null,null,"Lasten 2018 inclusief balanspost","Ontvangen en geaccepteerde declaraties mbt 2018","Lasten 2017 inclusief balanspost","Ontvangen en geaccepteerde declaraties mbt 2017","Ontvangen en geaccepteerde declaraties mbt 2016 en ouder"]
[null,null,null,null,null,null,null,null,"Ontvangen en geaccepteerde declaraties mbt jaar T-1",null,null,"Ontvangen en geaccepteerde declaraties mbt jaar T-1"]
[null,null,null," Kosten van eerstelijnsdiagnostiek aangevraagd \n door eerstelijns zorgaanbieders, geleverd door \n huisartsenlaboratoria"]
[null,null,null," Trombosediensten"]
[null,null,null," SKION en NTS"]
[null,null,null," TOTAAL code 610",null,null,null,{"$f":"SUM(H204:H206)","v":0},{"$f":"SUM(I204:I206)","v":0},{"$f":"SUM(J204:J206)","v":0},{"$f":"SUM(K204:K206)","v":0},{"$f":"SUM(L204:L206)","v":0}]
[]
[null,null,null," NAAR INSTELLINGEN",null,"Code",null,"Lasten 2018",null,"Lasten 2017",null,"Lasten 2016 \nen ouder"]
[null,null,null,null,null,null,null,"Lasten 2018 inclusief balanspost","Ontvangen en geaccepteerde declaraties mbt 2018","Lasten 2017 inclusief balanspost","Ontvangen en geaccepteerde declaraties mbt 2017","Ontvangen en geaccepteerde declaraties mbt 2016 en ouder"]
[null,null,null,null,null,null,null,null,"Ontvangen en geaccepteerde declaraties mbt jaar T-1",null,null,"Ontvangen en geaccepteerde declaraties mbt jaar T-1"]
[null,null,null," Overige zorgproducten",null,"611"]
[null,null,null," Academische ziekenhuizen"]
[null,null,null," Algemene ziekenhuizen"]
[null,null,null," Zelfstandige behandelcentra"]
[null,null,null," Overige zorgaanbieders "]
[null,null,null," TOTAAL code 611",null,null,null,{"$f":"SUM(H213:H216)","v":0},{"$f":"SUM(I213:I216)","v":0},{"$f":"SUM(J213:J216)","v":0},{"$f":"SUM(K213:K216)","v":0},{"$f":"SUM(L213:L216)","v":0}]
[]
[null,null,null,{"$f":"NOW()","v":"2019-02-05T13:41:52.070"},null,null,null,null,null,null,null,{"$f":"CONCATENATE(\"Specifieke informatie C, \",LOWER(A180))","v":"Specifieke informatie C, pagina 5"}]
[]
["Pagina 6",null,null,{"$f":"CONCATENATE(\"JAARSTAAT ZVW \", jaar_id)","v":"JAARSTAAT ZVW 2018"}]
[null,null,null,"SPECIFIEKE INFORMATIE C (BELEIDSINFORMATIE)"]
[null,null,null,{"$f":"IF(naw_uzovi_zorgverzekeraar<>\"0000\",CONCATENATE(UPPER(naw_naam_zorgverzekeraar),\", \",UPPER(naw_plaats_zorgverzekeraar)),\"\")","v":""},null,null,null,null,null,null,null,{"$f":"CONCATENATE(\"UZOVI: \",naw_uzovi_zorgverzekeraar)","v":"UZOVI: 0000"}]
[null,null,null,"SPECIFICATIES VAN KOSTEN EN PRODUCTIE"]
[null,null,null,"RUBRIEK 06 MEDISCH SPECIALISTISCHE ZORG - vervolg"]
[null,null,null,"  CODE 611 - OVERIGE ZORGPRODUCTEN",null,null,null,null,null,"Ontvangen en geaccepteerde declaraties mbt 2018","Ontvangen en geaccepteerde declaraties mbt 2017"]
[null,null,null,null,null,null,null,null,null,null,"Ontvangen en geaccepteerde declaraties mbt jaar T"]
[null,null,null," Poliklinische bevalling zonder medische indicatie"]
[null,null,null," Poliklinische bevalling op medische indicatie"]
[null,null,null," Verplichte poliklinische bevalling zonder medische indicatie"]
[null,null,null," Gezonde moeder"]
[null,null,null," Gezonde zuigeling"]
[null,null,null," Kosten MSVT"]
[null,null,null," Kosten stollingsfactoren"]
[]
[null,null,null,"  CODE 612 - KOSTEN ADD-ONS ",null,null,null,"Lasten 2018",null,"Lasten 2017",null,"Lasten 2016 \nen ouder"]
[null,null,null,null,null,null,null,"Lasten 2018 inclusief balanspost","Ontvangen en geaccepteerde declaraties mbt 2018","Lasten 2017 inclusief balanspost","Ontvangen en geaccepteerde declaraties mbt 2017","Ontvangen en geaccepteerde declaraties mbt 2016 en ouder"]
[null,null,null,null,null,null,null,null,"Ontvangen en geaccepteerde declaraties mbt jaar T-1",null,null,"Ontvangen en geaccepteerde declaraties mbt jaar T-1"]
[null,null,null," Geneesmiddelen"," Academische ziekenhuizen"]
[null,null,null,null," Algemene ziekenhuizen"]
[null,null,null,null," Zelfstandige behandelcentra"]
[null,null,null,null," Overige zorgaanbieders "]
[null,null,null," IC"," Academische ziekenhuizen"]
[null,null,null,null," Algemene ziekenhuizen"]
[null,null,null,null," Zelfstandige behandelcentra"]
[null,null,null,null," Overige zorgaanbieders"]
[null,null,null," TOTAAL code 612",null,null,null,{"$f":"SUM(H239:H246)","v":0},{"$f":"SUM(I239:I246)","v":0},{"$f":"SUM(J239:J246)","v":0},{"$f":"SUM(K239:K246)","v":0},{"$f":"SUM(L239:L246)","v":0}]
[]
[]
[]
[]
[]
[]
[]
[]
[]
[]
[]
[]
[]
[]
[null,null,null,{"$f":"NOW()","v":"2019-02-05T13:41:52.070"},null,null,null,null,null,null,null,{"$f":"CONCATENATE(\"Specifieke informatie C, \",LOWER(A221))","v":"Specifieke informatie C, pagina 6"}]
[]
["Pagina 7",null,null,{"$f":"CONCATENATE(\"JAARSTAAT ZVW \", jaar_id)","v":"JAARSTAAT ZVW 2018"}]
[null,null,null,"SPECIFIEKE INFORMATIE C (BELEIDSINFORMATIE)"]
[null,null,null,{"$f":"IF(naw_uzovi_zorgverzekeraar<>\"0000\",CONCATENATE(UPPER(naw_naam_zorgverzekeraar),\", \",UPPER(naw_plaats_zorgverzekeraar)),\"\")","v":""},null,null,null,null,null,null,null,{"$f":"CONCATENATE(\"UZOVI: \",naw_uzovi_zorgverzekeraar)","v":"UZOVI: 0000"}]
[null,null,null,"SPECIFICATIES VAN KOSTEN EN PRODUCTIE"]
[null,null,null,"RUBRIEK 06 MEDISCH SPECIALISTISCHE ZORG - vervolg"]
[null,null,null,"DBC-zorgproducten NAAR INSTELLING",null,"Code",null,"Lasten 2018",null,"Lasten 2017",null,"Lasten 2016 \nen ouder"]
[null,null,null,null,null,null,null,"Lasten 2018 inclusief balanspost","Ontvangen en geaccepteerde declaraties mbt 2018","Lasten 2017 inclusief balanspost","Ontvangen en geaccepteerde declaraties mbt 2017","Ontvangen en geaccepteerde declaraties mbt 2016 en ouder"]
[null,null,null,null,null,null,null,null,"Ontvangen en geaccepteerde declaraties mbt jaar T-1",null,null,"Ontvangen en geaccepteerde declaraties mbt jaar T-1"]
[null,null,null," Integrale kosten DBC-zorgproduct \n gereguleerde segment",null,"613.1"]
[null,null,null," Academische ziekenhuizen"]
[null,null,null," Algemene ziekenhuizen"]
[null,null,null," Zelfstandige behandelcentra"]
[null,null,null," Overige zorgaanbieders "]
[null,null,null," TOTAAL code 613.1",null,null,null,{"$f":"SUM(H273:H276)","v":0},{"$f":"SUM(I273:I276)","v":0},{"$f":"SUM(J273:J276)","v":0},{"$f":"SUM(K273:K276)","v":0},{"$f":"SUM(L273:L276)","v":0}]
[null,null,null," Integrale kosten DBC-zorgproduct \n vrije segment",null,"615.1"]
[null,null,null," Academische ziekenhuizen"]
[null,null,null," Algemene ziekenhuizen"]
[null,null,null," Zelfstandige behandelcentra"]
[null,null,null," Overige zorgaanbieders "]
[null,null,null," TOTAAL code 615.1",null,null,null,{"$f":"SUM(H279:H282)","v":0},{"$f":"SUM(I279:I282)","v":0},{"$f":"SUM(J279:J282)","v":0},{"$f":"SUM(K279:K282)","v":0},{"$f":"SUM(L279:L282)","v":0}]
[]
[null,null,null,"RUBRIEK 09 ZIEKENVERVOER"]
[null,null,null,"  CODE 650 - VERVOER PER AMBULANCE/HELIKOPTER",null,null,null,null,null,null,"Ontvangen en geaccepteerde declaraties mbt 2018","Ontvangen en geaccepteerde declaraties mbt 2017"]
[]
[null,null,null," Ambulanceritten"]
[null,null,null," Helikoptervluchten"]
[null,null,null," TOTAAL code 650",null,null,null,null,null,null,{"$f":"SUM(K288:K289)","v":0},{"$f":"SUM(L288:L289)","v":0}]
[]
[null,null,null,"  CODE 650 - VERVOER PER AMBULANCE/HELIKOPTER - vervolg",null,null,null,null,null,null,"Aantal mbt 2018","Aantal mbt 2017"]
[null,null,null,null,null,null,null,null,null,null,"Ontvangen en geaccepteerde declaraties mbt jaar T","Ontvangen en geaccepteerde declaraties mbt jaar T"]
[null,null,null," Ambulanceritten",null," Spoed"]
[null,null,null,null,null," Besteld"]
[null,null,null," Helikoptervluchten"]
[]
[]
[]
[]
[]
[]
[]
[null,null,null,{"$f":"NOW()","v":"2019-02-05T13:41:52.070"},null,null,null,null,null,null,null,{"$f":"CONCATENATE(\"Specifieke informatie C, \",LOWER(A264))","v":"Specifieke informatie C, pagina 7"}]
[]
["Pagina 8",null,null,{"$f":"CONCATENATE(\"JAARSTAAT ZVW \", jaar_id)","v":"JAARSTAAT ZVW 2018"}]
[null,null,null,"SPECIFIEKE INFORMATIE C (BELEIDSINFORMATIE)"]
[null,null,null,{"$f":"IF(naw_uzovi_zorgverzekeraar<>\"0000\",CONCATENATE(UPPER(naw_naam_zorgverzekeraar),\", \",UPPER(naw_plaats_zorgverzekeraar)),\"\")","v":""},null,null,null,null,null,null,null,{"$f":"CONCATENATE(\"UZOVI: \",naw_uzovi_zorgverzekeraar)","v":"UZOVI: 0000"}]
[null,null,null,"SPECIFICATIES VAN KOSTEN EN PRODUCTIE"]
[null,null,null,"RUBRIEK 09 ZIEKENVERVOER"]
[null,null,null,"  CODE 651 - VERVOER PER OPENBAAR VERVOER, TAXI EN EIGEN AUTO",null,null,null,null,null,null,"Ontvangen en geaccepteerde declaraties mbt 2018","Ontvangen en geaccepteerde declaraties mbt 2017"]
[]
[null,null,null," Nierdialysepatiënten",null," Openbaar vervoer"]
[null,null,null,null,null," Taxi"]
[null,null,null,null,null," Eigen auto"]
[null,null,null," Chemokuur- en radiotherapie \n patiënten + immuuntherapie",null," Openbaar vervoer"]
[null,null,null,null,null," Taxi"]
[null,null,null,null,null," Eigen auto"]
[null,null,null," Rolstoelgebruikers",null," Openbaar vervoer"]
[null,null,null,null,null," Taxi"]
[null,null,null,null,null," Eigen auto"]
[null,null,null," Visueel gehandicapten",null," Openbaar vervoer"]
[null,null,null,null,null," Taxi"]
[null,null,null,null,null," Eigen auto"]
[null,null,null," Overige patiënten met toestemming\n o.g.v. hardheidsclausule",null," Openbaar vervoer"]
[null,null,null,null,null," Taxi"]
[null,null,null,null,null," Eigen auto"]
[null,null,null," Intensieve kindzorg",null," Openbaar vervoer"]
[null,null,null,null,null," Taxi"]
[null,null,null,null,null," Eigen auto"]
[null,null,null," TOTAAL code 651",null,null,null,null,null,null,{"$f":"SUM(K313:K330)","v":0},{"$f":"SUM(L313:L330)","v":0}]
[]
[null,null,null,"  CODE 651 - VERVOER PER OPENBAAR VERVOER, TAXI EN EIGEN AUTO - vervolg",null,null,null,null,null,null,"Aantal mbt 2018","Aantal mbt 2017"]
[null,null,null,null,null,null,null,null,null,null,"Ontvangen en geaccepteerde declaraties mbt jaar T","Ontvangen en geaccepteerde declaraties mbt jaar T"]
[null,null,null," Totaal verzekerden met kosten hoger dan de wettelijke eigen bijdrage"]
[]
[]
[]
[]
[]
[]
[]
[]
[]
[]
[]
[]
[null,null,null,{"$f":"NOW()","v":"2019-02-05T13:41:52.070"},null,null,null,null,null,null,null,{"$f":"CONCATENATE(\"Specifieke informatie C, \",LOWER(A306))","v":"Specifieke informatie C, pagina 8"}]
[]
["Pagina 9",null,null,{"$f":"CONCATENATE(\"JAARSTAAT ZVW \", jaar_id)","v":"JAARSTAAT ZVW 2018"}]
[null,null,null,"SPECIFIEKE INFORMATIE C (BELEIDSINFORMATIE)"]
[null,null,null,{"$f":"IF(naw_uzovi_zorgverzekeraar<>\"0000\",CONCATENATE(UPPER(naw_naam_zorgverzekeraar),\", \",UPPER(naw_plaats_zorgverzekeraar)),\"\")","v":""},null,null,null,null,null,null,null,{"$f":"CONCATENATE(\"UZOVI: \",naw_uzovi_zorgverzekeraar)","v":"UZOVI: 0000"}]
[null,null,null,"SPECIFICATIES VAN KOSTEN EN PRODUCTIE"]
[null,null,null,"RUBRIEK 10 GENEESKUNDIGE GEESTELIJKE GEZONDHEIDSZORG"]
[null,null,null,"  CODE 661 - SPECIALISTISCHE GGZ MET VERBLIJF",null,null,null,null,null,null,"Aantal mbt 2018","Aantal mbt 2017"]
[null,null,null,null,null,null,null,null,null,null,"Ontvangen en geaccepteerde declaraties mbt jaar T","Ontvangen en geaccepteerde declaraties mbt jaar T"]
[null,null,null," GGZ met verblijf"]
[]
[null,null,null,"  CODE 661.1 - LANGDURIGE GGZ",null,null,null,null,null,null,"Aantal mbt 2018","Aantal mbt 2017"]
[null,null,null,null,null,null,null,null,null,null,"Ontvangen en geaccepteerde declaraties mbt jaar T","Ontvangen en geaccepteerde declaraties mbt jaar T"]
[null,null,null," Gedeclareerde en geaccepteerde ZZP's "]
[]
[null,null,null,"  CODE 662 - SPECIALISTISCHE GGZ ZONDER VERBLIJF",null,null,null,null,null,null,"Aantal mbt 2018","Aantal mbt 2017"]
[null,null,null,null,null,null,null,null,null,null,"Ontvangen en geaccepteerde declaraties mbt jaar T","Ontvangen en geaccepteerde declaraties mbt jaar T"]
[null,null,null," GGZ zonder verblijf"]
[]
[null,null,null,"  CODE 662 - KOSTEN SPECIALISTISCHE GGZ ZONDER \n                    VERBLIJF",null,null,null,null,null,"Ontvangen en geaccepteerde declaraties mbt 2018","Ontvangen en geaccepteerde declaraties mbt 2017","Ontvangen en geaccepteerde declaraties mbt 2016 en ouder"]
[]
[null,null,null," Instellingen "]
[null,null,null," Zelfstandig gevestigden "]
[null,null,null," TOTAAL code 662",null,null,null,null,null,{"$f":"SUM(J369:J370)","v":0},{"$f":"SUM(K369:K370)","v":0},{"$f":"SUM(L369:L370)","v":0}]
[]
[null,null,null,"  CODE 665 - GENERALISTISCHE BASIS GGZ",null,null,null,null,null,"Ontvangen en geaccepteerde declaraties mbt 2018","Ontvangen en geaccepteerde declaraties mbt 2017","Ontvangen en geaccepteerde declaraties mbt 2016 en ouder"]
[]
[null,null,null," Instellingen "]
[null,null,null," Zelfstandig gevestigden"]
[null,null,null," TOTAAL code 665",null,null,null,null,null,{"$f":"SUM(J375:J376)","v":0},{"$f":"SUM(K375:K376)","v":0},{"$f":"SUM(L375:L376)","v":0}]
[]
[null,null,null,"  CODE 665 - GENERALISTISCHE BASIS GGZ",null,null,null,null,null,null,"Ontvangen en geaccepteerde declaraties mbt 2018","Ontvangen en geaccepteerde declaraties mbt 2017"]
[]
[null,null,null," Basis GGZ - Kort"]
[null,null,null," Basis GGZ - Middel"]
[null,null,null," Basis GGZ - Intensief "]
[null,null,null," Basis GGZ - Chronisch"]
[null,null,null," Onvolledig behandeltraject"]
[null,null,null," TOTAAL code 665",null,null,null,null,null,null,{"$f":"SUM(K381:K385)","v":0},{"$f":"SUM(L381:L385)","v":0}]
[]
[]
[]
[null,null,null,{"$f":"NOW()","v":"2019-02-05T13:41:52.070"},null,null,null,null,null,null,null,{"$f":"CONCATENATE(\"Specifieke informatie C, \",LOWER(A350))","v":"Specifieke informatie C, pagina 9"}]
[]
["Pagina 10",null,null,{"$f":"CONCATENATE(\"JAARSTAAT ZVW \", jaar_id)","v":"JAARSTAAT ZVW 2018"}]
[null,null,null,"SPECIFIEKE INFORMATIE C (BELEIDSINFORMATIE)"]
[null,null,null,{"$f":"IF(naw_uzovi_zorgverzekeraar<>\"0000\",CONCATENATE(UPPER(naw_naam_zorgverzekeraar),\", \",UPPER(naw_plaats_zorgverzekeraar)),\"\")","v":""},null,null,null,null,null,null,null,{"$f":"CONCATENATE(\"UZOVI: \",naw_uzovi_zorgverzekeraar)","v":"UZOVI: 0000"}]
[null,null,null,"SPECIFICATIES VAN KOSTEN EN PRODUCTIE"]
[null,null,null,"RUBRIEK 10 GENEESKUNDIGE GEESTELIJKE GEZONDHEIDSZORG - vervolg"]
[null,null,null,"  CODE 665 - GENERALISTISCHE BASIS GGZ",null,null,null,null,null,null,"Aantal mbt 2018","Aantal mbt 2017"]
[null,null,null,null,null,null,null,null,null,null,"Ontvangen en geaccepteerde declaraties mbt jaar T","Ontvangen en geaccepteerde declaraties mbt jaar T"]
[null,null,null," Basis GGZ - Kort"]
[null,null,null," Basis GGZ - Middel"]
[null,null,null," Basis GGZ - Intensief "]
[null,null,null," Basis GGZ - Chronisch"]
[null,null,null," Onvolledig behandeltraject "]
[]
[null,null,null,"RUBRIEK 11 GERIATISCHE REVALIDATIE EN EERSTELIJNSVERBLIJF"]
[null,null,null," GERIATISCHE REVALIDATIEZORG EN EERSTELIJNSVERBLIJF ",null,null,null,null,null,null,"Aantal mbt 2018","Aantal mbt 2017"]
[null,null,null,null,null,null,null,null,null,null,"Ontvangen en geaccepteerde declaraties mbt jaar T","Ontvangen en geaccepteerde declaraties mbt jaar T"]
[null,null,null," Totaal aantal DBC's geriatische revalidatiezorg (code 670)"]
[]
[null,null,null,"RUBRIEK 12 KRAAMZORG"]
[null,null,null,"  CODE 680 - KRAAMZORG - TOTAAL AANTAL VERZEKERDEN",null,null,null,null,null,null,"Aantal mbt 2018","Aantal mbt 2017"]
[null,null,null,null,null,null,null,null,null,null,"Ontvangen en geaccepteerde declaraties mbt jaar T","Ontvangen en geaccepteerde declaraties mbt jaar T"]
[null,null,null," 1. 00 t/m 23 uur"]
[null,null,null," 2. 24 t/m 31 uur"]
[null,null,null," 3. 32 t/m 39 uur"]
[null,null,null," 4. 40 t/m 47 uur"]
[null,null,null," 5. 48 t/m 55 uur"]
[null,null,null," 6. 56 t/m 63 uur"]
[null,null,null," 7. 64 t/m 71 uur"]
[null,null,null," 8. 72 t/m 80 uur"]
[null,null,null," 9. 81 uur of meer"]
[null,null,null," TOTAAL",null,null,null,null,null,null,{"$f":"SUM(K413:K421)","v":0},{"$f":"SUM(L413:L421)","v":0}]
[]
[null,null,null,"  CODE 680 - KRAAMZORG - TOTAAL AANTAL UREN",null,null,null,null,null,null,"Aantal mbt 2018","Aantal mbt 2017"]
[null,null,null,null,null,null,null,null,null,null,"Ontvangen en geaccepteerde declaraties mbt jaar T","Ontvangen en geaccepteerde declaraties mbt jaar T"]
[null,null,null," 1. 00 t/m 23 uur"]
[null,null,null," 2. 24 t/m 31 uur"]
[null,null,null," 3. 32 t/m 39 uur"]
[null,null,null," 4. 40 t/m 47 uur"]
[null,null,null," 5. 48 t/m 55 uur"]
[null,null,null," 6. 56 t/m 63 uur"]
[null,null,null," 7. 64 t/m 71 uur"]
[null,null,null," 8. 72 t/m 80 uur"]
[null,null,null," 9. 81 uur of meer"]
[null,null,null," TOTAAL",null,null,null,null,null,null,{"$f":"SUM(K426:K434)","v":0},{"$f":"SUM(L426:L434)","v":0}]
[null,null,null,{"$f":"NOW()","v":"2019-02-05T13:41:52.070"},null,null,null,null,null,null,null,{"$f":"CONCATENATE(\"Specifieke informatie C, \",LOWER(A392))","v":"Specifieke informatie C, pagina 10"}]
[]
["Pagina 11",null,null,{"$f":"CONCATENATE(\"JAARSTAAT ZVW \", jaar_id)","v":"JAARSTAAT ZVW 2018"}]
[null,null,null,"SPECIFIEKE INFORMATIE C (BELEIDSINFORMATIE)"]
[null,null,null,{"$f":"IF(naw_uzovi_zorgverzekeraar<>\"0000\",CONCATENATE(UPPER(naw_naam_zorgverzekeraar),\", \",UPPER(naw_plaats_zorgverzekeraar)),\"\")","v":""},null,null,null,null,null,null,null,{"$f":"CONCATENATE(\"UZOVI: \",naw_uzovi_zorgverzekeraar)","v":"UZOVI: 0000"}]
[null,null,null,"SPECIFICATIES VAN KOSTEN EN PRODUCTIE"]
[null,null,null,"RUBRIEK 13 DIVERSE OVERIGE KOSTEN"]
[null,null,null," CODE 700 - OVERIGE KOSTEN",null,null,null,null,null,"Ontvangen en geaccepteerde declaraties mbt 2018","Ontvangen en geaccepteerde declaraties mbt 2017","Ontvangen en geaccepteerde declaraties mbt 2016 en ouder"]
[]
[null,null,null," Kosten i.v.m. beleidsregel innovatie t.b.v. nieuwe zorgprestaties "]
[null,null,null," Programma Stoppen met Roken"]
[null,null,null," Kosten Integrale geboortezorg "]
[null,null,null," Kosten Eerstelijnsverblijf "]
[null,null,null," TOTAAL code 700",null,null,null,null,null,{"$f":"SUM(J445:J446,J447:J448)","v":0},{"$f":"SUM(K445:K448)","v":0},{"$f":"SUM(L445:L446)","v":0}]
[]
[null,null,null," CODE 701 - OVERIGE GENEESKUNDIGE ZORG",null,null,null,null,null,null,"Ontvangen en geaccepteerde declaraties mbt 2018","Ontvangen en geaccepteerde declaraties mbt 2017"]
[]
[null,null,null," Geneeskundige individuele zorg bij tuberculose en infectieziekten door GGD'en"]
[null,null,null," Huidtherapie"]
[null,null,null," Orthoptie"]
[null,null,null," Optometrie"]
[null,null,null," Kosten voetzorg bij Diabetes Mellitus type 2"]
[null,null,null," Koemelkallergietest (niet horend bij Multidisciplinaire Zorg) "]
[null,null,null," Regiefunctie complexe wondzorg"]
[null,null,null," TOTAAL code 701",null,null,null,null,null,null,{"$f":"SUM(K453:K459)","v":0},{"$f":"SUM(L453:L459)","v":0}]
[]
[null,null,null," CODE 702 - ZINTUIGLIJK GEHANDICAPTEN",null,null,null,null,null,null,"Ontvangen en geaccepteerde declaraties mbt 2018","Ontvangen en geaccepteerde declaraties mbt 2017"]
[]
[null,null,null," Kosten van zorg ivm visuele beperking "]
[null,null,null," Kosten van zorg ivm auditieve beperking "]
[null,null,null," Kosten van zorg ivm taalontwikkelingsstoornis"]
[null,null,null," TOTAAL code 702",null,null,null,null,null,null,{"$f":"SUM(K464:K466)","v":0},{"$f":"SUM(L464:L466)","v":0}]
[]
[]
[]
[]
[]
[]
[]
[]
[]
[]
[]
[null,null,null,{"$f":"NOW()","v":"2019-02-05T13:41:52.070"},null,null,null,null,null,null,null,{"$f":"CONCATENATE(\"Specifieke informatie C, \",LOWER(A438))","v":"Specifieke informatie C, pagina 11"}]
[]
["Pagina 12",null,null,{"$f":"CONCATENATE(\"JAARSTAAT ZVW \", jaar_id)","v":"JAARSTAAT ZVW 2018"}]
[null,null,null,"SPECIFIEKE INFORMATIE C (BELEIDSINFORMATIE)"]
[null,null,null,{"$f":"IF(naw_uzovi_zorgverzekeraar<>\"0000\",CONCATENATE(UPPER(naw_naam_zorgverzekeraar),\", \",UPPER(naw_plaats_zorgverzekeraar)),\"\")","v":""},null,null,null,null,null,null,null,{"$f":"CONCATENATE(\"UZOVI: \",naw_uzovi_zorgverzekeraar)","v":"UZOVI: 0000"}]
[null,null,null,"SPECIFICATIES VAN KOSTEN EN PRODUCTIE"]
[null,null,null,"RUBRIEK 15 GRENSOVERSCHRIJDENDE ZORG"]
[null,null,null,"KOSTEN GEMAAKT IN HET BUITENLAND, VIA VERZEKERAAR"]
[null,null,null,"  CODE 720 - GRENSOVERSCHRIJDENDE ZORG",null,null,null,null,null,null,"Ontvangen en geaccepteerde declaraties mbt 2018","Ontvangen en geaccepteerde declaraties mbt 2017"]
[null,null,null,null,null,null,null,null,null,null,"Ontvangen en geaccepteerde declaraties mbt jaar T","Ontvangen en geaccepteerde declaraties mbt jaar T"]
[null,null,null," Kosten gemaakt in het buitenland \n van Zvw verzekerden die wonen in \n Nederland",null," Op basis van een contract "]
[null,null,null,null,null," Niet op basis van een contract "]
[null,null,null," Kosten gemaakt in het buitenland van Zvw verzekerden die wonen in het buitenland"]
[null,null,null," TOTAAL kosten gemaakt in het buitenland, via verzekeraar",null,null,null,null,null,null,{"$f":"SUM(K489:K491)","v":0},{"$f":"SUM(L489:L491)","v":0}]
[null,null,null," TOTAAL van toepassing verordening of verdrag inzake sociale zekerheid, \n via CAK ",null,null,null,null,null,null,{"$f":"SUM(K494-K492)","v":0},{"$f":"SUM(L494-L492)","v":0}]
[null,null,null," TOTAAL code 720",null,null,null,null,null,null,{"$f":"Kostenverzamelstaat!J107","v":0},{"$f":"Kostenverzamelstaat!L107","v":0}]
[]
[null,null,null,"  CODE 720 - GRENSOVERSCHRIJDENDE ZORG",null,null,null,null,null,null,"Aantal verzekerden mbt 2018","Aantal verzekerden mbt 2017"]
[null,null,null,null,null,null,null,null,null,null,"Ontvangen en geaccepteerde declaraties mbt jaar T","Ontvangen en geaccepteerde declaraties mbt jaar T"]
[null,null,null," Kosten gemaakt in het buitenland \n van Zvw verzekerden die wonen in \n Nederland",null," Op basis van een contract"]
[null,null,null,null,null," Niet op basis van een contract"]
[null,null,null," Kosten gemaakt in het buitenland van Zvw verzekerden die wonen in het buitenland"]
[null,null,null," TOTAAL kosten gemaakt in het buitenland, via verzekeraar",null,null,null,null,null,null,{"$f":"SUM(K498:K500)","v":0},{"$f":"SUM(L498:L500)","v":0}]
[]
[null,null,null,"INFORMATIE T.B.V. AFREKENINGEN MET HET BUITENLAND"]
[null,null,null,"KOSTEN PER RUBRIEK NAAR LEEFTIJD"]
[null,null,null," RUBRIEK 01 - HUISARTSENZORG en MDZ",null,null,null,null,null,null,null,"Lasten 2018 inclusief balanspost"]
[]
[null,null,null," Verzekerden tot en met 64 jaar"]
[null,null,null," Verzekerden van 65 jaar en ouder"]
[null,null,null," Totaal niet gespecificeerd",null,null,null,null,null,null,null,{"$f":"Kostenverzamelstaat!I24-SUM('Specifieke informatie C'!L507:L508)","v":0}]
[null,null,null," TOTAAL rubriek 01",null,null,null,null,null,null,null,{"$f":"SUM(L507:L509)","v":0}]
[]
[]
[]
[null,null,null,{"$f":"NOW()","v":"2019-02-05T13:41:52.070"},null,null,null,null,null,null,null,{"$f":"CONCATENATE(\"Specifieke informatie C, \",LOWER(A481))","v":"Specifieke informatie C, pagina 12"}]
[]
["Pagina 13",null,null,{"$f":"CONCATENATE(\"JAARSTAAT ZVW \", jaar_id)","v":"JAARSTAAT ZVW 2018"}]
[null,null,null,"SPECIFIEKE INFORMATIE C (BELEIDSINFORMATIE)"]
[null,null,null,{"$f":"IF(naw_uzovi_zorgverzekeraar<>\"0000\",CONCATENATE(UPPER(naw_naam_zorgverzekeraar),\", \",UPPER(naw_plaats_zorgverzekeraar)),\"\")","v":""},null,null,null,null,null,null,null,{"$f":"CONCATENATE(\"UZOVI: \",naw_uzovi_zorgverzekeraar)","v":"UZOVI: 0000"}]
[null,null,null,"INFORMATIE T.B.V. AFREKENINGEN MET HET BUITENLAND"]
[null,null,null,"KOSTEN PER RUBRIEK NAAR LEEFTIJD"]
[null,null,null," RUBRIEK 02 - FARMACEUTISCHE ZORG",null,null,null,null,null,null,null,"Lasten 2018 inclusief balanspost"]
[]
[null,null,null," Verzekerden tot en met 64 jaar"]
[null,null,null," Verzekerden van 65 jaar en ouder"]
[null,null,null," Totaal niet gespecificeerd",null,null,null,null,null,null,null,{"$f":"Kostenverzamelstaat!I26-SUM('Specifieke informatie C'!L523:L524)","v":0}]
[null,null,null," TOTAAL rubriek 02",null,null,null,null,null,null,null,{"$f":"SUM(L523:L525)","v":0}]
[]
[null,null,null," RUBRIEK 03 - VERPLEGING EN VERZORGING",null,null,null,null,null,null,null,"Lasten 2018 inclusief balanspost"]
[]
[null,null,null," Verzekerden tot en met 64 jaar"]
[null,null,null," Verzekerden van 65 jaar en ouder"]
[null,null,null," Totaal niet gespecificeerd",null,null,null,null,null,null,null,{"$f":"Kostenverzamelstaat!I28-SUM('Specifieke informatie C'!L530:L531)","v":0}]
[null,null,null," TOTAAL rubriek 03",null,null,null,null,null,null,null,{"$f":"SUM(L530:L532)","v":0}]
[]
[null,null,null," RUBRIEK 04 - MONDZORG",null,null,null,null,null,null,null,"Lasten 2018 inclusief balanspost"]
[]
[null,null,null," Verzekerden tot en met 64 jaar"]
[null,null,null," Verzekerden van 65 jaar en ouder"]
[null,null,null," Totaal niet gespecificeerd",null,null,null,null,null,null,null,{"$f":"Kostenverzamelstaat!I33-SUM(L537:L538)","v":0}]
[null,null,null," TOTAAL rubriek 04",null,null,null,null,null,null,null,{"$f":"SUM(L537:L539)","v":0}]
[]
[null,null,null," RUBRIEK 05 - VERLOSKUNDIGE ZORG",null,null,null,null,null,null,null,"Lasten 2018 inclusief balanspost"]
[]
[null,null,null," Verzekerden tot en met 64 jaar"]
[null,null,null," Verzekerden van 65 jaar en ouder"]
[null,null,null," Totaal niet gespecificeerd",null,null,null,null,null,null,null,{"$f":"Kostenverzamelstaat!I37-SUM(L544)","v":0}]
[null,null,null," TOTAAL rubriek 05",null,null,null,null,null,null,null,{"$f":"SUM(L544,L546)","v":0}]
[]
[null,null,null," RUBRIEK 06 - MEDISCH SPECIALISTISCHE ZORG ",null,null,null,null,null,null,null,"Lasten 2018 inclusief balanspost"]
[]
[null,null,null," Verzekerden tot en met 64 jaar"]
[null,null,null," Verzekerden van 65 jaar en ouder"]
[null,null,null," Totaal niet gespecificeerd",null,null,null,null,null,null,null,{"$f":"Kostenverzamelstaat!I59-SUM('Specifieke informatie C'!L551:L552)","v":0}]
[null,null,null," TOTAAL rubriek 06",null,null,null,null,null,null,null,{"$f":"SUM(L551:L553)","v":0}]
[]
[]
[]
[]
[null,null,null,{"$f":"NOW()","v":"2019-02-05T13:41:52.070"},null,null,null,null,null,null,null,{"$f":"CONCATENATE(\"Specifieke informatie C, \",LOWER(A516))","v":"Specifieke informatie C, pagina 13"}]
[]
["Pagina 14",null,null,{"$f":"CONCATENATE(\"JAARSTAAT ZVW \", jaar_id)","v":"JAARSTAAT ZVW 2018"}]
[null,null,null,"SPECIFIEKE INFORMATIE C (BELEIDSINFORMATIE)"]
[null,null,null,{"$f":"IF(naw_uzovi_zorgverzekeraar<>\"0000\",CONCATENATE(UPPER(naw_naam_zorgverzekeraar),\", \",UPPER(naw_plaats_zorgverzekeraar)),\"\")","v":""},null,null,null,null,null,null,null,{"$f":"CONCATENATE(\"UZOVI: \",naw_uzovi_zorgverzekeraar)","v":"UZOVI: 0000"}]
[null,null,null,"INFORMATIE T.B.V. AFREKENINGEN MET HET BUITENLAND"]
[null,null,null,"KOSTEN PER RUBRIEK NAAR LEEFTIJD"]
[null,null,null," RUBRIEK 07 - PARAMEDISCHE ZORG",null,null,null,null,null,null,null,"Lasten 2018 inclusief balanspost"]
[]
[null,null,null," Verzekerden tot en met 64 jaar"]
[null,null,null," Verzekerden van 65 jaar en ouder"]
[null,null,null," Totaal niet gespecificeerd",null,null,null,null,null,null,null,{"$f":"Kostenverzamelstaat!I66-SUM('Specifieke informatie C'!L568:L569)","v":0}]
[null,null,null," TOTAAL rubriek 07",null,null,null,null,null,null,null,{"$f":"SUM(L568:L570)","v":0}]
[]
[null,null,null," RUBRIEK 08 - HULPMIDDELEN ZORG",null,null,null,null,null,null,null,"Lasten 2018 inclusief balanspost"]
[]
[null,null,null," Verzekerden tot en met 64 jaar"]
[null,null,null," Verzekerden van 65 jaar en ouder"]
[null,null,null," Totaal niet gespecificeerd",null,null,null,null,null,null,null,{"$f":"Kostenverzamelstaat!I68-SUM('Specifieke informatie C'!L575:L576)","v":0}]
[null,null,null," TOTAAL rubriek 08",null,null,null,null,null,null,null,{"$f":"SUM(L575:L577)","v":0}]
[]
[null,null,null," RUBRIEK 09 - ZIEKENVERVOER",null,null,null,null,null,null,null,"Lasten 2018 inclusief balanspost"]
[]
[null,null,null," Verzekerden tot en met 64 jaar"]
[null,null,null," Verzekerden van 65 jaar en ouder"]
[null,null,null," Totaal niet gespecificeerd",null,null,null,null,null,null,null,{"$f":"Kostenverzamelstaat!I73-SUM('Specifieke informatie C'!L582:L583)","v":0}]
[null,null,null," TOTAAL rubriek 09",null,null,null,null,null,null,null,{"$f":"SUM(L582:L584)","v":0}]
[]
[null,null,null," RUBRIEK 10 - GENEESKUNDIGE GGZ",null,null,null,null,null,null,null,"Lasten 2018 inclusief balanspost"]
[]
[null,null,null," Verzekerden tot en met 64 jaar"]
[null,null,null," Verzekerden van 65 jaar en ouder"]
[null,null,null," Totaal niet gespecificeerd",null,null,null,null,null,null,null,{"$f":"Kostenverzamelstaat!I94-SUM('Specifieke informatie C'!L589:L590)","v":0}]
[null,null,null," TOTAAL rubriek 10",null,null,null,null,null,null,null,{"$f":"SUM(L589:L591)","v":0}]
[]
[null,null,null," RUBRIEK 12 - KRAAMZORG",null,null,null,null,null,null,null,"Lasten 2018 inclusief balanspost"]
[]
[null,null,null," Verzekerden tot en met 64 jaar"]
[null,null,null," Verzekerden van 65 jaar en ouder"]
[null,null,null," Totaal niet gespecificeerd",null,null,null,null,null,null,null,{"$f":"Kostenverzamelstaat!I100-SUM('Specifieke informatie C'!L596)","v":0}]
[null,null,null," TOTAAL rubriek 12",null,null,null,null,null,null,null,{"$f":"SUM(L596,L598)","v":0}]
[]
[]
[]
[]
[null,null,null,{"$f":"NOW()","v":"2019-02-05T13:41:52.070"},null,null,null,null,null,null,null,{"$f":"CONCATENATE(\"Specifieke informatie C, \",LOWER(A561))","v":"Specifieke informatie C, pagina 14"}]

{"sheet":"Contractinformatie","index":7,"n_rows":89,"n_cols":12,"rows_kept":89,"cut":false,"hidden":false,"merged":[[88,3,88,4],[78,3,78,9],[79,3,79,9],[80,3,80,9],[81,3,81,9],[76,3,76,9],[77,3,77,11],[64,11,65,11],[64,10,65,10],[69,5,69,9],[67,3,67,9],[69,3,69,4],[66,3,66,9],[68,3,68,9],[71,10,72,10],[71,11,72,11],[73,3,73,11],[74,3,74,9],[75,3,75,9],[71,3,72,9],[58,3,58,9],[46,3,46,4],[55,3,55,9],[60,3,60,9],[64,3,65,9],[57,3,57,9],[59,3,59,9],[61,3,61,9],[56,3,56,9],[53,11,54,11],[35,3,35,9],[36,3,36,9],[32,3,32,9],[23,10,24,10],[38,3,38,9],[37,3,37,9],[33,3,33,9],[53,3,54,9],[53,10,54,10],[30,11,31,11],[23,11,24,11],[30,10,31,10],[20,3,20,9],[26,3,26,9],[19,3,19,9],[25,3,25,9],[34,3,34,9],[30,3,31,9],[27,3,27,9],[23,3,24,9],[10,11,11,11],[16,3,16,11],[12,3,12,11],[17,3,17,9],[18,3,18,9],[10,10,11,10],[10,3,11,9],[13,3,13,9],[14,3,14,9],[15,3,15,9]]}
[null,null,"INVULSPECIFICATIES SPECIFIEKE INFORMATIE C"]
[]
[]
[]
[]
["Pagina 1",null,null,{"$f":"CONCATENATE(\"JAARSTAAT ZVW \", jaar_id)","v":"JAARSTAAT ZVW 2018"}]
[null,null,null,"SPECIFIEKE INFORMATIE C (CONTRACTINFORMATIE)"]
[null,null,null,{"$f":"IF(naw_uzovi_zorgverzekeraar<>\"0000\",CONCATENATE(UPPER(naw_naam_zorgverzekeraar),\", \",UPPER(naw_plaats_zorgverzekeraar)),\"\")","v":""},null,null,null,null,null,null,null,{"$f":"CONCATENATE(\"UZOVI: \",naw_uzovi_zorgverzekeraar)","v":"UZOVI: 0000"}]
[]
[null,null,null,"CONTRACTINFORMATIE HUISARTSENZORG EN MULTIDISCIPLINAIRE ZORG, rubriek 01"]
[null,null,null,null,null,null,null,null,null,null,"Lasten inclusief balanspost 2018","Lasten inclusief balanspost 2017"]
[null,null,null,null,null,null,null,null,null,null,"Ontvangen en geaccepteerde declaraties mbt jaar T","Ontvangen en geaccepteerde declaraties mbt jaar T"]
[null,null,null," Huisartsenzorg, codes 503, 504, 505, 506,507, 515"]
[null,null,null," Gecontracteerde zorg"]
[null,null,null," Niet gecontracteerde zorg"]
[null,null,null," Subtotaal huisartsenzorg",null,null,null,null,null,null,{"$f":"SUM(K14:K15)","v":0},{"$f":"SUM(L14:L15)","v":0}]
[null,null,null," Multidisciplinaire zorg, codes 510 en 516"]
[null,null,null," Gecontracteerde zorg"]
[null,null,null," Niet gecontracteerde zorg"]
[null,null,null," Subtotaal multidisciplinaire zorg",null,null,null,null,null,null,{"$f":"SUM(K18:K19)","v":0},{"$f":"SUM(L18:L19)","v":0}]
[null,null,null," TOTAAL RUBRIEK 01",null,null,null,null,null,null,{"$f":"SUM(K16,K20)","v":0},{"$f":"SUM(L16,L20)","v":0}]
[]
[null,null,null,"CONTRACTINFORMATIE VERPLEGING EN VERZORGING, rubriek 03"]
[null,null,null,null,null,null,null,null,null,null,"Lasten inclusief balanspost 2018","Lasten inclusief balanspost 2017"]
[null,null,null,null,null,null,null,null,null,null,"Ontvangen en geaccepteerde declaraties mbt jaar T","Ontvangen en geaccepteerde declaraties mbt jaar T"]
[null,null,null," Gecontracteerde zorg"]
[null,null,null," Niet gecontracteerde zorg"]
[null,null,null," TOTAAL RUBRIEK 03",null,null,null,null,null,null,{"$f":"SUM(K26:K27)","v":0},{"$f":"SUM(L26:L27)","v":0}]
[]
[null,null,null,"CONTRACTINFORMATIE MEDISCH SPECIALISTISCHE ZORG, rubriek 06"]
[null,null,null,null,null,null,null,null,null,null,"Lasten inclusief balanspost 2018","Lasten inclusief balanspost 2017"]
[null,null,null,null,null,null,null,null,null,null,"Ontvangen en geaccepteerde declaraties mbt jaar T","Ontvangen en geaccepteerde declaraties mbt jaar T"]
[null,null,null," Gecontracteerde zorg: aanneemsom"]
[null,null,null," Gecontracteerde zorg: plafond"]
[null,null,null," Gecontracteerde zorg: nacalculatie bij aanneemsommen en plafondcontracten"]
[null,null,null," Gecontracteerde zorg: open einde contract"]
[null,null,null," Subtotaal gecontracteerde zorg",null,null,null,null,null,null,{"$f":"SUM(K33:K36)","v":0},{"$f":"SUM(L33:L36)","v":0}]
[null,null,null," Niet gecontracteerde zorg"]
[null,null,null," TOTAAL RUBRIEK 06",null,null,null,null,null,null,{"$f":"SUM(K37:K38)","v":0},{"$f":"SUM(L37:L38)","v":0}]
[]
[]
[]
[]
[]
[]
[]
[null,null,null,{"$f":"NOW()","v":"2019-02-05T13:41:52.070"},null,null,null,null,null,null,null,{"$f":"CONCATENATE(\"Contractinformatie, \",LOWER(A6))","v":"Contractinformatie, pagina 1"}]
[]
["Pagina 2",null,null,{"$f":"CONCATENATE(\"JAARSTAAT ZVW \", jaar_id)","v":"JAARSTAAT ZVW 2018"}]
[null,null,null,"SPECIFIEKE INFORMATIE C (CONTRACTINFORMATIE)"]
[null,null,null,{"$f":"IF(naw_uzovi_zorgverzekeraar<>\"0000\",CONCATENATE(UPPER(naw_naam_zorgverzekeraar),\", \",UPPER(naw_plaats_zorgverzekeraar)),\"\")","v":""},null,null,null,null,null,null,null,{"$f":"CONCATENATE(\"UZOVI: \",naw_uzovi_zorgverzekeraar)","v":"UZOVI: 0000"}]
[]
[null,null,null,"CONTRACTINFORMATIE GGZ, rubriek 10"]
[null,null,null,null,null,null,null,null,null,null,"Lasten inclusief balanspost 2018","Lasten inclusief balanspost 2017"]
[null,null,null,null,null,null,null,null,null,null,"Ontvangen en geaccepteerde declaraties mbt jaar T","Ontvangen en geaccepteerde declaraties mbt jaar T"]
[null,null,null," Gecontracteerde zorg: aanneemsom"]
[null,null,null," Gecontracteerde zorg: plafond"]
[null,null,null," Gecontracteerde zorg: nacalculatie bij aanneemsommen en plafondcontracten"]
[null,null,null," Gecontracteerde zorg: open einde contract"]
[null,null,null," Subtotaal gecontracteerde zorg",null,null,null,null,null,null,{"$f":"SUM(K56:K59)","v":0},{"$f":"SUM(L56:L59)","v":0}]
[null,null,null," Niet gecontracteerde zorg"]
[null,null,null," TOTAAL RUBRIEK 10",null,null,null,null,null,null,{"$f":"SUM(K60:K61)","v":0},{"$f":"SUM(L60:L61)","v":0}]
[]
[null,null,null,"CONTRACTINFORMATIE ZINTUIGLIJK GEHANDICAPTEN, code 702"]
[null,null,null,null,null,null,null,null,null,null,"Lasten inclusief balanspost 2018","Lasten inclusief balanspost 2017"]
[null,null,null,null,null,null,null,null,null,null,"Ontvangen en geaccepteerde declaraties mbt jaar T","Ontvangen en geaccepteerde declaraties mbt jaar T"]
[null,null,null," Gecontracteerde zorg"]
[null,null,null," Niet gecontracteerde zorg"]
[null,null,null," TOTAAL CODE 702",null,null,null,null,null,null,{"$f":"SUM(K67:K68)","v":0},{"$f":"SUM(L67:L68)","v":0}]
[]
[null,null,null,"CONTRACTINFORMATIE GERIATRISCHE REVALIDATIE EN EESTELIJNSVERBLIJF, rubriek 11"]
[null,null,null,null,null,null,null,null,null,null,"Lasten inclusief balanspost 2018","Lasten inclusief balanspost 2017"]
[null,null,null,null,null,null,null,null,null,null,"Ontvangen en geaccepteerde declaraties mbt jaar T","Ontvangen en geaccepteerde declaraties mbt jaar T"]
[null,null,null," Geriatrische Revalidatie, code 670"]
[null,null,null," Gecontracteerde zorg"]
[null,null,null," Niet gecontracteerde zorg"]
[null,null,null," Subtotaal Geriatrische Revalidatie ",null,null,null,null,null,null,{"$f":"SUM(K75:K76)","v":0}]
[null,null,null," Eerstelijnsverblijf, code 671"]
[null,null,null," Gecontracteerde zorg"]
[null,null,null," Niet gecontracteerde zorg"]
[null,null,null," Subtotaal Eerstelijnsverblijf ",null,null,null,null,null,null,{"$f":"SUM(K79:K80)","v":0}]
[null,null,null," TOTAAL RUBRIEK 11",null,null,null,null,null,null,{"$f":"SUM(K77,K81)","v":0}]
[]
[]
[]
[]
[]
[]
[null,null,null,{"$f":"NOW()","v":"2019-02-05T13:41:52.070"},null,null,null,null,null,null,null,{"$f":"CONCATENATE(\"Contractinformatie, \",LOWER(A49))","v":"Contractinformatie, pagina 2"}]

{"sheet":"Controleoverzicht","index":8,"n_rows":227,"n_cols":12,"rows_kept":227,"cut":false,"hidden":false,"merged":[[150,11,151,11],[150,3,151,8],[145,3,145,8],[150,10,151,10],[150,9,151,9],[147,3,147,8],[142,11,143,11],[142,10,143,10],[187,11,188,11],[187,3,188,8],[167,3,167,8],[168,3,168,8],[187,9,188,9],[187,10,188,10],[174,3,174,8],[170,3,170,8],[169,3,169,7],[175,3,175,8],[148,3,148,8],[146,3,146,8],[46,3,46,9],[85,9,86,9],[62,3,62,9],[56,3,56,9],[42,3,42,9],[65,3,65,9],[60,3,60,9],[79,3,79,8],[61,3,61,9],[78,3,78,9],[45,3,45,9],[59,3,59,9],[67,3,67,9],[58,3,58,9],[57,3,57,9],[74,3,74,9],[99,11,100,11],[99,9,100,9],[99,10,100,10],[99,3,100,8],[53,10,54,10],[85,11,86,11],[53,3,54,9],[77,3,77,9],[80,3,80,8],[72,3,72,9],[70,3,70,9],[55,3,55,9],[69,3,69,9],[68,3,68,9],[87,3,87,8],[75,3,75,9],[85,10,86,10],[82,3,82,9],[73,3,73,9],[66,3,66,9],[116,3,116,8],[119,3,119,8],[118,3,118,7],[120,3,120,8],[117,3,117,8],[142,9,143,9],[144,3,144,8],[122,3,122,8],[124,3,124,8],[121,3,121,8],[110,3,110,8],[9,11,10,11],[9,9,10,9],[13,9,14,9],[9,3,10,8],[9,10,10,10],[17,10,18,10],[17,9,18,9],[19,3,19,8],[13,3,14,8],[17,11,18,11],[13,11,14,11],[24,3,24,8],[11,3,11,8],[15,3,15,8],[17,3,18,8],[13,10,14,10],[22,11,23,11],[22,10,23,10],[22,9,23,9],[20,3,20,8],[22,3,23,8],[27,11,28,11],[53,11,54,11],[27,10,28,10],[33,3,33,9],[29,3,29,9],[31,3,31,9],[30,3,30,9],[25,3,25,8],[37,3,37,9],[35,3,35,9],[44,3,44,9],[41,3,41,9],[38,3,38,9],[43,3,43,9],[34,3,34,9],[40,3,40,9],[27,3,28,9],[39,3,39,9],[32,3,32,9],[36,3,36,9],[192,3,192,8],[189,3,189,8],[63,3,63,9],[64,3,64,9],[109,3,109,8],[105,3,105,8],[104,3,104,8],[71,3,71,9],[154,3,154,8],[112,3,112,8],[76,3,76,9],[81,3,81,8],[107,3,107,8],[101,3,101,8],[89,3,89,8],[103,3,103,8],[85,3,86,8],[88,3,88,8],[106,3,106,8],[166,3,166,8],[160,3,160,8],[164,3,164,8],[161,3,161,8],[162,3,162,8],[190,3,190,8],[191,3,191,8],[90,3,90,8],[91,3,91,8],[172,3,172,8],[171,3,171,8],[173,3,173,8],[113,3,113,8],[108,3,108,8],[123,3,123,8],[142,3,143,8],[158,3,158,7],[165,3,165,8],[163,3,163,7],[155,3,155,8],[152,3,152,7],[159,3,159,8],[156,3,156,8],[157,3,157,8],[153,3,153,7],[114,3,114,8],[115,3,115,8],[102,3,102,8],[111,3,111,8],[199,11,200,11],[215,3,215,8],[206,3,206,8],[199,9,200,9],[199,10,200,10],[209,10,210,10],[209,11,210,11],[213,3,213,8],[203,3,203,8],[199,3,200,8],[193,3,193,8],[214,3,214,8],[209,3,210,8],[216,3,216,8],[209,9,210,9],[196,3,196,8],[204,3,204,8],[205,3,205,8],[220,3,220,8],[194,3,194,8],[195,3,195,8],[211,3,211,8],[212,3,212,8],[201,3,201,8],[202,3,202,8],[207,3,207,8],[217,3,217,8],[218,3,218,8],[219,3,219,8]]}
[null,null,"SPECIFICATIES CONTROLEOVERZICHT"]
[]
[]
[]
[]
["Pagina 1",null,null,{"$f":"CONCATENATE(\"JAARSTAAT ZVW \", jaar_id)","v":"JAARSTAAT ZVW 2018"}]
[null,null,null,"CONTROLEOVERZICHT"]
[null,null,null,{"$f":"IF(naw_uzovi_zorgverzekeraar<>\"0000\",CONCATENATE(UPPER(naw_naam_zorgverzekeraar),\", \",UPPER(naw_plaats_zorgverzekeraar)),\"\")","v":""},null,null,null,null,null,null,null,{"$f":"CONCATENATE(\"UZOVI: \",naw_uzovi_zorgverzekeraar)","v":"UZOVI: 0000"}]
[null,null,null,"SPECIFIEKE INFORMATIE A"]
[null,null,null," SPECIFICATIES KOSTEN NAAR DEELBIJDRAGE",null,null,null,null,null,"Lasten 2018 inclusief balanspost","Kosten naar deelbijdrage","Verschil"]
[]
[null,null,null," Totaal kosten naar deelbijdrage (totaal lasten t/m rubriek 16) - \n inclusief balanspost",null,null,null,null,null,{"$f":"Kostenverzamelstaat!I110","v":0},{"$f":"'Specifieke informatie A'!K19","v":0},{"$f":"IF(J12<>K12,J12-K12,\"\")","v":""}]
[]
[null,null,null," SPECIFICATIES KOSTEN NAAR DEELBIJDRAGE",null,null,null,null,null,"Ontvangen en \ngeaccepteerde \ndeclaraties mbt \n2016 en ouder","Kosten naar deelbijdrage","Verschil"]
[]
[null,null,null," Totaal kosten naar deelbijdrage (totaal lasten t/m rubriek 16)",null,null,null,null,null,{"$f":"Kostenverzamelstaat!M110","v":0},{"$f":"'Specifieke informatie A'!L19","v":0},{"$f":"IF(J16<>K16,J16-K16,\"\")","v":""}]
[]
[null,null,null," KOSTEN PER CODENUMMER - LASTEN 2018 INCLUSIEF BALANSPOST",null,null,null,null,null,"Volgens\nkostenver- \nzamelstaat","Volgens\ndetail- \nspecificatie ","Verschil"]
[]
[null,null,null," 720 Grensoverschrijdende zorg",null,null,null,null,null,{"$f":"Kostenverzamelstaat!I107","v":0},{"$f":"'Specifieke informatie A'!K37","v":0},{"$f":"IF(J20<>K20,J20-K20,\"\")","v":""}]
[null,null,null," 730 Kwaliteitsgelden",null,null,null,null,null,{"$f":"Kostenverzamelstaat!I109","v":0},{"$f":"'Specifieke informatie A'!K72","v":0},{"$f":"IF(J21<>K21,J21-K21,\"\")","v":""}]
[]
[null,null,null," KOSTEN PER CODENUMMER - ONTVANGEN EN GEACCEPTEERDE \n                                            DECLARATIES MBT 2016 EN OUDER",null,null,null,null,null,"Volgens\nkostenver- \nzamelstaat","Volgens\ndetail- \nspecificatie ","Verschil"]
[]
[null,null,null," 720 Grensoverschrijdende zorg",null,null,null,null,null,{"$f":"Kostenverzamelstaat!M107","v":0},{"$f":"'Specifieke informatie A'!L37","v":0},{"$f":"IF(J25<>K25,J25-K25,\"\")","v":""}]
[null,null,null," 730 Kwaliteitsgelden ",null,null,null,null,null,{"$f":"Kostenverzamelstaat!M109","v":0},{"$f":"'Specifieke informatie A'!L72","v":0},{"$f":"IF(J26<>K26,J26-K26,\"\")","v":""}]
[]
[null,null,null," KOSTENVERZAMELSTAAT",null,null,null,null,null,null,"Kosten balanspost mbt 2018","Kosten balanspost mbt 2017"]
[]
[null,null,null," 503 Bijzondere betalingen",null,null,null,null,null,null,{"$f":"Kostenverzamelstaat!I16-Kostenverzamelstaat!J16","v":0},{"$f":"Kostenverzamelstaat!K16-Kostenverzamelstaat!L16","v":0}]
[null,null,null," 504 Avond-, nacht- en weekenddiensten",null,null,null,null,null,null,{"$f":"Kostenverzamelstaat!I17-Kostenverzamelstaat!J17","v":0},{"$f":"Kostenverzamelstaat!K17-Kostenverzamelstaat!L17","v":0}]
[null,null,null," 505 Inschrijftarieven",null,null,null,null,null,null,{"$f":"Kostenverzamelstaat!I18-Kostenverzamelstaat!J18","v":0},{"$f":"Kostenverzamelstaat!K18-Kostenverzamelstaat!L18","v":0}]
[null,null,null," 506 Consulttarieven",null,null,null,null,null,null,{"$f":"Kostenverzamelstaat!I19-Kostenverzamelstaat!J19","v":0},{"$f":"Kostenverzamelstaat!K19-Kostenverzamelstaat!L19","v":0}]
[null,null,null," 507 Overige tarieven",null,null,null,null,null,null,{"$f":"Kostenverzamelstaat!I20-Kostenverzamelstaat!J20","v":0},{"$f":"Kostenverzamelstaat!K20-Kostenverzamelstaat!L20","v":0}]
[null,null,null," 510 Multidisciplinaire zorg ",null,null,null,null,null,null,{"$f":"Kostenverzamelstaat!I21-Kostenverzamelstaat!J21","v":0},{"$f":"Kostenverzamelstaat!K21-Kostenverzamelstaat!L21","v":0}]
[null,null,null," 515 Resultaatbeloning en zorgvernieuwing huisartsen",null,null,null,null,null,null,{"$f":"Kostenverzamelstaat!I22-Kostenverzamelstaat!J22","v":0},{"$f":"Kostenverzamelstaat!K22-Kostenverzamelstaat!L22","v":0}]
[null,null,null," 516 Resultaatbeloning en zorgvernieuwing MDZ",null,null,null,null,null,null,{"$f":"Kostenverzamelstaat!I23-Kostenverzamelstaat!J23","v":0},{"$f":"Kostenverzamelstaat!K23-Kostenverzamelstaat!L23","v":0}]
[null,null,null," 520 Farmaceutische hulp",null,null,null,null,null,null,{"$f":"Kostenverzamelstaat!I26-Kostenverzamelstaat!J26","v":0},{"$f":"Kostenverzamelstaat!K26-Kostenverzamelstaat!L26","v":0}]
[null,null,null," 530 Kosten van verpleging en verzorging",null,null,null,null,null,null,{"$f":"Kostenverzamelstaat!I28-Kostenverzamelstaat!J28","v":0},{"$f":"Kostenverzamelstaat!K28-Kostenverzamelstaat!L28","v":0}]
[null,null,null," 545 Kosten specialisten mondziekten en kaakchirurgie",null,null,null,null,null,null,{"$f":"Kostenverzamelstaat!I52-Kostenverzamelstaat!J52","v":0},{"$f":"Kostenverzamelstaat!K52-Kostenverzamelstaat!L52","v":0}]
[null,null,null," 560.1 Kosten mondzorg volwassen verzekerden",null,null,null,null,null,null,{"$f":"Kostenverzamelstaat!I30-Kostenverzamelstaat!J30","v":0},{"$f":"Kostenverzamelstaat!K30-Kostenverzamelstaat!L30","v":0}]
[null,null,null," 560.2 Kosten mondzorg jeugdige verzekerden",null,null,null,null,null,null,{"$f":"Kostenverzamelstaat!I31-Kostenverzamelstaat!J31","v":0},{"$f":"Kostenverzamelstaat!K31-Kostenverzamelstaat!L31","v":0}]
[null,null,null," 561 Kosten gebitsprothesen",null,null,null,null,null,null,{"$f":"Kostenverzamelstaat!I32-Kostenverzamelstaat!J32","v":0},{"$f":"Kostenverzamelstaat!K32-Kostenverzamelstaat!L32","v":0}]
[null,null,null," 580 Kosten verloskundige hulp door verloskundigen",null,null,null,null,null,null,{"$f":"Kostenverzamelstaat!I35-Kostenverzamelstaat!J35","v":0},{"$f":"Kostenverzamelstaat!K35-Kostenverzamelstaat!L35","v":0}]
[null,null,null," 581 Kosten verloskundige hulp door huisartsen",null,null,null,null,null,null,{"$f":"Kostenverzamelstaat!I36-Kostenverzamelstaat!J36","v":0},{"$f":"Kostenverzamelstaat!K36-Kostenverzamelstaat!L36","v":0}]
[null,null,null," 610 Overige kosten ziekenhuiszorg en curatieve zorg",null,null,null,null,null,null,{"$f":"Kostenverzamelstaat!I53-Kostenverzamelstaat!J53","v":0},{"$f":"Kostenverzamelstaat!K53-Kostenverzamelstaat!L53","v":0}]
[null,null,null," 611 Overige zorgproducten",null,null,null,null,null,null,{"$f":"Kostenverzamelstaat!I54-Kostenverzamelstaat!J54","v":0},{"$f":"Kostenverzamelstaat!K54-Kostenverzamelstaat!L54","v":0}]
[null,null,null,{"$f":"NOW()","v":"2019-02-05T13:41:52.070"},null,null,null,null,null,null,null,{"$f":"CONCATENATE(\"Controleoverzicht \",LOWER(A6))","v":"Controleoverzicht pagina 1"}]
[]
["Pagina 2",null,null,{"$f":"CONCATENATE(\"JAARSTAAT ZVW \", jaar_id)","v":"JAARSTAAT ZVW 2018"}]
[null,null,null,"CONTROLEOVERZICHT"]
[null,null,null,{"$f":"IF(naw_uzovi_zorgverzekeraar<>\"0000\",CONCATENATE(UPPER(naw_naam_zorgverzekeraar),\", \",UPPER(naw_plaats_zorgverzekeraar)),\"\")","v":""},null,null,null,null,null,null,null,{"$f":"CONCATENATE(\"UZOVI: \",naw_uzovi_zorgverzekeraar)","v":"UZOVI: 0000"}]
[null,null,null,"SPECIFIEKE INFORMATIE A - vervolg"]
[null,null,null," KOSTENVERZAMELSTAAT",null,null,null,null,null,null,"Kosten balanspost mbt 2018","Kosten balanspost mbt 2017"]
[]
[null,null,null," 612 Kosten add-ons",null,null,null,null,null,null,{"$f":"Kostenverzamelstaat!I55-Kostenverzamelstaat!J55","v":0},{"$f":"Kostenverzamelstaat!K55-Kostenverzamelstaat!L55","v":0}]
[null,null,null," 613.1 Integrale kosten DBC-zorgproduct gereguleerde segment",null,null,null,null,null,null,{"$f":"Kostenverzamelstaat!I56-Kostenverzamelstaat!J56","v":0},{"$f":"Kostenverzamelstaat!K56-Kostenverzamelstaat!L56","v":0}]
[null,null,null," 615.1 Integrale kosten DBC-zorgproduct vrije segment",null,null,null,null,null,null,{"$f":"Kostenverzamelstaat!I57-Kostenverzamelstaat!J57","v":0},{"$f":"Kostenverzamelstaat!K57-Kostenverzamelstaat!L57","v":0}]
[null,null,null," 619 Kosten en honoraria extramuraal werkende specialisten",null,null,null,null,null,null,{"$f":"Kostenverzamelstaat!I58-Kostenverzamelstaat!J58","v":0},{"$f":"Kostenverzamelstaat!K58-Kostenverzamelstaat!L58","v":0}]
[null,null,null," 620 Kosten fysiotherapie",null,null,null,null,null,null,{"$f":"Kostenverzamelstaat!I61-Kostenverzamelstaat!J61","v":0},{"$f":"Kostenverzamelstaat!K61-Kostenverzamelstaat!L61","v":0}]
[null,null,null," 621 Kosten oefentherapie Mensendieck/Cesar",null,null,null,null,null,null,{"$f":"Kostenverzamelstaat!I62-Kostenverzamelstaat!J62","v":0},{"$f":"Kostenverzamelstaat!K62-Kostenverzamelstaat!L62","v":0}]
[null,null,null," 623 Kosten logopedie",null,null,null,null,null,null,{"$f":"Kostenverzamelstaat!I63-Kostenverzamelstaat!J63","v":0},{"$f":"Kostenverzamelstaat!K63-Kostenverzamelstaat!L63","v":0}]
[null,null,null," 624 Kosten ergotherapie",null,null,null,null,null,null,{"$f":"Kostenverzamelstaat!I64-Kostenverzamelstaat!J64","v":0},{"$f":"Kostenverzamelstaat!K64-Kostenverzamelstaat!L64","v":0}]
[null,null,null," 625 Kosten dieetadvisering",null,null,null,null,null,null,{"$f":"Kostenverzamelstaat!I65-Kostenverzamelstaat!J65","v":0},{"$f":"Kostenverzamelstaat!K65-Kostenverzamelstaat!L65","v":0}]
[null,null,null," 640 Hulpmiddelen",null,null,null,null,null,null,{"$f":"Kostenverzamelstaat!I68-Kostenverzamelstaat!J68","v":0},{"$f":"Kostenverzamelstaat!K68-Kostenverzamelstaat!L68","v":0}]
[null,null,null," 650 Kosten vervoer per ambulance/helikopter",null,null,null,null,null,null,{"$f":"Kostenverzamelstaat!I70-Kostenverzamelstaat!J70","v":0},{"$f":"Kostenverzamelstaat!K70-Kostenverzamelstaat!L70","v":0}]
[null,null,null," 650.1 Opbrengstenverrekeningen reionale ambulancevoorzieningen ",null,null,null,null,null,null,{"$f":"Kostenverzamelstaat!I71-Kostenverzamelstaat!J71","v":0},{"$f":"Kostenverzamelstaat!K71-Kostenverzamelstaat!L71","v":0}]
[null,null,null," 651 Kosten vervoer per openbaar vervoer, taxi en eigen auto",null,null,null,null,null,null,{"$f":"Kostenverzamelstaat!I72-Kostenverzamelstaat!J72","v":0},{"$f":"Kostenverzamelstaat!K72-Kostenverzamelstaat!L72","v":0}]
[null,null,null," 661 Kosten specialistische GGZ met verblijf",null,null,null,null,null,null,{"$f":"Kostenverzamelstaat!I90-Kostenverzamelstaat!J90","v":0},{"$f":"Kostenverzamelstaat!K90-Kostenverzamelstaat!L90","v":0}]
[null,null,null," 661.1 Kosten LGGZ (langdurige GGZ, jaar 2 en 3)",null,null,null,null,null,null,{"$f":"Kostenverzamelstaat!I91-Kostenverzamelstaat!J91","v":0},{"$f":"Kostenverzamelstaat!K91-Kostenverzamelstaat!L91","v":0}]
[null,null,null," 662 Kosten specialistische GGZ zonder verblijf",null,null,null,null,null,null,{"$f":"Kostenverzamelstaat!I92-Kostenverzamelstaat!J92","v":0},{"$f":"Kostenverzamelstaat!K92-Kostenverzamelstaat!L92","v":0}]
[null,null,null," 665 Generalistische basis GGZ",null,null,null,null,null,null,{"$f":"Kostenverzamelstaat!I93-Kostenverzamelstaat!J93","v":0},{"$f":"Kostenverzamelstaat!K93-Kostenverzamelstaat!L93","v":0}]
[null,null,null," 670 Geriatische revalidatiezorg",null,null,null,null,null,null,{"$f":"Kostenverzamelstaat!I96-Kostenverzamelstaat!J96","v":0},{"$f":"Kostenverzamelstaat!K96-Kostenverzamelstaat!L96","v":0}]
[null,null,null," 671 Eerstelijnsverblijf",null,null,null,null,null,null,{"$f":"Kostenverzamelstaat!I97-Kostenverzamelstaat!J97","v":0}]
[null,null,null," 680 Kraamzorg",null,null,null,null,null,null,{"$f":"Kostenverzamelstaat!I100-Kostenverzamelstaat!J100","v":0},{"$f":"Kostenverzamelstaat!K100-Kostenverzamelstaat!L100","v":0}]
[null,null,null," 700 Overige kosten",null,null,null,null,null,null,{"$f":"Kostenverzamelstaat!I102-Kostenverzamelstaat!J102","v":0},{"$f":"Kostenverzamelstaat!K102-Kostenverzamelstaat!L102","v":0}]
[null,null,null," 701 Overige geneeskundige zorg ",null,null,null,null,null,null,{"$f":"Kostenverzamelstaat!I103-Kostenverzamelstaat!J103","v":0},{"$f":"Kostenverzamelstaat!K103-Kostenverzamelstaat!L103","v":0}]
[null,null,null," 702 Kosten van zorg zintuiglijk gehandicapten",null,null,null,null,null,null,{"$f":"Kostenverzamelstaat!I104-Kostenverzamelstaat!J104","v":0},{"$f":"Kostenverzamelstaat!K104-Kostenverzamelstaat!L104","v":0}]
[null,null,null," 720 Grensoverschrijdende zorg, kosten gemaakt in het buitenland, via verzekeraar ",null,null,null,null,null,null,{"$f":"Kostenverzamelstaat!I107-Kostenverzamelstaat!J107","v":0},{"$f":"Kostenverzamelstaat!K107-Kostenverzamelstaat!L107","v":0}]
[null,null,null," 730 Kwaliteitsgelden",null,null,null,null,null,null,{"$f":"Kostenverzamelstaat!I109-Kostenverzamelstaat!J109","v":0},{"$f":"Kostenverzamelstaat!K109-Kostenverzamelstaat!L109","v":0}]
[null,null,null," 910 Schade t.l.v. het vrijwillig eigen risico",null,null,null,null,null,null,{"$f":"Kostenverzamelstaat!I115-Kostenverzamelstaat!J115","v":0},{"$f":"Kostenverzamelstaat!K115-Kostenverzamelstaat!L115","v":0}]
[null,null,null," 915 Schade t.l.v. het verplicht eigen risico",null,null,null,null,null,null,{"$f":"Kostenverzamelstaat!I116-Kostenverzamelstaat!J116","v":0},{"$f":"Kostenverzamelstaat!K116-Kostenverzamelstaat!L116","v":0}]
[null,null,null," 940 Netto premieopbrengsten",null,null,null,null,null,null,{"$f":"Kostenverzamelstaat!I118-Kostenverzamelstaat!J118","v":0},{"$f":"Kostenverzamelstaat!K118-Kostenverzamelstaat!L118","v":0}]
[]
[null,null,null,"VERGELIJKING SPECIFIEKE INFORMATIE A EN C"]
[null,null,null," LASTEN 2018 INCLUSIEF BALANSPOST",null,null,null,null,null,"Kosten- verzamelstaat","Spec. inform. C\ndetailinformatie","Verschil"]
[]
[null,null,null," 610 Overige kosten ziekenhuiszorg en curatieve zorg",null,null,null,null,null,{"$f":"Kostenverzamelstaat!I53","v":0},{"$f":"'Specifieke informatie C'!H207","v":0},{"$f":"IF(J88<>K88,J88-K88,\"\")","v":""}]
[null,null,null," 611 Overige zorgproducten (Instellingen)",null,null,null,null,null,{"$f":"Kostenverzamelstaat!I54","v":0},{"$f":"'Specifieke informatie C'!H217","v":0},{"$f":"IF(J89<>K89,J89-K89,\"\")","v":""}]
[null,null,null," 612 Kosten add ons",null,null,null,null,null,{"$f":"Kostenverzamelstaat!I55","v":0},{"$f":"'Specifieke informatie C'!H247","v":0},{"$f":"IF(J90<>K90,J90-K90,\"\")","v":""}]
[null,null,null," 613.1 Integrale kosten DBC-zorgproduct gereguleerde segment",null,null,null,null,null,{"$f":"Kostenverzamelstaat!I56","v":0},{"$f":"'Specifieke informatie C'!H277","v":0},{"$f":"IF(J91<>K91,J91-K91,\"\")","v":""}]
[null,null,null," 615.1 Integrale kosten DBC-zorgproduct vrije segment",null,null,null,null,null,{"$f":"Kostenverzamelstaat!I57","v":0},{"$f":"'Specifieke informatie C'!H283","v":0},{"$f":"IF(J92<>K92,J92-K92,\"\")","v":""}]
[]
[null,null,null,{"$f":"NOW()","v":"2019-02-05T13:41:52.070"},null,null,null,null,null,null,null,{"$f":"CONCATENATE(\"Controleoverzicht \",LOWER(A50))","v":"Controleoverzicht pagina 2"}]
[]
["Pagina 3",null,null,{"$f":"CONCATENATE(\"JAARSTAAT ZVW \", jaar_id)","v":"JAARSTAAT ZVW 2018"}]
[null,null,null,"CONTROLEOVERZICHT"]
[null,null,null,{"$f":"IF(naw_uzovi_zorgverzekeraar<>\"0000\",CONCATENATE(UPPER(naw_naam_zorgverzekeraar),\", \",UPPER(naw_plaats_zorgverzekeraar)),\"\")","v":""},null,null,null,null,null,null,null,{"$f":"CONCATENATE(\"UZOVI: \",naw_uzovi_zorgverzekeraar)","v":"UZOVI: 0000"}]
[null,null,null,"VERGELIJKING SPECIFIEKE INFORMATIE A EN C"]
[null,null,null," ONTVANGEN EN GEACCEPTEERDE DECLARATIES mbt 2018",null,null,null,null,null,"Kosten- verzamelstaat","Spec. inform. C\ndetailinformatie","Verschil"]
[]
[null,null,null," 503 Bijzondere betalingen",null,null,null,null,null,{"$f":"Kostenverzamelstaat!J16","v":0},{"$f":"'Specifieke informatie C'!K16","v":0},{"$f":"IF(J102<>K102,J102-K102,\"\")","v":""}]
[null,null,null," 506 Consulttarieven",null,null,null,null,null,{"$f":"Kostenverzamelstaat!J19","v":0},{"$f":"'Specifieke informatie C'!K28","v":0},""]
[null,null,null," 507 Overige tarieven",null,null,null,null,null,{"$f":"Kostenverzamelstaat!J20","v":0},{"$f":"'Specifieke informatie C'!K36","v":0},""]
[null,null,null," 510 Multidisciplinaire zorg ",null,null,null,null,null,{"$f":"Kostenverzamelstaat!J21","v":0},{"$f":"'Specifieke informatie C'!K45","v":0},{"$f":"IF(J105<>K105,J105-K105,\"\")","v":""}]
[null,null,null," 515 Resultaatbeloning en zorgvernieuwing huisartsen",null,null,null,null,null,{"$f":"Kostenverzamelstaat!J22","v":0},{"$f":"'Specifieke informatie C'!K59","v":0},""]
[null,null,null," 516 Resultaatbeloning en zorgvernieuwing MDZ",null,null,null,null,null,{"$f":"Kostenverzamelstaat!J23","v":0},{"$f":"'Specifieke informatie C'!K65","v":0},""]
[null,null,null," 520 Farmaceutische hulp",null,null,null,null,null,{"$f":"Kostenverzamelstaat!J26","v":0},{"$f":"'Specifieke informatie C'!K82","v":0},""]
[null,null,null," 530 Kosten van verpleging en verzorging",null,null,null,null,null,{"$f":"Kostenverzamelstaat!J28","v":0},{"$f":"'Specifieke informatie C'!K106","v":0},""]
[null,null,null," 545 Kosten en honoraria specialisten mondziekten en kaakchirurgie",null,null,null,null,null,{"$f":"Kostenverzamelstaat!J52","v":0},{"$f":"'Specifieke informatie C'!K195","v":0},""]
[null,null,null," 560.1 Mondzorg volwassen verzekerden",null,null,null,null,null,{"$f":"Kostenverzamelstaat!J30","v":0},{"$f":"'Specifieke informatie C'!K123","v":0},""]
[null,null,null," 560.2 Mondzorg jeugdige verzekerden - specificatie tariefgroepen",null,null,null,null,null,{"$f":"Kostenverzamelstaat!J31","v":0},{"$f":"'Specifieke informatie C'!K156","v":0},""]
[null,null,null," 561 Gebitsprothesen",null,null,null,null,null,{"$f":"Kostenverzamelstaat!J32","v":0},{"$f":"'Specifieke informatie C'!K170","v":0},""]
[null,null,null," 610 Overige kosten ziekenhuiszorg en curatieve zorg",null,null,null,null,null,{"$f":"Kostenverzamelstaat!J53","v":0},{"$f":"'Specifieke informatie C'!I207","v":0},""]
[null,null,null," 611 Overige zorgproducten (Instellingen)",null,null,null,null,null,{"$f":"Kostenverzamelstaat!J54","v":0},{"$f":"'Specifieke informatie C'!I217","v":0},""]
[null,null,null," 612 Kosten add ons",null,null,null,null,null,{"$f":"Kostenverzamelstaat!J55","v":0},{"$f":"'Specifieke informatie C'!I247","v":0},""]
[null,null,null," 613.1 Integrale kosten DBC-zorgproduct gereguleerde segment",null,null,null,null,null,{"$f":"Kostenverzamelstaat!J56","v":0},{"$f":"'Specifieke informatie C'!I277","v":0},""]
[null,null,null," 615.1 Integrale kosten DBC-zorgproduct vrije segment",null,null,null,null,null,{"$f":"Kostenverzamelstaat!J57","v":0},{"$f":"'Specifieke informatie C'!I283","v":0},""]
[null,null,null," 650 Vervoer per ambulance/helikopter",null,null,null,null,null,{"$f":"Kostenverzamelstaat!J70","v":0},{"$f":"'Specifieke informatie C'!K290","v":0},""]
[null,null,null," 651 Vervoer per openbaar vervoer, taxi en eigen auto",null,null,null,null,null,{"$f":"Kostenverzamelstaat!J72","v":0},{"$f":"'Specifieke informatie C'!K331","v":0},""]
[null,null,null," 662 Kosten speciaalistische GGZ zonder verblijf",null,null,null,null,null,{"$f":"Kostenverzamelstaat!J92","v":0},{"$f":"'Specifieke informatie C'!J371","v":0},""]
[null,null,null," 665 Generalistische basis GGZ",null,null,null,null,null,{"$f":"Kostenverzamelstaat!J93","v":0},{"$f":"'Specifieke informatie C'!J377","v":0},""]
[null,null,null," 700 Overige kosten",null,null,null,null,null,{"$f":"Kostenverzamelstaat!J102","v":0},{"$f":"'Specifieke informatie C'!J449","v":0},""]
[null,null,null," 701 Overige geneeskundige zorg",null,null,null,null,null,{"$f":"Kostenverzamelstaat!J103","v":0},{"$f":"'Specifieke informatie C'!K460","v":0},""]
[null,null,null," 702 Kosten van zorg zintuiglijk gehandicapten",null,null,null,null,null,{"$f":"Kostenverzamelstaat!J104","v":0},{"$f":"'Specifieke informatie C'!K467","v":0},""]
[]
[]
[]
[]
[]
[]
[]
[]
[]
[]
[]
[null,null,null,{"$f":"NOW()","v":"2019-02-05T13:41:52.070"},null,null,null,null,null,null,null,{"$f":"CONCATENATE(\"Controleoverzicht \",LOWER(A96))","v":"Controleoverzicht pagina 3"}]
[]
["Pagina 4",null,null,{"$f":"CONCATENATE(\"JAARSTAAT ZVW \", jaar_id)","v":"JAARSTAAT ZVW 2018"}]
[null,null,null,"CONTROLEOVERZICHT"]
[null,null,null,{"$f":"IF(naw_uzovi_zorgverzekeraar<>\"0000\",CONCATENATE(UPPER(naw_naam_zorgverzekeraar),\", \",UPPER(naw_plaats_zorgverzekeraar)),\"\")","v":""},null,null,null,null,null,null,null,{"$f":"CONCATENATE(\"UZOVI: \",naw_uzovi_zorgverzekeraar)","v":"UZOVI: 0000"}]
[null,null,null,"VERGELIJKING SPECIFIEKE INFORMATIE A EN C"]
[null,null,null," LASTEN 2017 INCLUSIEF BALANSPOST",null,null,null,null,null,"Kosten- verzamelstaat","Spec. inform. C\ndetailinformatie","Verschil "]
[]
[null,null,null," 610 Overige kosten ziekenhuiszorg en curatieve zorg",null,null,null,null,null,{"$f":"Kostenverzamelstaat!K53","v":0},{"$f":"'Specifieke informatie C'!J207","v":0},{"$f":"IF(J145<>K145,J145-K145,\"\")","v":""}]
[null,null,null," 611 Overige zorgproducten (Instellingen)",null,null,null,null,null,{"$f":"Kostenverzamelstaat!K54","v":0},{"$f":"'Specifieke informatie C'!J217","v":0},{"$f":"IF(J146<>K146,J146-K146,\"\")","v":""}]
[null,null,null," 612 Kosten add ons",null,null,null,null,null,{"$f":"Kostenverzamelstaat!K55","v":0},{"$f":"'Specifieke informatie C'!J247","v":0},{"$f":"IF(J147<>K147,J147-K147,\"\")","v":""}]
[null,null,null," 613.1 Integrale kosten DBC-zorgproduct gereguleerde segment ",null,null,null,null,null,{"$f":"Kostenverzamelstaat!K56","v":0},{"$f":"'Specifieke informatie C'!J277","v":0},{"$f":"IF(J148<>K148,J148-K148,\"\")","v":""}]
[null,null,null," 615.1 Integrale kosten DBC-zorgproduct vrije segment ",null,null,null,null,null,{"$f":"Kostenverzamelstaat!K57","v":0},{"$f":"'Specifieke informatie C'!J283","v":0},{"$f":"IF(J149<>K149,J149-K149,\"\")","v":""}]
[]
[null,null,null," ONTVANGEN EN GEACCEPTEERDE DECLARATIES mbt 2017",null,null,null,null,null,"Kosten- verzamelstaat","Spec. inform. C\ndetailinformatie","Verschil"]
[]
[null,null,null," 503 Bijzondere betalingen",null,null,null,null,null,{"$f":"Kostenverzamelstaat!L16","v":0},{"$f":"'Specifieke informatie C'!L16","v":0},{"$f":"IF(J153<>K153,J153-K153,\"\")","v":""}]
[null,null,null," 506 Consulttarieven",null,null,null,null,null,{"$f":"Kostenverzamelstaat!L19","v":0},{"$f":"'Specifieke informatie C'!L28","v":0},""]
[null,null,null," 507 Overige tarieven",null,null,null,null,null,{"$f":"Kostenverzamelstaat!L20","v":0},{"$f":"'Specifieke informatie C'!L36","v":0},""]
[null,null,null," 510 Multidisciplinaire zorg ",null,null,null,null,null,{"$f":"Kostenverzamelstaat!L21","v":0},{"$f":"'Specifieke informatie C'!L45","v":0},""]
[null,null,null," 515 Resultaatbeloning en zorgvernieuwing huisartsen",null,null,null,null,null,{"$f":"Kostenverzamelstaat!L22","v":0},{"$f":"'Specifieke informatie C'!L59","v":0},""]
[null,null,null," 516 Resultaatbeloning en zorgvernieuwing MDZ",null,null,null,null,null,{"$f":"Kostenverzamelstaat!L23","v":0},{"$f":"'Specifieke informatie C'!L65","v":0},""]
[null,null,null," 520 Farmaceutische hulp",null,null,null,null,null,{"$f":"Kostenverzamelstaat!L26","v":0},{"$f":"'Specifieke informatie C'!L82","v":0},""]
[null,null,null," 530 Kosten van verpleging en verzorging",null,null,null,null,null,{"$f":"Kostenverzamelstaat!L28","v":0},{"$f":"'Specifieke informatie C'!L106","v":0},""]
[null,null,null," 545 Kosten en honoraria specialisten mondziekten en kaakchirurgie",null,null,null,null,null,{"$f":"Kostenverzamelstaat!L52","v":0},{"$f":"'Specifieke informatie C'!L195","v":0},""]
[null,null,null," 560.1 Mondzorg volwassen verzekerden",null,null,null,null,null,{"$f":"Kostenverzamelstaat!L30","v":0},{"$f":"'Specifieke informatie C'!L123","v":0},""]
[null,null,null," 560.2 Mondzorg jeugdige verzekerden - specificatie tariefgroepen",null,null,null,null,null,{"$f":"Kostenverzamelstaat!L31","v":0},{"$f":"'Specifieke informatie C'!L156","v":0},""]
[null,null,null," 561 Gebitsprothesen",null,null,null,null,null,{"$f":"Kostenverzamelstaat!L32","v":0},{"$f":"'Specifieke informatie C'!L170","v":0},""]
[null,null,null," 610 Overige kosten ziekenhuiszorg en curatieve zorg ",null,null,null,null,null,{"$f":"Kostenverzamelstaat!L53","v":0},{"$f":"'Specifieke informatie C'!K207","v":0},""]
[null,null,null," 611 Overige zorgproducten (Instellingen)",null,null,null,null,null,{"$f":"Kostenverzamelstaat!L54","v":0},{"$f":"'Specifieke informatie C'!K217","v":0},""]
[null,null,null," 612 Kosten add-ons",null,null,null,null,null,{"$f":"Kostenverzamelstaat!L55","v":0},{"$f":"'Specifieke informatie C'!K247","v":0},""]
[null,null,null," 613.1 Integrale kosten DBC-zorgproduct gereguleerde segment",null,null,null,null,null,{"$f":"Kostenverzamelstaat!L56","v":0},{"$f":"'Specifieke informatie C'!K277","v":0},""]
[null,null,null," 615.1 Integrale kosten DBC-zorgproduct vrije segment",null,null,null,null,null,{"$f":"Kostenverzamelstaat!L57","v":0},{"$f":"'Specifieke informatie C'!K283","v":0},""]
[null,null,null," 650 Vervoer per ambulance/helikopter",null,null,null,null,null,{"$f":"Kostenverzamelstaat!L70","v":0},{"$f":"'Specifieke informatie C'!L290","v":0},""]
[null,null,null," 651 Vervoer per openbaar vervoer, taxi en eigen auto",null,null,null,null,null,{"$f":"Kostenverzamelstaat!L72","v":0},{"$f":"'Specifieke informatie C'!L331","v":0},""]
[null,null,null," 662 GGZ zonder verblijf",null,null,null,null,null,{"$f":"Kostenverzamelstaat!L92","v":0},{"$f":"'Specifieke informatie C'!K371","v":0},""]
[null,null,null," 665 Generalistische basis GGZ",null,null,null,null,null,{"$f":"Kostenverzamelstaat!L93","v":0},{"$f":"'Specifieke informatie C'!K377","v":0},""]
[null,null,null," 700 Overige kosten",null,null,null,null,null,{"$f":"Kostenverzamelstaat!L102","v":0},{"$f":"'Specifieke informatie C'!K449","v":0},""]
[null,null,null," 701 Overige geneeskundige zorg",null,null,null,null,null,{"$f":"Kostenverzamelstaat!L103","v":0},{"$f":"'Specifieke informatie C'!L460","v":0},""]
[null,null,null," 702 Kosten van zorg zintuiglijk gehandicapten",null,null,null,null,null,{"$f":"Kostenverzamelstaat!L104","v":0},{"$f":"'Specifieke informatie C'!L467","v":0},""]
[]
[]
[]
[]
[null,null,null,{"$f":"NOW()","v":"2019-02-05T13:41:52.070"},null,null,null,null,null,null,null,{"$f":"CONCATENATE(\"Controleoverzicht \",LOWER(A139))","v":"Controleoverzicht pagina 4"}]
[]
["Pagina 5",null,null,{"$f":"CONCATENATE(\"JAARSTAAT ZVW \", jaar_id)","v":"JAARSTAAT ZVW 2018"}]
[null,null,null,"CONTROLEOVERZICHT"]
[null,null,null,{"$f":"IF(naw_uzovi_zorgverzekeraar<>\"0000\",CONCATENATE(UPPER(naw_naam_zorgverzekeraar),\", \",UPPER(naw_plaats_zorgverzekeraar)),\"\")","v":""},null,null,null,null,null,null,null,{"$f":"CONCATENATE(\"UZOVI: \",naw_uzovi_zorgverzekeraar)","v":"UZOVI: 0000"}]
[]
[null,null,null,"VERGELIJKING SPECIFIEKE INFORMATIE A EN C"]
[null,null,null," ONTVANGEN EN GEACCEPTEERDE DECLARATIES mbt 2016 en ouder",null,null,null,null,null,"Kosten- verzamelstaat","Spec. inform. C\ndetailinformatie","Verschil "]
[]
[null,null,null," 610 Overige kosten ziekenhuiszorg en curatieve zorg ",null,null,null,null,null,{"$f":"Kostenverzamelstaat!M53","v":0},{"$f":"'Specifieke informatie C'!L207","v":0},{"$f":"IF(J190<>K190,J190-K190,\"\")","v":""}]
[null,null,null," 611 Overige zorgproducten (Instellingen)",null,null,null,null,null,{"$f":"Kostenverzamelstaat!M54","v":0},{"$f":"'Specifieke informatie C'!L217","v":0},""]
[null,null,null," 612 Kosten add-ons",null,null,null,null,null,{"$f":"Kostenverzamelstaat!M55","v":0},{"$f":"'Specifieke informatie C'!L247","v":0},""]
[null,null,null," 613.1 Integrale kosten DBC-zorgproduct gereguleerde segment",null,null,null,null,null,{"$f":"Kostenverzamelstaat!M56","v":0},{"$f":"'Specifieke informatie C'!L277","v":0},""]
[null,null,null," 615.1 Integrale kosten DBC-zorgproduct vrije segment",null,null,null,null,null,{"$f":"Kostenverzamelstaat!M57","v":0},{"$f":"'Specifieke informatie C'!L283","v":0},""]
[null,null,null," 662 GGZ zonder verblijf",null,null,null,null,null,{"$f":"Kostenverzamelstaat!M92","v":0},{"$f":"'Specifieke informatie C'!L371","v":0},""]
[null,null,null," 665 Generalistische basis GGZ",null,null,null,null,null,{"$f":"Kostenverzamelstaat!M93","v":0},{"$f":"'Specifieke informatie C'!L377","v":0},""]
[null,null,null," 700 Overige kosten",null,null,null,null,null,{"$f":"Kostenverzamelstaat!M102","v":0},{"$f":"'Specifieke informatie C'!L449","v":0},""]
[]
[null,null,null,"VERGELIJKING SPECIFIEKE INFORMATIE A EN CONTRACTINFORMATIE"]
[null,null,null," LASTEN 2017 INCLUSIEF BALANSPOST",null,null,null,null,null,"Kosten- verzamelstaat","Spec. inform. C\ncontract inform.","Verschil "]
[]
[null,null,null," Totaal code 503, 504, 505, 506, 507, 515 ",null,null,null,null,null,{"$f":"SUM(Kostenverzamelstaat!K16+Kostenverzamelstaat!K17+Kostenverzamelstaat!K18+Kostenverzamelstaat!K19+Kostenverzamelstaat!K20+Kostenverzamelstaat!K22)","v":0},{"$f":"Contractinformatie!L16","v":0},{"$f":"IF(J202<>K202,J202-K202,\"\")","v":""}]
[null,null,null," Totaal code 510, 516 ",null,null,null,null,null,{"$f":"SUM(Kostenverzamelstaat!K21+Kostenverzamelstaat!K23)","v":0},{"$f":"Contractinformatie!L20","v":0},""]
[null,null,null," Totaal Rubriek 01",null,null,null,null,null,{"$f":"Kostenverzamelstaat!K24","v":0},{"$f":"Contractinformatie!L21","v":0},""]
[null,null,null," Totaal Rubriek 03",null,null,null,null,null,{"$f":"Kostenverzamelstaat!K28","v":0},{"$f":"Contractinformatie!L28","v":0},""]
[null,null,null," Totaal Rubriek 06",null,null,null,null,null,{"$f":"Kostenverzamelstaat!K59","v":0},{"$f":"Contractinformatie!L39","v":0},""]
[null,null,null," Totaal Rubriek 10",null,null,null,null,null,{"$f":"Kostenverzamelstaat!K94","v":0},{"$f":"Contractinformatie!L62","v":0},""]
[null,null,null," Totaal code 702",null,null,null,null,null,{"$f":"Kostenverzamelstaat!K104","v":0},{"$f":"Contractinformatie!L69","v":0},{"$f":"IF(J208<>K208,J208-K208,\"\")","v":""}]
[]
[null,null,null," LASTEN 2018 INCLUSIEF BALANSPOST",null,null,null,null,null,"Kosten- verzamelstaat","Spec. inform. C\ncontract inform.","Verschil "]
[]
[null,null,null," Totaal code 503, 504, 505, 506, 507, 515 ",null,null,null,null,null,{"$f":"SUM(Kostenverzamelstaat!I16+Kostenverzamelstaat!I17+Kostenverzamelstaat!I18+Kostenverzamelstaat!I19+Kostenverzamelstaat!I20+Kostenverzamelstaat!I22)","v":0},{"$f":"Contractinformatie!K16","v":0},{"$f":"IF(J212<>K212,J212-K212,\"\")","v":""}]
[null,null,null," Totaal code 510, 516 ",null,null,null,null,null,{"$f":"SUM(Kostenverzamelstaat!I21+Kostenverzamelstaat!I23)","v":0},{"$f":"Contractinformatie!K20","v":0},""]
[null,null,null," Totaal Rubriek 01 ",null,null,null,null,null,{"$f":"Kostenverzamelstaat!I24","v":0},{"$f":"Contractinformatie!K21","v":0},""]
[null,null,null," Totaal Rubriek 03",null,null,null,null,null,{"$f":"Kostenverzamelstaat!I28","v":0},{"$f":"Contractinformatie!K28","v":0},""]
[null,null,null," Totaal Rubriek 06",null,null,null,null,null,{"$f":"Kostenverzamelstaat!I59","v":0},{"$f":"Contractinformatie!K39","v":0},""]
[null,null,null," Totaal Rubriek 10",null,null,null,null,null,{"$f":"Kostenverzamelstaat!I94","v":0},{"$f":"Contractinformatie!K62","v":0},""]
[null,null,null," Totaal code 670",null,null,null,null,null,{"$f":"Kostenverzamelstaat!I96","v":0},{"$f":"Contractinformatie!K77","v":0},{"$f":"IF(J218<>K218,J218-K218,\"\")","v":""}]
[null,null,null," Totaal code 671",null,null,null,null,null,{"$f":"Kostenverzamelstaat!I97","v":0},{"$f":"Contractinformatie!K81","v":0},{"$f":"IF(J219<>K219,J219-K219,\"\")","v":""}]
[null,null,null," Totaal Rubriek 11",null,null,null,null,null,{"$f":"Kostenverzamelstaat!I98","v":0},{"$f":"Contractinformatie!K82","v":0},{"$f":"IF(J220<>K220,J220-K220,\"\")","v":""}]
[null,null,null," Totaal code 702",null,null,null,null,null,{"$f":"Kostenverzamelstaat!I104","v":0},{"$f":"Contractinformatie!K69","v":0},{"$f":"IF(J221<>K221,J221-K221,\"\")","v":""}]
[]
[]
[]
[]
[]
[null,null,null,{"$f":"NOW()","v":"2019-02-05T13:41:52.070"},null,null,null,null,null,null,null,{"$f":"CONCATENATE(\"Controleoverzicht \",LOWER(A183))","v":"Controleoverzicht pagina 5"}]

{"sheet":"Blad1","index":9,"n_rows":827,"n_cols":6,"rows_kept":827,"cut":false,"hidden":true,"merged":[]}
[70123732,"*=Kostenverzamelstaat!$I$118",null,null,null,"*=Kostenverzamelstaat!$I$118"]
[70123733,"*=Kostenverzamelstaat!$J$118",null,null,null,"*=Kostenverzamelstaat!$J$118"]
[70123734,"*=Kostenverzamelstaat!$K$118",null,null,null,"*=Kostenverzamelstaat!$K$118"]
[70123735,"*=Kostenverzamelstaat!$L$118",null,null,null,"*=Kostenverzamelstaat!$L$118"]
[70123736,"*=Kostenverzamelstaat!$M$118",null,null,null,"*=Kostenverzamelstaat!$M$118"]
[70122829,"*=Kostenverzamelstaat!$I$16",null,null,null,"*=Kostenverzamelstaat!$I$16"]
[70122830,"*=Kostenverzamelstaat!$J$16",null,null,null,"*=Kostenverzamelstaat!$J$16"]
[70122831,"*=Kostenverzamelstaat!$K$16",null,null,null,"*=Kostenverzamelstaat!$K$16"]
[70122832,"*=Kostenverzamelstaat!$L$16",null,null,null,"*=Kostenverzamelstaat!$L$16"]
[70122833,"*=Kostenverzamelstaat!$M$16",null,null,null,"*=Kostenverzamelstaat!$M$16"]
[70122834,"*=Kostenverzamelstaat!$I$17",null,null,null,"*=Kostenverzamelstaat!$I$17"]
[70122835,"*=Kostenverzamelstaat!$J$17",null,null,null,"*=Kostenverzamelstaat!$J$17"]
[70122836,"*=Kostenverzamelstaat!$K$17",null,null,null,"*=Kostenverzamelstaat!$K$17"]
[70122837,"*=Kostenverzamelstaat!$L$17",null,null,null,"*=Kostenverzamelstaat!$L$17"]
[70122838,"*=Kostenverzamelstaat!$M$17",null,null,null,"*=Kostenverzamelstaat!$M$17"]
[70122839,"*=Kostenverzamelstaat!$I$18",null,null,null,"*=Kostenverzamelstaat!$I$18"]
[70122840,"*=Kostenverzamelstaat!$J$18",null,null,null,"*=Kostenverzamelstaat!$J$18"]
[70122841,"*=Kostenverzamelstaat!$K$18",null,null,null,"*=Kostenverzamelstaat!$K$18"]
[70122842,"*=Kostenverzamelstaat!$L$18",null,null,null,"*=Kostenverzamelstaat!$L$18"]
[70122843,"*=Kostenverzamelstaat!$M$18",null,null,null,"*=Kostenverzamelstaat!$M$18"]
[70122844,"*=Kostenverzamelstaat!$I$19",null,null,null,"*=Kostenverzamelstaat!$I$19"]
[70122845,"*=Kostenverzamelstaat!$J$19",null,null,null,"*=Kostenverzamelstaat!$J$19"]
[70122846,"*=Kostenverzamelstaat!$K$19",null,null,null,"*=Kostenverzamelstaat!$K$19"]
[70122847,"*=Kostenverzamelstaat!$L$19",null,null,null,"*=Kostenverzamelstaat!$L$19"]
[70122848,"*=Kostenverzamelstaat!$M$19",null,null,null,"*=Kostenverzamelstaat!$M$19"]
[70122849,"*=Kostenverzamelstaat!$I$20",null,null,null,"*=Kostenverzamelstaat!$I$20"]
[70122850,"*=Kostenverzamelstaat!$J$20",null,null,null,"*=Kostenverzamelstaat!$J$20"]
[70122851,"*=Kostenverzamelstaat!$K$20",null,null,null,"*=Kostenverzamelstaat!$K$20"]
[70122852,"*=Kostenverzamelstaat!$L$20",null,null,null,"*=Kostenverzamelstaat!$L$20"]
[70122853,"*=Kostenverzamelstaat!$M$20",null,null,null,"*=Kostenverzamelstaat!$M$20"]
[70122854,"*=Kostenverzamelstaat!$I$21",null,null,null,"*=Kostenverzamelstaat!$I$21"]
[70122855,"*=Kostenverzamelstaat!$J$21",null,null,null,"*=Kostenverzamelstaat!$J$21"]
[70122856,"*=Kostenverzamelstaat!$K$21",null,null,null,"*=Kostenverzamelstaat!$K$21"]
[70122857,"*=Kostenverzamelstaat!$L$21",null,null,null,"*=Kostenverzamelstaat!$L$21"]
[70122858,"*=Kostenverzamelstaat!$M$21",null,null,null,"*=Kostenverzamelstaat!$M$21"]
[70122859,"*=Kostenverzamelstaat!$I$22",null,null,null,"*=Kostenverzamelstaat!$I$22"]
[70122860,"*=Kostenverzamelstaat!$J$22",null,null,null,"*=Kostenverzamelstaat!$J$22"]
[70122861,"*=Kostenverzamelstaat!$K$22",null,null,null,"*=Kostenverzamelstaat!$K$22"]
[70122862,"*=Kostenverzamelstaat!$L$22",null,null,null,"*=Kostenverzamelstaat!$L$22"]
[70122863,"*=Kostenverzamelstaat!$M$22",null,null,null,"*=Kostenverzamelstaat!$M$22"]
[70122864,"*=Kostenverzamelstaat!$I$23",null,null,null,"*=Kostenverzamelstaat!$I$23"]
[70122865,"*=Kostenverzamelstaat!$J$23",null,null,null,"*=Kostenverzamelstaat!$J$23"]
[70122866,"*=Kostenverzamelstaat!$K$23",null,null,null,"*=Kostenverzamelstaat!$K$23"]
[70122867,"*=Kostenverzamelstaat!$L$23",null,null,null,"*=Kostenverzamelstaat!$L$23"]
[70122868,"*=Kostenverzamelstaat!$M$23",null,null,null,"*=Kostenverzamelstaat!$M$23"]
[70122884,"*=Kostenverzamelstaat!$I$26",null,null,null,"*=Kostenverzamelstaat!$I$26"]
[70122885,"*=Kostenverzamelstaat!$J$26",null,null,null,"*=Kostenverzamelstaat!$J$26"]
[70122886,"*=Kostenverzamelstaat!$K$26",null,null,null,"*=Kostenverzamelstaat!$K$26"]
[70122887,"*=Kostenverzamelstaat!$L$26",null,null,null,"*=Kostenverzamelstaat!$L$26"]
[70122888,"*=Kostenverzamelstaat!$M$26",null,null,null,"*=Kostenverzamelstaat!$M$26"]
[70122889,"*=Kostenverzamelstaat!$I$30",null,null,null,"*=Kostenverzamelstaat!$I$30"]
[70122890,"*=Kostenverzamelstaat!$J$30",null,null,null,"*=Kostenverzamelstaat!$J$30"]
[70122891,"*=Kostenverzamelstaat!$K$30",null,null,null,"*=Kostenverzamelstaat!$K$30"]
[70122892,"*=Kostenverzamelstaat!$L$30",null,null,null,"*=Kostenverzamelstaat!$L$30"]
[70122893,"*=Kostenverzamelstaat!$M$30",null,null,null,"*=Kostenverzamelstaat!$M$30"]
[70122894,"*=Kostenverzamelstaat!$I$31",null,null,null,"*=Kostenverzamelstaat!$I$31"]
[70122895,"*=Kostenverzamelstaat!$J$31",null,null,null,"*=Kostenverzamelstaat!$J$31"]
[70122896,"*=Kostenverzamelstaat!$K$31",null,null,null,"*=Kostenverzamelstaat!$K$31"]
[70122897,"*=Kostenverzamelstaat!$L$31",null,null,null,"*=Kostenverzamelstaat!$L$31"]
[70122898,"*=Kostenverzamelstaat!$M$31",null,null,null,"*=Kostenverzamelstaat!$M$31"]
[70122899,"*=Kostenverzamelstaat!$I$32",null,null,null,"*=Kostenverzamelstaat!$I$32"]
[70122900,"*=Kostenverzamelstaat!$J$32",null,null,null,"*=Kostenverzamelstaat!$J$32"]
[70122901,"*=Kostenverzamelstaat!$K$32",null,null,null,"*=Kostenverzamelstaat!$K$32"]
[70122902,"*=Kostenverzamelstaat!$L$32",null,null,null,"*=Kostenverzamelstaat!$L$32"]
[70122903,"*=Kostenverzamelstaat!$M$32",null,null,null,"*=Kostenverzamelstaat!$M$32"]
[70122909,"*=Kostenverzamelstaat!$I$35",null,null,null,"*=Kostenverzamelstaat!$I$35"]
[70122910,"*=Kostenverzamelstaat!$J$35",null,null,null,"*=Kostenverzamelstaat!$J$35"]
[70122911,"*=Kostenverzamelstaat!$K$35",null,null,null,"*=Kostenverzamelstaat!$K$35"]
[70122912,"*=Kostenverzamelstaat!$L$35",null,null,null,"*=Kostenverzamelstaat!$L$35"]
[70122913,"*=Kostenverzamelstaat!$M$35",null,null,null,"*=Kostenverzamelstaat!$M$35"]
[70122904,"*=Kostenverzamelstaat!$I$36",null,null,null,"*=Kostenverzamelstaat!$I$36"]
[70122905,"*=Kostenverzamelstaat!$J$36",null,null,null,"*=Kostenverzamelstaat!$J$36"]
[70122906,"*=Kostenverzamelstaat!$K$36",null,null,null,"*=Kostenverzamelstaat!$K$36"]
[70122907,"*=Kostenverzamelstaat!$L$36",null,null,null,"*=Kostenverzamelstaat!$L$36"]
[70122908,"*=Kostenverzamelstaat!$M$36",null,null,null,"*=Kostenverzamelstaat!$M$36"]
[70122919,"*=Kostenverzamelstaat!$I$52",null,null,null,"*=Kostenverzamelstaat!$I$52"]
[70122920,"*=Kostenverzamelstaat!$J$52",null,null,null,"*=Kostenverzamelstaat!$J$52"]
[70122921,"*=Kostenverzamelstaat!$K$52",null,null,null,"*=Kostenverzamelstaat!$K$52"]
[70122922,"*=Kostenverzamelstaat!$L$52",null,null,null,"*=Kostenverzamelstaat!$L$52"]
[70122923,"*=Kostenverzamelstaat!$M$52",null,null,null,"*=Kostenverzamelstaat!$M$52"]
[70122924,"*=Kostenverzamelstaat!$I$53",null,null,null,"*=Kostenverzamelstaat!$I$53"]
[70122925,"*=Kostenverzamelstaat!$J$53",null,null,null,"*=Kostenverzamelstaat!$J$53"]
[70122926,"*=Kostenverzamelstaat!$K$53",null,null,null,"*=Kostenverzamelstaat!$K$53"]
[70122927,"*=Kostenverzamelstaat!$L$53",null,null,null,"*=Kostenverzamelstaat!$L$53"]
[70122928,"*=Kostenverzamelstaat!$M$53",null,null,null,"*=Kostenverzamelstaat!$M$53"]
[70122934,"*=Kostenverzamelstaat!$I$54",null,null,null,"*=Kostenverzamelstaat!$I$54"]
[70122935,"*=Kostenverzamelstaat!$J$54",null,null,null,"*=Kostenverzamelstaat!$J$54"]
[70122936,"*=Kostenverzamelstaat!$K$54",null,null,null,"*=Kostenverzamelstaat!$K$54"]
[70122937,"*=Kostenverzamelstaat!$L$54",null,null,null,"*=Kostenverzamelstaat!$L$54"]
[70122938,"*=Kostenverzamelstaat!$M$54",null,null,null,"*=Kostenverzamelstaat!$M$54"]
[70122929,"*=Kostenverzamelstaat!$I$55",null,null,null,"*=Kostenverzamelstaat!$I$55"]
[70122930,"*=Kostenverzamelstaat!$J$55",null,null,null,"*=Kostenverzamelstaat!$J$55"]
[70122931,"*=Kostenverzamelstaat!$K$55",null,null,null,"*=Kostenverzamelstaat!$K$55"]
[70122932,"*=Kostenverzamelstaat!$L$55",null,null,null,"*=Kostenverzamelstaat!$L$55"]
[70122933,"*=Kostenverzamelstaat!$M$55",null,null,null,"*=Kostenverzamelstaat!$M$55"]
[70122939,"*=Kostenverzamelstaat!$I$56",null,null,null,"*=Kostenverzamelstaat!$I$56"]
[70122940,"*=Kostenverzamelstaat!$J$56",null,null,null,"*=Kostenverzamelstaat!$J$56"]
[70122941,"*=Kostenverzamelstaat!$K$56",null,null,null,"*=Kostenverzamelstaat!$K$56"]
[70122942,"*=Kostenverzamelstaat!$L$56",null,null,null,"*=Kostenverzamelstaat!$L$56"]
[70122943,"*=Kostenverzamelstaat!$M$56",null,null,null,"*=Kostenverzamelstaat!$M$56"]
[70122944,"*=Kostenverzamelstaat!$I$57",null,null,null,"*=Kostenverzamelstaat!$I$57"]
[70122945,"*=Kostenverzamelstaat!$J$57",null,null,null,"*=Kostenverzamelstaat!$J$57"]
[70122946,"*=Kostenverzamelstaat!$K$57",null,null,null,"*=Kostenverzamelstaat!$K$57"]
[70122947,"*=Kostenverzamelstaat!$L$57",null,null,null,"*=Kostenverzamelstaat!$L$57"]
[70122948,"*=Kostenverzamelstaat!$M$57",null,null,null,"*=Kostenverzamelstaat!$M$57"]
[70122914,"*=Kostenverzamelstaat!$I$58",null,null,null,"*=Kostenverzamelstaat!$I$58"]
[70122915,"*=Kostenverzamelstaat!$J$58",null,null,null,"*=Kostenverzamelstaat!$J$58"]
[70122916,"*=Kostenverzamelstaat!$K$58",null,null,null,"*=Kostenverzamelstaat!$K$58"]
[70122917,"*=Kostenverzamelstaat!$L$58",null,null,null,"*=Kostenverzamelstaat!$L$58"]
[70122918,"*=Kostenverzamelstaat!$M$58",null,null,null,"*=Kostenverzamelstaat!$M$58"]
[70122949,"*=Kostenverzamelstaat!$I$61",null,null,null,"*=Kostenverzamelstaat!$I$61"]
[70122950,"*=Kostenverzamelstaat!$J$61",null,null,null,"*=Kostenverzamelstaat!$J$61"]
[70122951,"*=Kostenverzamelstaat!$K$61",null,null,null,"*=Kostenverzamelstaat!$K$61"]
[70122952,"*=Kostenverzamelstaat!$L$61",null,null,null,"*=Kostenverzamelstaat!$L$61"]
[70122953,"*=Kostenverzamelstaat!$M$61",null,null,null,"*=Kostenverzamelstaat!$M$61"]
[70122969,"*=Kostenverzamelstaat!$I$62",null,null,null,"*=Kostenverzamelstaat!$I$62"]
[70122970,"*=Kostenverzamelstaat!$J$62",null,null,null,"*=Kostenverzamelstaat!$J$62"]
[70122971,"*=Kostenverzamelstaat!$K$62",null,null,null,"*=Kostenverzamelstaat!$K$62"]
[70122972,"*=Kostenverzamelstaat!$L$62",null,null,null,"*=Kostenverzamelstaat!$L$62"]
[70122973,"*=Kostenverzamelstaat!$M$62",null,null,null,"*=Kostenverzamelstaat!$M$62"]
[70122964,"*=Kostenverzamelstaat!$I$63",null,null,null,"*=Kostenverzamelstaat!$I$63"]
[70122965,"*=Kostenverzamelstaat!$J$63",null,null,null,"*=Kostenverzamelstaat!$J$63"]
[70122966,"*=Kostenverzamelstaat!$K$63",null,null,null,"*=Kostenverzamelstaat!$K$63"]
[70122967,"*=Kostenverzamelstaat!$L$63",null,null,null,"*=Kostenverzamelstaat!$L$63"]
[70122968,"*=Kostenverzamelstaat!$M$63",null,null,null,"*=Kostenverzamelstaat!$M$63"]
[70122954,"*=Kostenverzamelstaat!$I$64",null,null,null,"*=Kostenverzamelstaat!$I$64"]
[70122955,"*=Kostenverzamelstaat!$J$64",null,null,null,"*=Kostenverzamelstaat!$J$64"]
[70122956,"*=Kostenverzamelstaat!$K$64",null,null,null,"*=Kostenverzamelstaat!$K$64"]
[70122957,"*=Kostenverzamelstaat!$L$64",null,null,null,"*=Kostenverzamelstaat!$L$64"]
[70122958,"*=Kostenverzamelstaat!$M$64",null,null,null,"*=Kostenverzamelstaat!$M$64"]
[70122959,"*=Kostenverzamelstaat!$I$65",null,null,null,"*=Kostenverzamelstaat!$I$65"]
[70122960,"*=Kostenverzamelstaat!$J$65",null,null,null,"*=Kostenverzamelstaat!$J$65"]
[70122961,"*=Kostenverzamelstaat!$K$65",null,null,null,"*=Kostenverzamelstaat!$K$65"]
[70122962,"*=Kostenverzamelstaat!$L$65",null,null,null,"*=Kostenverzamelstaat!$L$65"]
[70122963,"*=Kostenverzamelstaat!$M$65",null,null,null,"*=Kostenverzamelstaat!$M$65"]
[70123249,"*=Kostenverzamelstaat!$I$68",null,null,null,"*=Kostenverzamelstaat!$I$68"]
[70123250,"*=Kostenverzamelstaat!$J$68",null,null,null,"*=Kostenverzamelstaat!$J$68"]
[70123251,"*=Kostenverzamelstaat!$K$68",null,null,null,"*=Kostenverzamelstaat!$K$68"]
[70123252,"*=Kostenverzamelstaat!$L$68",null,null,null,"*=Kostenverzamelstaat!$L$68"]
[70123253,"*=Kostenverzamelstaat!$M$68",null,null,null,"*=Kostenverzamelstaat!$M$68"]
[70122974,"*=Kostenverzamelstaat!$I$70",null,null,null,"*=Kostenverzamelstaat!$I$70"]
[70122975,"*=Kostenverzamelstaat!$J$70",null,null,null,"*=Kostenverzamelstaat!$J$70"]
[70122976,"*=Kostenverzamelstaat!$K$70",null,null,null,"*=Kostenverzamelstaat!$K$70"]
[70122977,"*=Kostenverzamelstaat!$L$70",null,null,null,"*=Kostenverzamelstaat!$L$70"]
[70122978,"*=Kostenverzamelstaat!$M$70",null,null,null,"*=Kostenverzamelstaat!$M$70"]
[70123742,"*=Kostenverzamelstaat!$I$71",null,null,null,"*=Kostenverzamelstaat!$I$71"]
[70123743,"*=Kostenverzamelstaat!$J$71",null,null,null,"*=Kostenverzamelstaat!$J$71"]
[70123744,"*=Kostenverzamelstaat!$K$71",null,null,null,"*=Kostenverzamelstaat!$K$71"]
[70123745,"*=Kostenverzamelstaat!$L$71",null,null,null,"*=Kostenverzamelstaat!$L$71"]
[70123746,"*=Kostenverzamelstaat!$M$71",null,null,null,"*=Kostenverzamelstaat!$M$71"]
[70122979,"*=Kostenverzamelstaat!$I$72",null,null,null,"*=Kostenverzamelstaat!$I$72"]
[70122980,"*=Kostenverzamelstaat!$J$72",null,null,null,"*=Kostenverzamelstaat!$J$72"]
[70122981,"*=Kostenverzamelstaat!$K$72",null,null,null,"*=Kostenverzamelstaat!$K$72"]
[70122982,"*=Kostenverzamelstaat!$L$72",null,null,null,"*=Kostenverzamelstaat!$L$72"]
[70122983,"*=Kostenverzamelstaat!$M$72",null,null,null,"*=Kostenverzamelstaat!$M$72"]
[70122984,"*=Kostenverzamelstaat!$I$100",null,null,null,"*=Kostenverzamelstaat!$I$100"]
[70122985,"*=Kostenverzamelstaat!$J$100",null,null,null,"*=Kostenverzamelstaat!$J$100"]
[70122986,"*=Kostenverzamelstaat!$K$100",null,null,null,"*=Kostenverzamelstaat!$K$100"]
[70122987,"*=Kostenverzamelstaat!$L$100",null,null,null,"*=Kostenverzamelstaat!$L$100"]
[70122988,"*=Kostenverzamelstaat!$M$100",null,null,null,"*=Kostenverzamelstaat!$M$100"]
[70122869,"*=Kostenverzamelstaat!$I$102",null,null,null,"*=Kostenverzamelstaat!$I$102"]
[70122870,"*=Kostenverzamelstaat!$J$102",null,null,null,"*=Kostenverzamelstaat!$J$102"]
[70122871,"*=Kostenverzamelstaat!$K$102",null,null,null,"*=Kostenverzamelstaat!$K$102"]
[70122872,"*=Kostenverzamelstaat!$L$102",null,null,null,"*=Kostenverzamelstaat!$L$102"]
[70122873,"*=Kostenverzamelstaat!$M$102",null,null,null,"*=Kostenverzamelstaat!$M$102"]
[70122874,"*=Kostenverzamelstaat!$I$103",null,null,null,"*=Kostenverzamelstaat!$I$103"]
[70122875,"*=Kostenverzamelstaat!$J$103",null,null,null,"*=Kostenverzamelstaat!$J$103"]
[70122876,"*=Kostenverzamelstaat!$K$103",null,null,null,"*=Kostenverzamelstaat!$K$103"]
[70122877,"*=Kostenverzamelstaat!$L$103",null,null,null,"*=Kostenverzamelstaat!$L$103"]
[70122878,"*=Kostenverzamelstaat!$M$103",null,null,null,"*=Kostenverzamelstaat!$M$103"]
[70122879,"*=Kostenverzamelstaat!$I$104",null,null,null,"*=Kostenverzamelstaat!$I$104"]
[70122880,"*=Kostenverzamelstaat!$J$104",null,null,null,"*=Kostenverzamelstaat!$J$104"]
[70122881,"*=Kostenverzamelstaat!$K$104",null,null,null,"*=Kostenverzamelstaat!$K$104"]
[70122882,"*=Kostenverzamelstaat!$L$104",null,null,null,"*=Kostenverzamelstaat!$L$104"]
[70122883,"*=Kostenverzamelstaat!$M$104",null,null,null,"*=Kostenverzamelstaat!$M$104"]
[70122989,"*=Kostenverzamelstaat!$I$107",null,null,null,"*=Kostenverzamelstaat!$I$107"]
[70122990,"*=Kostenverzamelstaat!$J$107",null,null,null,"*=Kostenverzamelstaat!$J$107"]
[70122991,"*=Kostenverzamelstaat!$K$107",null,null,null,"*=Kostenverzamelstaat!$K$107"]
[70122992,"*=Kostenverzamelstaat!$L$107",null,null,null,"*=Kostenverzamelstaat!$L$107"]
[70122993,"*=Kostenverzamelstaat!$M$107",null,null,null,"*=Kostenverzamelstaat!$M$107"]
[70122994,"*=Kostenverzamelstaat!$I$109",null,null,null,"*=Kostenverzamelstaat!$I$109"]
[70122995,"*=Kostenverzamelstaat!$J$109",null,null,null,"*=Kostenverzamelstaat!$J$109"]
[70122996,"*=Kostenverzamelstaat!$K$109",null,null,null,"*=Kostenverzamelstaat!$K$109"]
[70122997,"*=Kostenverzamelstaat!$L$109",null,null,null,"*=Kostenverzamelstaat!$L$109"]
[70122998,"*=Kostenverzamelstaat!$M$109",null,null,null,"*=Kostenverzamelstaat!$M$109"]
[70123462,"*='Specifieke informatie C'!$L$507",null,null,null,"*='Specifieke informatie C'!$L$507"]
[70123464,"*='Specifieke informatie C'!$L$508",null,null,null,"*='Specifieke informatie C'!$L$508"]
[70123463,"*='Specifieke informatie C'!$L$509",null,null,null,"*='Specifieke informatie C'!$L$509"]
[70123465,"*='Specifieke informatie C'!$L$523",null,null,null,"*='Specifieke informatie C'!$L$523"]
[70123466,"*='Specifieke informatie C'!$L$524",null,null,null,"*='Specifieke informatie C'!$L$524"]
[70123467,"*='Specifieke informatie C'!$L$525",null,null,null,"*='Specifieke informatie C'!$L$525"]
[70123470,"*='Specifieke informatie C'!$L$537",null,null,null,"*='Specifieke informatie C'!$L$537"]
[70123472,"*='Specifieke informatie C'!$L$538",null,null,null,"*='Specifieke informatie C'!$L$538"]
[70123471,"*='Specifieke informatie C'!$L$539",null,null,null,"*='Specifieke informatie C'!$L$539"]
[70123474,"*='Specifieke informatie C'!$L$544",null,null,null,"*='Specifieke informatie C'!$L$544"]
[70123475,"*='Specifieke informatie C'!$L$546",null,null,null,"*='Specifieke informatie C'!$L$546"]
[70123717,"*='Specifieke informatie C'!$L$551",null,null,null,"*='Specifieke informatie C'!$L$551"]
[70123718,"*='Specifieke informatie C'!$L$552",null,null,null,"*='Specifieke informatie C'!$L$552"]
[70123719,"*='Specifieke informatie C'!$L$553",null,null,null,"*='Specifieke informatie C'!$L$553"]
[70123477,"*='Specifieke informatie C'!$L$568",null,null,null,"*='Specifieke informatie C'!$L$568"]
[70123478,"*='Specifieke informatie C'!$L$569",null,null,null,"*='Specifieke informatie C'!$L$569"]
[70123479,"*='Specifieke informatie C'!$L$570",null,null,null,"*='Specifieke informatie C'!$L$570"]
[70123721,"*='Specifieke informatie C'!$L$575",null,null,null,"*='Specifieke informatie C'!$L$575"]
[70123722,"*='Specifieke informatie C'!$L$576",null,null,null,"*='Specifieke informatie C'!$L$576"]
[70123723,"*='Specifieke informatie C'!$L$577",null,null,null,"*='Specifieke informatie C'!$L$577"]
[70122753,"*='Specifieke informatie C'!$L$582",null,null,null,"*='Specifieke informatie C'!$L$582"]
[70122750,"*='Specifieke informatie C'!$L$583",null,null,null,"*='Specifieke informatie C'!$L$583"]
[70122751,"*='Specifieke informatie C'!$L$584",null,null,null,"*='Specifieke informatie C'!$L$584"]
[70122755,"*='Specifieke informatie C'!$L$596",null,null,null,"*='Specifieke informatie C'!$L$596"]
[70122756,"*='Specifieke informatie C'!$L$598",null,null,null,"*='Specifieke informatie C'!$L$598"]
[70122819,"*='Specifieke informatie A'!$K$14",null,null,null,"*='Specifieke informatie A'!$K$14"]
[70122820,"*='Specifieke informatie A'!$L$14",null,null,null,"*='Specifieke informatie A'!$L$14"]
[70122827,"*='Specifieke informatie A'!$K$15",null,null,null,"*='Specifieke informatie A'!$K$15"]
[70122828,"*='Specifieke informatie A'!$L$15",null,null,null,"*='Specifieke informatie A'!$L$15"]
[70122823,"*='Specifieke informatie A'!$K$16",null,null,null,"*='Specifieke informatie A'!$K$16"]
[70122824,"*='Specifieke informatie A'!$L$16",null,null,null,"*='Specifieke informatie A'!$L$16"]
[70122826,"*='Specifieke informatie A'!$L$17",null,null,null,"*='Specifieke informatie A'!$L$17"]
[70122822,"*='Specifieke informatie A'!$L$18",null,null,null,"*='Specifieke informatie A'!$L$18"]
[70122999,"*=Kostenverzamelstaat!$I$114",null,null,null,"*=Kostenverzamelstaat!$I$114"]
[70123000,"*=Kostenverzamelstaat!$I$115",null,null,null,"*=Kostenverzamelstaat!$I$115"]
[70123001,"*=Kostenverzamelstaat!$J$115",null,null,null,"*=Kostenverzamelstaat!$J$115"]
[70123002,"*=Kostenverzamelstaat!$K$115",null,null,null,"*=Kostenverzamelstaat!$K$115"]
[70123003,"*=Kostenverzamelstaat!$L$115",null,null,null,"*=Kostenverzamelstaat!$L$115"]
[70123004,"*=Kostenverzamelstaat!$M$115",null,null,null,"*=Kostenverzamelstaat!$M$115"]
[70123005,"*=Kostenverzamelstaat!$I$117",null,null,null,"*=Kostenverzamelstaat!$I$117"]
[70123233,"*='Specifieke informatie C'!$K$13",null,null,null,"*='Specifieke informatie C'!$K$13"]
[70123234,"*='Specifieke informatie C'!$L$13",null,null,null,"*='Specifieke informatie C'!$L$13"]
[70123237,"*='Specifieke informatie C'!$K$14",null,null,null,"*='Specifieke informatie C'!$K$14"]
[70123238,"*='Specifieke informatie C'!$L$14",null,null,null,"*='Specifieke informatie C'!$L$14"]
[70123235,"*='Specifieke informatie C'!$K$15",null,null,null,"*='Specifieke informatie C'!$K$15"]
[70123236,"*='Specifieke informatie C'!$L$15",null,null,null,"*='Specifieke informatie C'!$L$15"]
[70123547,"*='Specifieke informatie C'!$K$127",null,null,null,"*='Specifieke informatie C'!$K$127"]
[70123548,"*='Specifieke informatie C'!$L$127",null,null,null,"*='Specifieke informatie C'!$L$127"]
[70123549,"*='Specifieke informatie C'!$K$160",null,null,null,"*='Specifieke informatie C'!$K$160"]
[70123550,"*='Specifieke informatie C'!$L$160",null,null,null,"*='Specifieke informatie C'!$L$160"]
[70123551,"*='Specifieke informatie C'!$K$161",null,null,null,"*='Specifieke informatie C'!$K$161"]
[70123552,"*='Specifieke informatie C'!$L$161",null,null,null,"*='Specifieke informatie C'!$L$161"]
[70123553,"*='Specifieke informatie C'!$K$162",null,null,null,"*='Specifieke informatie C'!$K$162"]
[70123554,"*='Specifieke informatie C'!$L$162",null,null,null,"*='Specifieke informatie C'!$L$162"]
[70123557,"*='Specifieke informatie C'!$K$141",null,null,null,"*='Specifieke informatie C'!$K$141"]
[70123558,"*='Specifieke informatie C'!$L$141",null,null,null,"*='Specifieke informatie C'!$L$141"]
[70123555,"*='Specifieke informatie C'!$K$142",null,null,null,"*='Specifieke informatie C'!$K$142"]
[70123556,"*='Specifieke informatie C'!$L$142",null,null,null,"*='Specifieke informatie C'!$L$142"]
[70123559,"*='Specifieke informatie C'!$K$143",null,null,null,"*='Specifieke informatie C'!$K$143"]
[70123560,"*='Specifieke informatie C'!$L$143",null,null,null,"*='Specifieke informatie C'!$L$143"]
[70123561,"*='Specifieke informatie C'!$K$144",null,null,null,"*='Specifieke informatie C'!$K$144"]
[70123562,"*='Specifieke informatie C'!$L$144",null,null,null,"*='Specifieke informatie C'!$L$144"]
[70123563,"*='Specifieke informatie C'!$K$145",null,null,null,"*='Specifieke informatie C'!$K$145"]
[70123564,"*='Specifieke informatie C'!$L$145",null,null,null,"*='Specifieke informatie C'!$L$145"]
[70123565,"*='Specifieke informatie C'!$K$146",null,null,null,"*='Specifieke informatie C'!$K$146"]
[70123566,"*='Specifieke informatie C'!$L$146",null,null,null,"*='Specifieke informatie C'!$L$146"]
[70123567,"*='Specifieke informatie C'!$K$147",null,null,null,"*='Specifieke informatie C'!$K$147"]
[70123568,"*='Specifieke informatie C'!$L$147",null,null,null,"*='Specifieke informatie C'!$L$147"]
[70123569,"*='Specifieke informatie C'!$K$148",null,null,null,"*='Specifieke informatie C'!$K$148"]
[70123570,"*='Specifieke informatie C'!$L$148",null,null,null,"*='Specifieke informatie C'!$L$148"]
[70123571,"*='Specifieke informatie C'!$K$149",null,null,null,"*='Specifieke informatie C'!$K$149"]
[70123572,"*='Specifieke informatie C'!$L$149",null,null,null,"*='Specifieke informatie C'!$L$149"]
[70123573,"*='Specifieke informatie C'!$K$150",null,null,null,"*='Specifieke informatie C'!$K$150"]
[70123574,"*='Specifieke informatie C'!$L$150",null,null,null,"*='Specifieke informatie C'!$L$150"]
[70123575,"*='Specifieke informatie C'!$K$151",null,null,null,"*='Specifieke informatie C'!$K$151"]
[70123576,"*='Specifieke informatie C'!$L$151",null,null,null,"*='Specifieke informatie C'!$L$151"]
[70123577,"*='Specifieke informatie C'!$K$152",null,null,null,"*='Specifieke informatie C'!$K$152"]
[70123578,"*='Specifieke informatie C'!$L$152",null,null,null,"*='Specifieke informatie C'!$L$152"]
[70123579,"*='Specifieke informatie C'!$K$153",null,null,null,"*='Specifieke informatie C'!$K$153"]
[70123580,"*='Specifieke informatie C'!$L$153",null,null,null,"*='Specifieke informatie C'!$L$153"]
[70123581,"*='Specifieke informatie C'!$K$154",null,null,null,"*='Specifieke informatie C'!$K$154"]
[70123582,"*='Specifieke informatie C'!$L$154",null,null,null,"*='Specifieke informatie C'!$L$154"]
[70123583,"*='Specifieke informatie C'!$K$155",null,null,null,"*='Specifieke informatie C'!$K$155"]
[70123584,"*='Specifieke informatie C'!$L$155",null,null,null,"*='Specifieke informatie C'!$L$155"]
[70123585,"*='Specifieke informatie C'!$H$204",null,null,null,"*='Specifieke informatie C'!$H$204"]
[70123586,"*='Specifieke informatie C'!$I$204",null,null,null,"*='Specifieke informatie C'!$I$204"]
[70123587,"*='Specifieke informatie C'!$J$204",null,null,null,"*='Specifieke informatie C'!$J$204"]
[70123588,"*='Specifieke informatie C'!$K$204",null,null,null,"*='Specifieke informatie C'!$K$204"]
[70123589,"*='Specifieke informatie C'!$L$204",null,null,null,"*='Specifieke informatie C'!$L$204"]
[70123590,"*='Specifieke informatie C'!$H$205",null,null,null,"*='Specifieke informatie C'!$H$205"]
[70123591,"*='Specifieke informatie C'!$I$205",null,null,null,"*='Specifieke informatie C'!$I$205"]
[70123592,"*='Specifieke informatie C'!$J$205",null,null,null,"*='Specifieke informatie C'!$J$205"]
[70123593,"*='Specifieke informatie C'!$K$205",null,null,null,"*='Specifieke informatie C'!$K$205"]
[70123594,"*='Specifieke informatie C'!$L$205",null,null,null,"*='Specifieke informatie C'!$L$205"]
[70123595,"*='Specifieke informatie C'!$H$206",null,null,null,"*='Specifieke informatie C'!$H$206"]
[70123596,"*='Specifieke informatie C'!$I$206",null,null,null,"*='Specifieke informatie C'!$I$206"]
[70123597,"*='Specifieke informatie C'!$J$206",null,null,null,"*='Specifieke informatie C'!$J$206"]
[70123598,"*='Specifieke informatie C'!$K$206",null,null,null,"*='Specifieke informatie C'!$K$206"]
[70123599,"*='Specifieke informatie C'!$L$206",null,null,null,"*='Specifieke informatie C'!$L$206"]
[70123600,"*='Specifieke informatie C'!$H$213",null,null,null,"*='Specifieke informatie C'!$H$213"]
[70123601,"*='Specifieke informatie C'!$I$213",null,null,null,"*='Specifieke informatie C'!$I$213"]
[70123602,"*='Specifieke informatie C'!$J$213",null,null,null,"*='Specifieke informatie C'!$J$213"]
[70123603,"*='Specifieke informatie C'!$K$213",null,null,null,"*='Specifieke informatie C'!$K$213"]
[70123604,"*='Specifieke informatie C'!$L$213",null,null,null,"*='Specifieke informatie C'!$L$213"]
[70123605,"*='Specifieke informatie C'!$H$214",null,null,null,"*='Specifieke informatie C'!$H$214"]
[70123606,"*='Specifieke informatie C'!$I$214",null,null,null,"*='Specifieke informatie C'!$I$214"]
[70123607,"*='Specifieke informatie C'!$J$214",null,null,null,"*='Specifieke informatie C'!$J$214"]
[70123608,"*='Specifieke informatie C'!$K$214",null,null,null,"*='Specifieke informatie C'!$K$214"]
[70123609,"*='Specifieke informatie C'!$L$214",null,null,null,"*='Specifieke informatie C'!$L$214"]
[70123610,"*='Specifieke informatie C'!$H$215",null,null,null,"*='Specifieke informatie C'!$H$215"]
[70123611,"*='Specifieke informatie C'!$I$215",null,null,null,"*='Specifieke informatie C'!$I$215"]
[70123612,"*='Specifieke informatie C'!$J$215",null,null,null,"*='Specifieke informatie C'!$J$215"]
[70123613,"*='Specifieke informatie C'!$K$215",null,null,null,"*='Specifieke informatie C'!$K$215"]
[70123614,"*='Specifieke informatie C'!$L$215",null,null,null,"*='Specifieke informatie C'!$L$215"]
[70123615,"*='Specifieke informatie C'!$H$216",null,null,null,"*='Specifieke informatie C'!$H$216"]
[70123616,"*='Specifieke informatie C'!$I$216",null,null,null,"*='Specifieke informatie C'!$I$216"]
[70123617,"*='Specifieke informatie C'!$J$216",null,null,null,"*='Specifieke informatie C'!$J$216"]
[70123618,"*='Specifieke informatie C'!$K$216",null,null,null,"*='Specifieke informatie C'!$K$216"]
[70123619,"*='Specifieke informatie C'!$L$216",null,null,null,"*='Specifieke informatie C'!$L$216"]
[70123007,"*='Specifieke informatie C'!$K$20",null,null,null,"*='Specifieke informatie C'!$K$20"]
[70123008,"*='Specifieke informatie C'!$L$20",null,null,null,"*='Specifieke informatie C'!$L$20"]
[70123009,"*='Specifieke informatie C'!$K$21",null,null,null,"*='Specifieke informatie C'!$K$21"]
[70123010,"*='Specifieke informatie C'!$L$21",null,null,null,"*='Specifieke informatie C'!$L$21"]
[70123013,"*='Specifieke informatie C'!$K$22",null,null,null,"*='Specifieke informatie C'!$K$22"]
[70123014,"*='Specifieke informatie C'!$L$22",null,null,null,"*='Specifieke informatie C'!$L$22"]
[70123015,"*='Specifieke informatie C'!$K$23",null,null,null,"*='Specifieke informatie C'!$K$23"]
[70123016,"*='Specifieke informatie C'!$L$23",null,null,null,"*='Specifieke informatie C'!$L$23"]
[70123017,"*='Specifieke informatie C'!$K$24",null,null,null,"*='Specifieke informatie C'!$K$24"]
[70123018,"*='Specifieke informatie C'!$L$24",null,null,null,"*='Specifieke informatie C'!$L$24"]
[70123011,"*='Specifieke informatie C'!$K$25",null,null,null,"*='Specifieke informatie C'!$K$25"]
[70123012,"*='Specifieke informatie C'!$L$25",null,null,null,"*='Specifieke informatie C'!$L$25"]
[70123019,"*='Specifieke informatie C'!$K$26",null,null,null,"*='Specifieke informatie C'!$K$26"]
[70123020,"*='Specifieke informatie C'!$L$26",null,null,null,"*='Specifieke informatie C'!$L$26"]
[70123021,"*='Specifieke informatie C'!$K$27",null,null,null,"*='Specifieke informatie C'!$K$27"]
[70123022,"*='Specifieke informatie C'!$L$27",null,null,null,"*='Specifieke informatie C'!$L$27"]
[70123355,"*='Specifieke informatie C'!$K$70",null,null,null,"*='Specifieke informatie C'!$K$70"]
[70123356,"*='Specifieke informatie C'!$L$70",null,null,null,"*='Specifieke informatie C'!$L$70"]
[70123359,"*='Specifieke informatie C'!$K$71",null,null,null,"*='Specifieke informatie C'!$K$71"]
[70123360,"*='Specifieke informatie C'!$L$71",null,null,null,"*='Specifieke informatie C'!$L$71"]
[70123361,"*='Specifieke informatie C'!$K$86",null,null,null,"*='Specifieke informatie C'!$K$86"]
[70123362,"*='Specifieke informatie C'!$L$86",null,null,null,"*='Specifieke informatie C'!$L$86"]
[70123387,"*='Specifieke informatie C'!$K$72",null,null,null,"*='Specifieke informatie C'!$K$72"]
[70123388,"*='Specifieke informatie C'!$L$72",null,null,null,"*='Specifieke informatie C'!$L$72"]
[70123363,"*='Specifieke informatie C'!$K$73",null,null,null,"*='Specifieke informatie C'!$K$73"]
[70123364,"*='Specifieke informatie C'!$L$73",null,null,null,"*='Specifieke informatie C'!$L$73"]
[70123367,"*='Specifieke informatie C'!$K$74",null,null,null,"*='Specifieke informatie C'!$K$74"]
[70123368,"*='Specifieke informatie C'!$L$74",null,null,null,"*='Specifieke informatie C'!$L$74"]
[70123369,"*='Specifieke informatie C'!$K$87",null,null,null,"*='Specifieke informatie C'!$K$87"]
[70123370,"*='Specifieke informatie C'!$L$87",null,null,null,"*='Specifieke informatie C'!$L$87"]
[70123389,"*='Specifieke informatie C'!$K$75",null,null,null,"*='Specifieke informatie C'!$K$75"]
[70123390,"*='Specifieke informatie C'!$L$75",null,null,null,"*='Specifieke informatie C'!$L$75"]
[70123371,"*='Specifieke informatie C'!$K$76",null,null,null,"*='Specifieke informatie C'!$K$76"]
[70123372,"*='Specifieke informatie C'!$L$76",null,null,null,"*='Specifieke informatie C'!$L$76"]
[70123375,"*='Specifieke informatie C'!$K$77",null,null,null,"*='Specifieke informatie C'!$K$77"]
[70123376,"*='Specifieke informatie C'!$L$77",null,null,null,"*='Specifieke informatie C'!$L$77"]
[70123377,"*='Specifieke informatie C'!$K$88",null,null,null,"*='Specifieke informatie C'!$K$88"]
[70123378,"*='Specifieke informatie C'!$L$88",null,null,null,"*='Specifieke informatie C'!$L$88"]
[70123391,"*='Specifieke informatie C'!$K$78",null,null,null,"*='Specifieke informatie C'!$K$78"]
[70123392,"*='Specifieke informatie C'!$L$78",null,null,null,"*='Specifieke informatie C'!$L$78"]
[70123379,"*='Specifieke informatie C'!$K$79",null,null,null,"*='Specifieke informatie C'!$K$79"]
[70123380,"*='Specifieke informatie C'!$L$79",null,null,null,"*='Specifieke informatie C'!$L$79"]
[70123383,"*='Specifieke informatie C'!$K$80",null,null,null,"*='Specifieke informatie C'!$K$80"]
[70123384,"*='Specifieke informatie C'!$L$80",null,null,null,"*='Specifieke informatie C'!$L$80"]
[70123385,"*='Specifieke informatie C'!$K$89",null,null,null,"*='Specifieke informatie C'!$K$89"]
[70123386,"*='Specifieke informatie C'!$L$89",null,null,null,"*='Specifieke informatie C'!$L$89"]
[70123393,"*='Specifieke informatie C'!$K$81",null,null,null,"*='Specifieke informatie C'!$K$81"]
[70123394,"*='Specifieke informatie C'!$L$81",null,null,null,"*='Specifieke informatie C'!$L$81"]
[70123433,"*='Specifieke informatie C'!$K$118",null,null,null,"*='Specifieke informatie C'!$K$118"]
[70123434,"*='Specifieke informatie C'!$L$118",null,null,null,"*='Specifieke informatie C'!$L$118"]
[70123435,"*='Specifieke informatie C'!$K$119",null,null,null,"*='Specifieke informatie C'!$K$119"]
[70123436,"*='Specifieke informatie C'!$L$119",null,null,null,"*='Specifieke informatie C'!$L$119"]
[70123437,"*='Specifieke informatie C'!$K$120",null,null,null,"*='Specifieke informatie C'!$K$120"]
[70123438,"*='Specifieke informatie C'!$L$120",null,null,null,"*='Specifieke informatie C'!$L$120"]
[70123439,"*='Specifieke informatie C'!$K$121",null,null,null,"*='Specifieke informatie C'!$K$121"]
[70123440,"*='Specifieke informatie C'!$L$121",null,null,null,"*='Specifieke informatie C'!$L$121"]
[70123441,"*='Specifieke informatie C'!$K$122",null,null,null,"*='Specifieke informatie C'!$K$122"]
[70123442,"*='Specifieke informatie C'!$L$122",null,null,null,"*='Specifieke informatie C'!$L$122"]
[70122779,"*='Specifieke informatie C'!$K$166",null,null,null,"*='Specifieke informatie C'!$K$166"]
[70122780,"*='Specifieke informatie C'!$L$166",null,null,null,"*='Specifieke informatie C'!$L$166"]
[70122781,"*='Specifieke informatie C'!$K$167",null,null,null,"*='Specifieke informatie C'!$K$167"]
[70122782,"*='Specifieke informatie C'!$L$167",null,null,null,"*='Specifieke informatie C'!$L$167"]
[70122775,"*='Specifieke informatie C'!$K$168",null,null,null,"*='Specifieke informatie C'!$K$168"]
[70122776,"*='Specifieke informatie C'!$L$168",null,null,null,"*='Specifieke informatie C'!$L$168"]
[70122777,"*='Specifieke informatie C'!$K$169",null,null,null,"*='Specifieke informatie C'!$K$169"]
[70122778,"*='Specifieke informatie C'!$L$169",null,null,null,"*='Specifieke informatie C'!$L$169"]
[70122761,"*='Specifieke informatie C'!$K$174",null,null,null,"*='Specifieke informatie C'!$K$174"]
[70122762,"*='Specifieke informatie C'!$L$174",null,null,null,"*='Specifieke informatie C'!$L$174"]
[70122763,"*='Specifieke informatie C'!$K$175",null,null,null,"*='Specifieke informatie C'!$K$175"]
[70122764,"*='Specifieke informatie C'!$L$175",null,null,null,"*='Specifieke informatie C'!$L$175"]
[70122757,"*='Specifieke informatie C'!$K$176",null,null,null,"*='Specifieke informatie C'!$K$176"]
[70122758,"*='Specifieke informatie C'!$L$176",null,null,null,"*='Specifieke informatie C'!$L$176"]
[70122759,"*='Specifieke informatie C'!$K$177",null,null,null,"*='Specifieke informatie C'!$K$177"]
[70122760,"*='Specifieke informatie C'!$L$177",null,null,null,"*='Specifieke informatie C'!$L$177"]
[70122771,"*='Specifieke informatie C'!$K$187",null,null,null,"*='Specifieke informatie C'!$K$187"]
[70122772,"*='Specifieke informatie C'!$L$187",null,null,null,"*='Specifieke informatie C'!$L$187"]
[70122773,"*='Specifieke informatie C'!$K$188",null,null,null,"*='Specifieke informatie C'!$K$188"]
[70122774,"*='Specifieke informatie C'!$L$188",null,null,null,"*='Specifieke informatie C'!$L$188"]
[70122787,"*='Specifieke informatie C'!$K$193",null,null,null,"*='Specifieke informatie C'!$K$193"]
[70122788,"*='Specifieke informatie C'!$L$193",null,null,null,"*='Specifieke informatie C'!$L$193"]
[70122789,"*='Specifieke informatie C'!$K$194",null,null,null,"*='Specifieke informatie C'!$K$194"]
[70122790,"*='Specifieke informatie C'!$L$194",null,null,null,"*='Specifieke informatie C'!$L$194"]
[70122783,"*='Specifieke informatie C'!$K$288",null,null,null,"*='Specifieke informatie C'!$K$288"]
[70122784,"*='Specifieke informatie C'!$L$288",null,null,null,"*='Specifieke informatie C'!$L$288"]
[70122785,"*='Specifieke informatie C'!$K$289",null,null,null,"*='Specifieke informatie C'!$K$289"]
[70122786,"*='Specifieke informatie C'!$L$289",null,null,null,"*='Specifieke informatie C'!$L$289"]
[70123395,"*='Specifieke informatie C'!$K$313",null,null,null,"*='Specifieke informatie C'!$K$313"]
[70123396,"*='Specifieke informatie C'!$L$313",null,null,null,"*='Specifieke informatie C'!$L$313"]
[70123397,"*='Specifieke informatie C'!$K$314",null,null,null,"*='Specifieke informatie C'!$K$314"]
[70123398,"*='Specifieke informatie C'!$L$314",null,null,null,"*='Specifieke informatie C'!$L$314"]
[70123399,"*='Specifieke informatie C'!$K$315",null,null,null,"*='Specifieke informatie C'!$K$315"]
[70123400,"*='Specifieke informatie C'!$L$315",null,null,null,"*='Specifieke informatie C'!$L$315"]
[70123401,"*='Specifieke informatie C'!$K$316",null,null,null,"*='Specifieke informatie C'!$K$316"]
[70123402,"*='Specifieke informatie C'!$L$316",null,null,null,"*='Specifieke informatie C'!$L$316"]
[70123403,"*='Specifieke informatie C'!$K$317",null,null,null,"*='Specifieke informatie C'!$K$317"]
[70123404,"*='Specifieke informatie C'!$L$317",null,null,null,"*='Specifieke informatie C'!$L$317"]
[70123405,"*='Specifieke informatie C'!$K$318",null,null,null,"*='Specifieke informatie C'!$K$318"]
[70123406,"*='Specifieke informatie C'!$L$318",null,null,null,"*='Specifieke informatie C'!$L$318"]
[70123407,"*='Specifieke informatie C'!$K$319",null,null,null,"*='Specifieke informatie C'!$K$319"]
[70123408,"*='Specifieke informatie C'!$L$319",null,null,null,"*='Specifieke informatie C'!$L$319"]
[70123409,"*='Specifieke informatie C'!$K$320",null,null,null,"*='Specifieke informatie C'!$K$320"]
[70123410,"*='Specifieke informatie C'!$L$320",null,null,null,"*='Specifieke informatie C'!$L$320"]
[70123411,"*='Specifieke informatie C'!$K$321",null,null,null,"*='Specifieke informatie C'!$K$321"]
[70123412,"*='Specifieke informatie C'!$L$321",null,null,null,"*='Specifieke informatie C'!$L$321"]
[70123413,"*='Specifieke informatie C'!$K$322",null,null,null,"*='Specifieke informatie C'!$K$322"]
[70123414,"*='Specifieke informatie C'!$L$322",null,null,null,"*='Specifieke informatie C'!$L$322"]
[70123415,"*='Specifieke informatie C'!$K$323",null,null,null,"*='Specifieke informatie C'!$K$323"]
[70123416,"*='Specifieke informatie C'!$L$323",null,null,null,"*='Specifieke informatie C'!$L$323"]
[70123417,"*='Specifieke informatie C'!$K$324",null,null,null,"*='Specifieke informatie C'!$K$324"]
[70123418,"*='Specifieke informatie C'!$L$324",null,null,null,"*='Specifieke informatie C'!$L$324"]
[70123419,"*='Specifieke informatie C'!$K$325",null,null,null,"*='Specifieke informatie C'!$K$325"]
[70123420,"*='Specifieke informatie C'!$L$325",null,null,null,"*='Specifieke informatie C'!$L$325"]
[70123423,"*='Specifieke informatie C'!$K$326",null,null,null,"*='Specifieke informatie C'!$K$326"]
[70123424,"*='Specifieke informatie C'!$L$326",null,null,null,"*='Specifieke informatie C'!$L$326"]
[70123421,"*='Specifieke informatie C'!$K$327",null,null,null,"*='Specifieke informatie C'!$K$327"]
[70123422,"*='Specifieke informatie C'!$L$327",null,null,null,"*='Specifieke informatie C'!$L$327"]
[70123425,"*='Specifieke informatie C'!$K$328",null,null,null,"*='Specifieke informatie C'!$K$328"]
[70123426,"*='Specifieke informatie C'!$L$328",null,null,null,"*='Specifieke informatie C'!$L$328"]
[70123427,"*='Specifieke informatie C'!$K$329",null,null,null,"*='Specifieke informatie C'!$K$329"]
[70123428,"*='Specifieke informatie C'!$L$329",null,null,null,"*='Specifieke informatie C'!$L$329"]
[70123429,"*='Specifieke informatie C'!$K$330",null,null,null,"*='Specifieke informatie C'!$K$330"]
[70123430,"*='Specifieke informatie C'!$L$330",null,null,null,"*='Specifieke informatie C'!$L$330"]
[70123431,"*='Specifieke informatie C'!$K$335",null,null,null,"*='Specifieke informatie C'!$K$335"]
[70123432,"*='Specifieke informatie C'!$L$335",null,null,null,"*='Specifieke informatie C'!$L$335"]
[70122799,"*='Specifieke informatie C'!$K$413",null,null,null,"*='Specifieke informatie C'!$K$413"]
[70122800,"*='Specifieke informatie C'!$L$413",null,null,null,"*='Specifieke informatie C'!$L$413"]
[70122801,"*='Specifieke informatie C'!$K$414",null,null,null,"*='Specifieke informatie C'!$K$414"]
[70122802,"*='Specifieke informatie C'!$L$414",null,null,null,"*='Specifieke informatie C'!$L$414"]
[70122803,"*='Specifieke informatie C'!$K$415",null,null,null,"*='Specifieke informatie C'!$K$415"]
[70122804,"*='Specifieke informatie C'!$L$415",null,null,null,"*='Specifieke informatie C'!$L$415"]
[70122805,"*='Specifieke informatie C'!$K$416",null,null,null,"*='Specifieke informatie C'!$K$416"]
[70122806,"*='Specifieke informatie C'!$L$416",null,null,null,"*='Specifieke informatie C'!$L$416"]
[70122807,"*='Specifieke informatie C'!$K$417",null,null,null,"*='Specifieke informatie C'!$K$417"]
[70122808,"*='Specifieke informatie C'!$L$417",null,null,null,"*='Specifieke informatie C'!$L$417"]
[70122809,"*='Specifieke informatie C'!$K$418",null,null,null,"*='Specifieke informatie C'!$K$418"]
[70122810,"*='Specifieke informatie C'!$L$418",null,null,null,"*='Specifieke informatie C'!$L$418"]
[70122811,"*='Specifieke informatie C'!$K$419",null,null,null,"*='Specifieke informatie C'!$K$419"]
[70122812,"*='Specifieke informatie C'!$L$419",null,null,null,"*='Specifieke informatie C'!$L$419"]
[70122813,"*='Specifieke informatie C'!$K$420",null,null,null,"*='Specifieke informatie C'!$K$420"]
[70122814,"*='Specifieke informatie C'!$L$420",null,null,null,"*='Specifieke informatie C'!$L$420"]
[70122815,"*='Specifieke informatie C'!$K$421",null,null,null,"*='Specifieke informatie C'!$K$421"]
[70122816,"*='Specifieke informatie C'!$L$421",null,null,null,"*='Specifieke informatie C'!$L$421"]
[70123254,"*='Specifieke informatie A'!$L$132",null,null,null,"*='Specifieke informatie A'!$L$132"]
[70123301,"*=Kostenverzamelstaat!$I$116",null,null,null,"*=Kostenverzamelstaat!$I$116"]
[70123302,"*=Kostenverzamelstaat!$J$116",null,null,null,"*=Kostenverzamelstaat!$J$116"]
[70123303,"*=Kostenverzamelstaat!$K$116",null,null,null,"*=Kostenverzamelstaat!$K$116"]
[70123304,"*=Kostenverzamelstaat!$L$116",null,null,null,"*=Kostenverzamelstaat!$L$116"]
[70123305,"*=Kostenverzamelstaat!$M$116",null,null,null,"*=Kostenverzamelstaat!$M$116"]
[70123453,"*='Specifieke informatie A'!$K$33",null,null,null,"*='Specifieke informatie A'!$K$33"]
[70123454,"*='Specifieke informatie A'!$L$33",null,null,null,"*='Specifieke informatie A'!$L$33"]
[70123455,"*='Specifieke informatie A'!$K$34",null,null,null,"*='Specifieke informatie A'!$K$34"]
[70123456,"*='Specifieke informatie A'!$L$34",null,null,null,"*='Specifieke informatie A'!$L$34"]
[70123457,"*='Specifieke informatie A'!$K$35",null,null,null,"*='Specifieke informatie A'!$K$35"]
[70123458,"*='Specifieke informatie A'!$L$35",null,null,null,"*='Specifieke informatie A'!$L$35"]
[70123459,"*='Specifieke informatie A'!$K$36",null,null,null,"*='Specifieke informatie A'!$K$36"]
[70123460,"*='Specifieke informatie A'!$L$36",null,null,null,"*='Specifieke informatie A'!$L$36"]
[70123445,"*='Specifieke informatie A'!$K$57",null,null,null,"*='Specifieke informatie A'!$K$57"]
[70123446,"*='Specifieke informatie A'!$L$57",null,null,null,"*='Specifieke informatie A'!$L$57"]
[70123448,"*='Specifieke informatie A'!$L$58",null,null,null,"*='Specifieke informatie A'!$L$58"]
[70123449,"*='Specifieke informatie A'!$K$61",null,null,null,"*='Specifieke informatie A'!$K$61"]
[70123450,"*='Specifieke informatie A'!$L$59",null,null,null,"*='Specifieke informatie A'!$L$59"]
[70123452,"*='Specifieke informatie A'!$L$60",null,null,null,"*='Specifieke informatie A'!$L$60"]
[70123272,"*='Specifieke informatie C'!$L$589",null,null,null,"*='Specifieke informatie C'!$L$589"]
[70123273,"*='Specifieke informatie C'!$L$590",null,null,null,"*='Specifieke informatie C'!$L$590"]
[70123274,"*='Specifieke informatie C'!$L$591",null,null,null,"*='Specifieke informatie C'!$L$591"]
[70123286,"*=Kostenverzamelstaat!$I$90",null,null,null,"*=Kostenverzamelstaat!$I$90"]
[70123287,"*=Kostenverzamelstaat!$J$90",null,null,null,"*=Kostenverzamelstaat!$J$90"]
[70123288,"*=Kostenverzamelstaat!$K$90",null,null,null,"*=Kostenverzamelstaat!$K$90"]
[70123289,"*=Kostenverzamelstaat!$L$90",null,null,null,"*=Kostenverzamelstaat!$L$90"]
[70123290,"*=Kostenverzamelstaat!$M$90",null,null,null,"*=Kostenverzamelstaat!$M$90"]
[70123296,"*=Kostenverzamelstaat!$I$91",null,null,null,"*=Kostenverzamelstaat!$I$91"]
[70123297,"*=Kostenverzamelstaat!$J$91",null,null,null,"*=Kostenverzamelstaat!$J$91"]
[70123298,"*=Kostenverzamelstaat!$K$91",null,null,null,"*=Kostenverzamelstaat!$K$91"]
[70123299,"*=Kostenverzamelstaat!$L$91",null,null,null,"*=Kostenverzamelstaat!$L$91"]
[70123300,"*=Kostenverzamelstaat!$M$91",null,null,null,"*=Kostenverzamelstaat!$M$91"]
[70123291,"*=Kostenverzamelstaat!$I$92",null,null,null,"*=Kostenverzamelstaat!$I$92"]
[70123292,"*=Kostenverzamelstaat!$J$92",null,null,null,"*=Kostenverzamelstaat!$J$92"]
[70123293,"*=Kostenverzamelstaat!$K$92",null,null,null,"*=Kostenverzamelstaat!$K$92"]
[70123294,"*=Kostenverzamelstaat!$L$92",null,null,null,"*=Kostenverzamelstaat!$L$92"]
[70123295,"*=Kostenverzamelstaat!$M$92",null,null,null,"*=Kostenverzamelstaat!$M$92"]
[70123281,"*=Kostenverzamelstaat!$I$93",null,null,null,"*=Kostenverzamelstaat!$I$93"]
[70123282,"*=Kostenverzamelstaat!$J$93",null,null,null,"*=Kostenverzamelstaat!$J$93"]
[70123283,"*=Kostenverzamelstaat!$K$93",null,null,null,"*=Kostenverzamelstaat!$K$93"]
[70123284,"*=Kostenverzamelstaat!$L$93",null,null,null,"*=Kostenverzamelstaat!$L$93"]
[70123285,"*=Kostenverzamelstaat!$M$93",null,null,null,"*=Kostenverzamelstaat!$M$93"]
[70123538,"*=Kostenverzamelstaat!$I$96",null,null,null,"*=Kostenverzamelstaat!$I$96"]
[70123539,"*=Kostenverzamelstaat!$J$96",null,null,null,"*=Kostenverzamelstaat!$J$96"]
[70123540,"*=Kostenverzamelstaat!$K$96",null,null,null,"*=Kostenverzamelstaat!$K$96"]
[70123541,"*=Kostenverzamelstaat!$L$96",null,null,null,"*=Kostenverzamelstaat!$L$96"]
[70123542,"*=Kostenverzamelstaat!$M$96",null,null,null,"*=Kostenverzamelstaat!$M$96"]
[70123737,"*=Kostenverzamelstaat!$I$97",null,null,null,"*=Kostenverzamelstaat!$I$97"]
[70123738,"*=Kostenverzamelstaat!$J$97",null,null,null,"*=Kostenverzamelstaat!$J$97"]
[70123315,"*='Specifieke informatie C'!$J$445",null,null,null,"*='Specifieke informatie C'!$J$445"]
[70123316,"*='Specifieke informatie C'!$K$445",null,null,null,"*='Specifieke informatie C'!$K$445"]
[70123317,"*='Specifieke informatie C'!$L$445",null,null,null,"*='Specifieke informatie C'!$L$445"]
[70123319,"*='Specifieke informatie C'!$K$446",null,null,null,"*='Specifieke informatie C'!$K$446"]
[70123320,"*='Specifieke informatie C'!$L$446",null,null,null,"*='Specifieke informatie C'!$L$446"]
[70123306,"*='Specifieke informatie C'!$J$447",null,null,null,"*='Specifieke informatie C'!$J$447"]
[70123307,"*='Specifieke informatie C'!$K$447",null,null,null,"*='Specifieke informatie C'!$K$447"]
[70123310,"*='Specifieke informatie C'!$K$448",null,null,null,"*='Specifieke informatie C'!$K$448"]
[70123321,"*='Specifieke informatie C'!$K$489",null,null,null,"*='Specifieke informatie C'!$K$489"]
[70123322,"*='Specifieke informatie C'!$L$489",null,null,null,"*='Specifieke informatie C'!$L$489"]
[70123323,"*='Specifieke informatie C'!$K$498",null,null,null,"*='Specifieke informatie C'!$K$498"]
[70123324,"*='Specifieke informatie C'!$L$498",null,null,null,"*='Specifieke informatie C'!$L$498"]
[70123325,"*='Specifieke informatie C'!$K$490",null,null,null,"*='Specifieke informatie C'!$K$490"]
[70123326,"*='Specifieke informatie C'!$L$490",null,null,null,"*='Specifieke informatie C'!$L$490"]
[70123327,"*='Specifieke informatie C'!$K$499",null,null,null,"*='Specifieke informatie C'!$K$499"]
[70123328,"*='Specifieke informatie C'!$L$499",null,null,null,"*='Specifieke informatie C'!$L$499"]
[70123329,"*='Specifieke informatie C'!$K$491",null,null,null,"*='Specifieke informatie C'!$K$491"]
[70123330,"*='Specifieke informatie C'!$L$491",null,null,null,"*='Specifieke informatie C'!$L$491"]
[70123331,"*='Specifieke informatie C'!$K$500",null,null,null,"*='Specifieke informatie C'!$K$500"]
[70123332,"*='Specifieke informatie C'!$L$500",null,null,null,"*='Specifieke informatie C'!$L$500"]
[70123333,"*='Specifieke informatie C'!$K$493",null,null,null,"*='Specifieke informatie C'!$K$493"]
[70123334,"*='Specifieke informatie C'!$L$493",null,null,null,"*='Specifieke informatie C'!$L$493"]
[70123337,"*='Specifieke informatie C'!$K$426",null,null,null,"*='Specifieke informatie C'!$K$426"]
[70123338,"*='Specifieke informatie C'!$L$426",null,null,null,"*='Specifieke informatie C'!$L$426"]
[70123339,"*='Specifieke informatie C'!$K$427",null,null,null,"*='Specifieke informatie C'!$K$427"]
[70123340,"*='Specifieke informatie C'!$L$427",null,null,null,"*='Specifieke informatie C'!$L$427"]
[70123341,"*='Specifieke informatie C'!$K$428",null,null,null,"*='Specifieke informatie C'!$K$428"]
[70123342,"*='Specifieke informatie C'!$L$428",null,null,null,"*='Specifieke informatie C'!$L$428"]
[70123343,"*='Specifieke informatie C'!$K$429",null,null,null,"*='Specifieke informatie C'!$K$429"]
[70123344,"*='Specifieke informatie C'!$L$429",null,null,null,"*='Specifieke informatie C'!$L$429"]
[70123345,"*='Specifieke informatie C'!$K$430",null,null,null,"*='Specifieke informatie C'!$K$430"]
[70123346,"*='Specifieke informatie C'!$L$430",null,null,null,"*='Specifieke informatie C'!$L$430"]
[70123347,"*='Specifieke informatie C'!$K$431",null,null,null,"*='Specifieke informatie C'!$K$431"]
[70123348,"*='Specifieke informatie C'!$L$431",null,null,null,"*='Specifieke informatie C'!$L$431"]
[70123349,"*='Specifieke informatie C'!$K$432",null,null,null,"*='Specifieke informatie C'!$K$432"]
[70123350,"*='Specifieke informatie C'!$L$432",null,null,null,"*='Specifieke informatie C'!$L$432"]
[70123351,"*='Specifieke informatie C'!$K$433",null,null,null,"*='Specifieke informatie C'!$K$433"]
[70123352,"*='Specifieke informatie C'!$L$433",null,null,null,"*='Specifieke informatie C'!$L$433"]
[70123353,"*='Specifieke informatie C'!$K$434",null,null,null,"*='Specifieke informatie C'!$K$434"]
[70123354,"*='Specifieke informatie C'!$L$434",null,null,null,"*='Specifieke informatie C'!$L$434"]
[70123498,"*='Specifieke informatie C'!$H$239",null,null,null,"*='Specifieke informatie C'!$H$239"]
[70123499,"*='Specifieke informatie C'!$I$239",null,null,null,"*='Specifieke informatie C'!$I$239"]
[70123500,"*='Specifieke informatie C'!$J$239",null,null,null,"*='Specifieke informatie C'!$J$239"]
[70123501,"*='Specifieke informatie C'!$K$239",null,null,null,"*='Specifieke informatie C'!$K$239"]
[70123502,"*='Specifieke informatie C'!$L$239",null,null,null,"*='Specifieke informatie C'!$L$239"]
[70123503,"*='Specifieke informatie C'!$H$240",null,null,null,"*='Specifieke informatie C'!$H$240"]
[70123504,"*='Specifieke informatie C'!$I$240",null,null,null,"*='Specifieke informatie C'!$I$240"]
[70123505,"*='Specifieke informatie C'!$J$240",null,null,null,"*='Specifieke informatie C'!$J$240"]
[70123506,"*='Specifieke informatie C'!$K$240",null,null,null,"*='Specifieke informatie C'!$K$240"]
[70123507,"*='Specifieke informatie C'!$L$240",null,null,null,"*='Specifieke informatie C'!$L$240"]
[70123508,"*='Specifieke informatie C'!$H$241",null,null,null,"*='Specifieke informatie C'!$H$241"]
[70123509,"*='Specifieke informatie C'!$I$241",null,null,null,"*='Specifieke informatie C'!$I$241"]
[70123510,"*='Specifieke informatie C'!$J$241",null,null,null,"*='Specifieke informatie C'!$J$241"]
[70123511,"*='Specifieke informatie C'!$K$241",null,null,null,"*='Specifieke informatie C'!$K$241"]
[70123512,"*='Specifieke informatie C'!$L$241",null,null,null,"*='Specifieke informatie C'!$L$241"]
[70123513,"*='Specifieke informatie C'!$H$242",null,null,null,"*='Specifieke informatie C'!$H$242"]
[70123514,"*='Specifieke informatie C'!$I$242",null,null,null,"*='Specifieke informatie C'!$I$242"]
[70123515,"*='Specifieke informatie C'!$J$242",null,null,null,"*='Specifieke informatie C'!$J$242"]
[70123516,"*='Specifieke informatie C'!$K$242",null,null,null,"*='Specifieke informatie C'!$K$242"]
[70123517,"*='Specifieke informatie C'!$L$242",null,null,null,"*='Specifieke informatie C'!$L$242"]
[70123518,"*='Specifieke informatie C'!$H$243",null,null,null,"*='Specifieke informatie C'!$H$243"]
[70123519,"*='Specifieke informatie C'!$I$243",null,null,null,"*='Specifieke informatie C'!$I$243"]
[70123520,"*='Specifieke informatie C'!$J$243",null,null,null,"*='Specifieke informatie C'!$J$243"]
[70123521,"*='Specifieke informatie C'!$K$243",null,null,null,"*='Specifieke informatie C'!$K$243"]
[70123522,"*='Specifieke informatie C'!$L$243",null,null,null,"*='Specifieke informatie C'!$L$243"]
[70123523,"*='Specifieke informatie C'!$H$244",null,null,null,"*='Specifieke informatie C'!$H$244"]
[70123524,"*='Specifieke informatie C'!$I$244",null,null,null,"*='Specifieke informatie C'!$I$244"]
[70123525,"*='Specifieke informatie C'!$J$244",null,null,null,"*='Specifieke informatie C'!$J$244"]
[70123526,"*='Specifieke informatie C'!$K$244",null,null,null,"*='Specifieke informatie C'!$K$244"]
[70123527,"*='Specifieke informatie C'!$L$244",null,null,null,"*='Specifieke informatie C'!$L$244"]
[70123528,"*='Specifieke informatie C'!$H$245",null,null,null,"*='Specifieke informatie C'!$H$245"]
[70123529,"*='Specifieke informatie C'!$I$245",null,null,null,"*='Specifieke informatie C'!$I$245"]
[70123530,"*='Specifieke informatie C'!$J$245",null,null,null,"*='Specifieke informatie C'!$J$245"]
[70123531,"*='Specifieke informatie C'!$K$245",null,null,null,"*='Specifieke informatie C'!$K$245"]
[70123532,"*='Specifieke informatie C'!$L$245",null,null,null,"*='Specifieke informatie C'!$L$245"]
[70123533,"*='Specifieke informatie C'!$H$246",null,null,null,"*='Specifieke informatie C'!$H$246"]
[70123534,"*='Specifieke informatie C'!$I$246",null,null,null,"*='Specifieke informatie C'!$I$246"]
[70123535,"*='Specifieke informatie C'!$J$246",null,null,null,"*='Specifieke informatie C'!$J$246"]
[70123536,"*='Specifieke informatie C'!$K$246",null,null,null,"*='Specifieke informatie C'!$K$246"]
[70123537,"*='Specifieke informatie C'!$L$246",null,null,null,"*='Specifieke informatie C'!$L$246"]
[70123543,"*='Specifieke informatie A'!$K$28",null,null,null,"*='Specifieke informatie A'!$K$28"]
[70123544,"*='Specifieke informatie A'!$L$28",null,null,null,"*='Specifieke informatie A'!$L$28"]
[70123620,"*='Specifieke informatie C'!$K$365",null,null,null,"*='Specifieke informatie C'!$K$365"]
[70123621,"*='Specifieke informatie C'!$L$365",null,null,null,"*='Specifieke informatie C'!$L$365"]
[70123490,"*='Specifieke informatie C'!$K$357",null,null,null,"*='Specifieke informatie C'!$K$357"]
[70123491,"*='Specifieke informatie C'!$L$357",null,null,null,"*='Specifieke informatie C'!$L$357"]
[70123025,"*='Specifieke informatie C'!$J$228",null,null,null,"*='Specifieke informatie C'!$J$228"]
[70123026,"*='Specifieke informatie C'!$K$228",null,null,null,"*='Specifieke informatie C'!$K$228"]
[70123027,"*='Specifieke informatie C'!$J$229",null,null,null,"*='Specifieke informatie C'!$J$229"]
[70123028,"*='Specifieke informatie C'!$K$229",null,null,null,"*='Specifieke informatie C'!$K$229"]
[70123029,"*='Specifieke informatie C'!$J$230",null,null,null,"*='Specifieke informatie C'!$J$230"]
[70123030,"*='Specifieke informatie C'!$K$230",null,null,null,"*='Specifieke informatie C'!$K$230"]
[70123031,"*='Specifieke informatie C'!$J$231",null,null,null,"*='Specifieke informatie C'!$J$231"]
[70123032,"*='Specifieke informatie C'!$K$231",null,null,null,"*='Specifieke informatie C'!$K$231"]
[70123033,"*='Specifieke informatie C'!$J$232",null,null,null,"*='Specifieke informatie C'!$J$232"]
[70123034,"*='Specifieke informatie C'!$K$232",null,null,null,"*='Specifieke informatie C'!$K$232"]
[70123035,"*='Specifieke informatie C'!$J$233",null,null,null,"*='Specifieke informatie C'!$J$233"]
[70123036,"*='Specifieke informatie C'!$K$233",null,null,null,"*='Specifieke informatie C'!$K$233"]
[70123023,"*='Specifieke informatie C'!$J$234",null,null,null,"*='Specifieke informatie C'!$J$234"]
[70123024,"*='Specifieke informatie C'!$K$234",null,null,null,"*='Specifieke informatie C'!$K$234"]
[70123239,"*='Specifieke informatie A'!$K$67",null,null,null,"*='Specifieke informatie A'!$K$67"]
[70123240,"*='Specifieke informatie A'!$L$67",null,null,null,"*='Specifieke informatie A'!$L$67"]
[70123241,"*='Specifieke informatie A'!$K$68",null,null,null,"*='Specifieke informatie A'!$K$68"]
[70123242,"*='Specifieke informatie A'!$L$68",null,null,null,"*='Specifieke informatie A'!$L$68"]
[70123243,"*='Specifieke informatie A'!$K$69",null,null,null,"*='Specifieke informatie A'!$K$69"]
[70123244,"*='Specifieke informatie A'!$L$69",null,null,null,"*='Specifieke informatie A'!$L$69"]
[70123245,"*='Specifieke informatie A'!$K$70",null,null,null,"*='Specifieke informatie A'!$K$70"]
[70123246,"*='Specifieke informatie A'!$L$70",null,null,null,"*='Specifieke informatie A'!$L$70"]
[70123247,"*='Specifieke informatie A'!$K$71",null,null,null,"*='Specifieke informatie A'!$K$71"]
[70123248,"*='Specifieke informatie A'!$L$71",null,null,null,"*='Specifieke informatie A'!$L$71"]
[70123753,"*='Specifieke informatie A'!$K$72",null,null,null,"*='Specifieke informatie A'!$K$72"]
[70123231,"*='Specifieke informatie C'!$K$199",null,null,null,"*='Specifieke informatie C'!$K$199"]
[70123232,"*='Specifieke informatie C'!$L$199",null,null,null,"*='Specifieke informatie C'!$L$199"]
[70123037,"*='Specifieke informatie C'!$K$294",null,null,null,"*='Specifieke informatie C'!$K$294"]
[70123038,"*='Specifieke informatie C'!$L$294",null,null,null,"*='Specifieke informatie C'!$L$294"]
[70123039,"*='Specifieke informatie C'!$K$295",null,null,null,"*='Specifieke informatie C'!$K$295"]
[70123040,"*='Specifieke informatie C'!$L$295",null,null,null,"*='Specifieke informatie C'!$L$295"]
[70123041,"*='Specifieke informatie C'!$K$296",null,null,null,"*='Specifieke informatie C'!$K$296"]
[70123042,"*='Specifieke informatie C'!$L$296",null,null,null,"*='Specifieke informatie C'!$L$296"]
[70123187,"*='Specifieke informatie C'!$J$375",null,null,null,"*='Specifieke informatie C'!$J$375"]
[70123188,"*='Specifieke informatie C'!$K$375",null,null,null,"*='Specifieke informatie C'!$K$375"]
[70123189,"*='Specifieke informatie C'!$L$375",null,null,null,"*='Specifieke informatie C'!$L$375"]
[70123190,"*='Specifieke informatie C'!$J$376",null,null,null,"*='Specifieke informatie C'!$J$376"]
[70123191,"*='Specifieke informatie C'!$K$376",null,null,null,"*='Specifieke informatie C'!$K$376"]
[70123192,"*='Specifieke informatie C'!$L$376",null,null,null,"*='Specifieke informatie C'!$L$376"]
[70123195,"*='Specifieke informatie C'!$K$381",null,null,null,"*='Specifieke informatie C'!$K$381"]
[70123196,"*='Specifieke informatie C'!$L$381",null,null,null,"*='Specifieke informatie C'!$L$381"]
[70123197,"*='Specifieke informatie C'!$K$382",null,null,null,"*='Specifieke informatie C'!$K$382"]
[70123198,"*='Specifieke informatie C'!$L$382",null,null,null,"*='Specifieke informatie C'!$L$382"]
[70123199,"*='Specifieke informatie C'!$K$383",null,null,null,"*='Specifieke informatie C'!$K$383"]
[70123200,"*='Specifieke informatie C'!$L$383",null,null,null,"*='Specifieke informatie C'!$L$383"]
[70123201,"*='Specifieke informatie C'!$K$384",null,null,null,"*='Specifieke informatie C'!$K$384"]
[70123202,"*='Specifieke informatie C'!$L$384",null,null,null,"*='Specifieke informatie C'!$L$384"]
[70123193,"*='Specifieke informatie C'!$K$385",null,null,null,"*='Specifieke informatie C'!$K$385"]
[70123194,"*='Specifieke informatie C'!$L$385",null,null,null,"*='Specifieke informatie C'!$L$385"]
[70123207,"*='Specifieke informatie C'!$K$399",null,null,null,"*='Specifieke informatie C'!$K$399"]
[70123208,"*='Specifieke informatie C'!$L$399",null,null,null,"*='Specifieke informatie C'!$L$399"]
[70123209,"*='Specifieke informatie C'!$K$400",null,null,null,"*='Specifieke informatie C'!$K$400"]
[70123210,"*='Specifieke informatie C'!$L$400",null,null,null,"*='Specifieke informatie C'!$L$400"]
[70123211,"*='Specifieke informatie C'!$K$401",null,null,null,"*='Specifieke informatie C'!$K$401"]
[70123212,"*='Specifieke informatie C'!$L$401",null,null,null,"*='Specifieke informatie C'!$L$401"]
[70123213,"*='Specifieke informatie C'!$K$402",null,null,null,"*='Specifieke informatie C'!$K$402"]
[70123214,"*='Specifieke informatie C'!$L$402",null,null,null,"*='Specifieke informatie C'!$L$402"]
[70123205,"*='Specifieke informatie C'!$K$403",null,null,null,"*='Specifieke informatie C'!$K$403"]
[70123206,"*='Specifieke informatie C'!$L$403",null,null,null,"*='Specifieke informatie C'!$L$403"]
[70123215,"*='Specifieke informatie C'!$K$408",null,null,null,"*='Specifieke informatie C'!$K$408"]
[70123216,"*='Specifieke informatie C'!$L$408",null,null,null,"*='Specifieke informatie C'!$L$408"]
[70123223,"*='Specifieke informatie C'!$K$453",null,null,null,"*='Specifieke informatie C'!$K$453"]
[70123224,"*='Specifieke informatie C'!$L$453",null,null,null,"*='Specifieke informatie C'!$L$453"]
[70123225,"*='Specifieke informatie C'!$K$454",null,null,null,"*='Specifieke informatie C'!$K$454"]
[70123226,"*='Specifieke informatie C'!$L$454",null,null,null,"*='Specifieke informatie C'!$L$454"]
[70123227,"*='Specifieke informatie C'!$K$455",null,null,null,"*='Specifieke informatie C'!$K$455"]
[70123228,"*='Specifieke informatie C'!$L$455",null,null,null,"*='Specifieke informatie C'!$L$455"]
[70123229,"*='Specifieke informatie C'!$K$456",null,null,null,"*='Specifieke informatie C'!$K$456"]
[70123230,"*='Specifieke informatie C'!$L$456",null,null,null,"*='Specifieke informatie C'!$L$456"]
[70123217,"*='Specifieke informatie C'!$K$457",null,null,null,"*='Specifieke informatie C'!$K$457"]
[70123218,"*='Specifieke informatie C'!$L$457",null,null,null,"*='Specifieke informatie C'!$L$457"]
[70123219,"*='Specifieke informatie C'!$K$458",null,null,null,"*='Specifieke informatie C'!$K$458"]
[70123220,"*='Specifieke informatie C'!$L$458",null,null,null,"*='Specifieke informatie C'!$L$458"]
[70123221,"*='Specifieke informatie C'!$K$459",null,null,null,"*='Specifieke informatie C'!$K$459"]
[70123222,"*='Specifieke informatie C'!$L$459",null,null,null,"*='Specifieke informatie C'!$L$459"]
[70123090,"*=Kostenverzamelstaat!$I$28",null,null,null,"*=Kostenverzamelstaat!$I$28"]
[70123091,"*=Kostenverzamelstaat!$J$28",null,null,null,"*=Kostenverzamelstaat!$J$28"]
[70123092,"*=Kostenverzamelstaat!$K$28",null,null,null,"*=Kostenverzamelstaat!$K$28"]
[70123093,"*=Kostenverzamelstaat!$L$28",null,null,null,"*=Kostenverzamelstaat!$L$28"]
[70123094,"*=Kostenverzamelstaat!$M$28",null,null,null,"*=Kostenverzamelstaat!$M$28"]
[70123096,"*='Specifieke informatie C'!$L$530",null,null,null,"*='Specifieke informatie C'!$L$530"]
[70123097,"*='Specifieke informatie C'!$L$531",null,null,null,"*='Specifieke informatie C'!$L$531"]
[70123098,"*='Specifieke informatie C'!$L$532",null,null,null,"*='Specifieke informatie C'!$L$532"]
[70123099,"*='Specifieke informatie C'!$K$32",null,null,null,"*='Specifieke informatie C'!$K$32"]
[70123100,"*='Specifieke informatie C'!$L$32",null,null,null,"*='Specifieke informatie C'!$L$32"]
[70123101,"*='Specifieke informatie C'!$K$33",null,null,null,"*='Specifieke informatie C'!$K$33"]
[70123102,"*='Specifieke informatie C'!$L$33",null,null,null,"*='Specifieke informatie C'!$L$33"]
[70123103,"*='Specifieke informatie C'!$K$34",null,null,null,"*='Specifieke informatie C'!$K$34"]
[70123104,"*='Specifieke informatie C'!$L$34",null,null,null,"*='Specifieke informatie C'!$L$34"]
[70123105,"*='Specifieke informatie C'!$K$35",null,null,null,"*='Specifieke informatie C'!$K$35"]
[70123106,"*='Specifieke informatie C'!$L$35",null,null,null,"*='Specifieke informatie C'!$L$35"]
[70123107,"*='Specifieke informatie C'!$K$40",null,null,null,"*='Specifieke informatie C'!$K$40"]
[70123108,"*='Specifieke informatie C'!$L$40",null,null,null,"*='Specifieke informatie C'!$L$40"]
[70123109,"*='Specifieke informatie C'!$K$41",null,null,null,"*='Specifieke informatie C'!$K$41"]
[70123110,"*='Specifieke informatie C'!$L$41",null,null,null,"*='Specifieke informatie C'!$L$41"]
[70123112,"*='Specifieke informatie C'!$L$42",null,null,null,"*='Specifieke informatie C'!$L$42"]
[70123755,"*='Specifieke informatie C'!$K$43",null,null,null,"*='Specifieke informatie C'!$K$43"]
[70123757,"*='Specifieke informatie C'!$K$44",null,null,null,"*='Specifieke informatie C'!$K$44"]
[70123113,"*='Specifieke informatie C'!$K$57",null,null,null,"*='Specifieke informatie C'!$K$57"]
[70123114,"*='Specifieke informatie C'!$L$57",null,null,null,"*='Specifieke informatie C'!$L$57"]
[70123115,"*='Specifieke informatie C'!$K$58",null,null,null,"*='Specifieke informatie C'!$K$58"]
[70123116,"*='Specifieke informatie C'!$L$58",null,null,null,"*='Specifieke informatie C'!$L$58"]
[70123117,"*='Specifieke informatie C'!$K$63",null,null,null,"*='Specifieke informatie C'!$K$63"]
[70123118,"*='Specifieke informatie C'!$L$63",null,null,null,"*='Specifieke informatie C'!$L$63"]
[70123119,"*='Specifieke informatie C'!$K$64",null,null,null,"*='Specifieke informatie C'!$K$64"]
[70123120,"*='Specifieke informatie C'!$L$64",null,null,null,"*='Specifieke informatie C'!$L$64"]
[70123121,"*='Specifieke informatie C'!$K$100",null,null,null,"*='Specifieke informatie C'!$K$100"]
[70123122,"*='Specifieke informatie C'!$L$100",null,null,null,"*='Specifieke informatie C'!$L$100"]
[70123123,"*='Specifieke informatie C'!$K$101",null,null,null,"*='Specifieke informatie C'!$K$101"]
[70123124,"*='Specifieke informatie C'!$L$101",null,null,null,"*='Specifieke informatie C'!$L$101"]
[70123125,"*='Specifieke informatie C'!$K$102",null,null,null,"*='Specifieke informatie C'!$K$102"]
[70123126,"*='Specifieke informatie C'!$L$102",null,null,null,"*='Specifieke informatie C'!$L$102"]
[70123127,"*='Specifieke informatie C'!$K$103",null,null,null,"*='Specifieke informatie C'!$K$103"]
[70123128,"*='Specifieke informatie C'!$L$103",null,null,null,"*='Specifieke informatie C'!$L$103"]
[70123129,"*='Specifieke informatie C'!$K$104",null,null,null,"*='Specifieke informatie C'!$K$104"]
[70123130,"*='Specifieke informatie C'!$L$104",null,null,null,"*='Specifieke informatie C'!$L$104"]
[70123133,"*='Specifieke informatie C'!$K$105",null,null,null,"*='Specifieke informatie C'!$K$105"]
[70123134,"*='Specifieke informatie C'!$L$105",null,null,null,"*='Specifieke informatie C'!$L$105"]
[70123137,"*='Specifieke informatie C'!$K$110",null,null,null,"*='Specifieke informatie C'!$K$110"]
[70123138,"*='Specifieke informatie C'!$L$110",null,null,null,"*='Specifieke informatie C'!$L$110"]
[70123139,"*='Specifieke informatie C'!$K$111",null,null,null,"*='Specifieke informatie C'!$K$111"]
[70123140,"*='Specifieke informatie C'!$L$111",null,null,null,"*='Specifieke informatie C'!$L$111"]
[70123135,"*='Specifieke informatie C'!$K$112",null,null,null,"*='Specifieke informatie C'!$K$112"]
[70123136,"*='Specifieke informatie C'!$L$112",null,null,null,"*='Specifieke informatie C'!$L$112"]
[70123141,"*='Specifieke informatie C'!$H$273",null,null,null,"*='Specifieke informatie C'!$H$273"]
[70123142,"*='Specifieke informatie C'!$I$273",null,null,null,"*='Specifieke informatie C'!$I$273"]
[70123143,"*='Specifieke informatie C'!$J$273",null,null,null,"*='Specifieke informatie C'!$J$273"]
[70123144,"*='Specifieke informatie C'!$K$273",null,null,null,"*='Specifieke informatie C'!$K$273"]
[70123145,"*='Specifieke informatie C'!$L$273",null,null,null,"*='Specifieke informatie C'!$L$273"]
[70123146,"*='Specifieke informatie C'!$H$274",null,null,null,"*='Specifieke informatie C'!$H$274"]
[70123147,"*='Specifieke informatie C'!$I$274",null,null,null,"*='Specifieke informatie C'!$I$274"]
[70123148,"*='Specifieke informatie C'!$J$274",null,null,null,"*='Specifieke informatie C'!$J$274"]
[70123149,"*='Specifieke informatie C'!$K$274",null,null,null,"*='Specifieke informatie C'!$K$274"]
[70123150,"*='Specifieke informatie C'!$L$274",null,null,null,"*='Specifieke informatie C'!$L$274"]
[70123151,"*='Specifieke informatie C'!$H$275",null,null,null,"*='Specifieke informatie C'!$H$275"]
[70123152,"*='Specifieke informatie C'!$I$275",null,null,null,"*='Specifieke informatie C'!$I$275"]
[70123153,"*='Specifieke informatie C'!$J$275",null,null,null,"*='Specifieke informatie C'!$J$275"]
[70123154,"*='Specifieke informatie C'!$K$275",null,null,null,"*='Specifieke informatie C'!$K$275"]
[70123155,"*='Specifieke informatie C'!$L$275",null,null,null,"*='Specifieke informatie C'!$L$275"]
[70123156,"*='Specifieke informatie C'!$H$276",null,null,null,"*='Specifieke informatie C'!$H$276"]
[70123157,"*='Specifieke informatie C'!$I$276",null,null,null,"*='Specifieke informatie C'!$I$276"]
[70123158,"*='Specifieke informatie C'!$J$276",null,null,null,"*='Specifieke informatie C'!$J$276"]
[70123159,"*='Specifieke informatie C'!$K$276",null,null,null,"*='Specifieke informatie C'!$K$276"]
[70123160,"*='Specifieke informatie C'!$L$276",null,null,null,"*='Specifieke informatie C'!$L$276"]
[70123161,"*='Specifieke informatie C'!$H$279",null,null,null,"*='Specifieke informatie C'!$H$279"]
[70123162,"*='Specifieke informatie C'!$I$279",null,null,null,"*='Specifieke informatie C'!$I$279"]
[70123163,"*='Specifieke informatie C'!$J$279",null,null,null,"*='Specifieke informatie C'!$J$279"]
[70123164,"*='Specifieke informatie C'!$K$279",null,null,null,"*='Specifieke informatie C'!$K$279"]
[70123165,"*='Specifieke informatie C'!$L$279",null,null,null,"*='Specifieke informatie C'!$L$279"]
[70123166,"*='Specifieke informatie C'!$H$280",null,null,null,"*='Specifieke informatie C'!$H$280"]
[70123167,"*='Specifieke informatie C'!$I$280",null,null,null,"*='Specifieke informatie C'!$I$280"]
[70123168,"*='Specifieke informatie C'!$J$280",null,null,null,"*='Specifieke informatie C'!$J$280"]
[70123169,"*='Specifieke informatie C'!$K$280",null,null,null,"*='Specifieke informatie C'!$K$280"]
[70123170,"*='Specifieke informatie C'!$L$280",null,null,null,"*='Specifieke informatie C'!$L$280"]
[70123171,"*='Specifieke informatie C'!$H$281",null,null,null,"*='Specifieke informatie C'!$H$281"]
[70123172,"*='Specifieke informatie C'!$I$281",null,null,null,"*='Specifieke informatie C'!$I$281"]
[70123173,"*='Specifieke informatie C'!$J$281",null,null,null,"*='Specifieke informatie C'!$J$281"]
[70123174,"*='Specifieke informatie C'!$K$281",null,null,null,"*='Specifieke informatie C'!$K$281"]
[70123175,"*='Specifieke informatie C'!$L$281",null,null,null,"*='Specifieke informatie C'!$L$281"]
[70123176,"*='Specifieke informatie C'!$H$282",null,null,null,"*='Specifieke informatie C'!$H$282"]
[70123177,"*='Specifieke informatie C'!$I$282",null,null,null,"*='Specifieke informatie C'!$I$282"]
[70123178,"*='Specifieke informatie C'!$J$282",null,null,null,"*='Specifieke informatie C'!$J$282"]
[70123179,"*='Specifieke informatie C'!$K$282",null,null,null,"*='Specifieke informatie C'!$K$282"]
[70123180,"*='Specifieke informatie C'!$L$282",null,null,null,"*='Specifieke informatie C'!$L$282"]
[70123181,"*='Specifieke informatie C'!$K$464",null,null,null,"*='Specifieke informatie C'!$K$464"]
[70123182,"*='Specifieke informatie C'!$L$464",null,null,null,"*='Specifieke informatie C'!$L$464"]
[70123183,"*='Specifieke informatie C'!$K$465",null,null,null,"*='Specifieke informatie C'!$K$465"]
[70123184,"*='Specifieke informatie C'!$L$465",null,null,null,"*='Specifieke informatie C'!$L$465"]
[70123185,"*='Specifieke informatie C'!$K$466",null,null,null,"*='Specifieke informatie C'!$K$466"]
[70123186,"*='Specifieke informatie C'!$L$466",null,null,null,"*='Specifieke informatie C'!$L$466"]
[70123043,"*='Specifieke informatie C'!$K$361",null,null,null,"*='Specifieke informatie C'!$K$361"]
[70123044,"*='Specifieke informatie C'!$L$361",null,null,null,"*='Specifieke informatie C'!$L$361"]
[70123684,"*=Contractinformatie!$K$14",null,null,null,"*=Contractinformatie!$K$14"]
[70123685,"*=Contractinformatie!$L$14",null,null,null,"*=Contractinformatie!$L$14"]
[70123686,"*=Contractinformatie!$K$15",null,null,null,"*=Contractinformatie!$K$15"]
[70123687,"*=Contractinformatie!$L$15",null,null,null,"*=Contractinformatie!$L$15"]
[70123688,"*=Contractinformatie!$K$18",null,null,null,"*=Contractinformatie!$K$18"]
[70123689,"*=Contractinformatie!$L$18",null,null,null,"*=Contractinformatie!$L$18"]
[70123690,"*=Contractinformatie!$K$19",null,null,null,"*=Contractinformatie!$K$19"]
[70123691,"*=Contractinformatie!$L$19",null,null,null,"*=Contractinformatie!$L$19"]
[70123692,"*=Contractinformatie!$K$26",null,null,null,"*=Contractinformatie!$K$26"]
[70123693,"*=Contractinformatie!$L$26",null,null,null,"*=Contractinformatie!$L$26"]
[70123694,"*=Contractinformatie!$K$27",null,null,null,"*=Contractinformatie!$K$27"]
[70123695,"*=Contractinformatie!$L$27",null,null,null,"*=Contractinformatie!$L$27"]
[70123698,"*=Contractinformatie!$K$33",null,null,null,"*=Contractinformatie!$K$33"]
[70123699,"*=Contractinformatie!$L$33",null,null,null,"*=Contractinformatie!$L$33"]
[70123700,"*=Contractinformatie!$K$34",null,null,null,"*=Contractinformatie!$K$34"]
[70123701,"*=Contractinformatie!$L$34",null,null,null,"*=Contractinformatie!$L$34"]
[70123702,"*=Contractinformatie!$K$35",null,null,null,"*=Contractinformatie!$K$35"]
[70123703,"*=Contractinformatie!$L$35",null,null,null,"*=Contractinformatie!$L$35"]
[70123704,"*=Contractinformatie!$K$36",null,null,null,"*=Contractinformatie!$K$36"]
[70123705,"*=Contractinformatie!$L$36",null,null,null,"*=Contractinformatie!$L$36"]
[70123696,"*=Contractinformatie!$K$38",null,null,null,"*=Contractinformatie!$K$38"]
[70123697,"*=Contractinformatie!$L$38",null,null,null,"*=Contractinformatie!$L$38"]
[70123706,"*=Contractinformatie!$K$56",null,null,null,"*=Contractinformatie!$K$56"]
[70123707,"*=Contractinformatie!$L$56",null,null,null,"*=Contractinformatie!$L$56"]
[70123708,"*=Contractinformatie!$K$57",null,null,null,"*=Contractinformatie!$K$57"]
[70123709,"*=Contractinformatie!$L$57",null,null,null,"*=Contractinformatie!$L$57"]
[70123710,"*=Contractinformatie!$K$58",null,null,null,"*=Contractinformatie!$K$58"]
[70123711,"*=Contractinformatie!$L$58",null,null,null,"*=Contractinformatie!$L$58"]
[70123712,"*=Contractinformatie!$K$59",null,null,null,"*=Contractinformatie!$K$59"]
[70123713,"*=Contractinformatie!$L$59",null,null,null,"*=Contractinformatie!$L$59"]
[70123714,"*=Contractinformatie!$K$61",null,null,null,"*=Contractinformatie!$K$61"]
[70123715,"*=Contractinformatie!$L$61",null,null,null,"*=Contractinformatie!$L$61"]
[70123682,"*='Specifieke informatie A'!$K$24",null,null,null,"*='Specifieke informatie A'!$K$24"]
[70123683,"*='Specifieke informatie A'!$L$24",null,null,null,"*='Specifieke informatie A'!$L$24"]
[70123045,"*='Specifieke informatie A'!$L$102",null,null,null,"*='Specifieke informatie A'!$L$102"]
[70123046,"*='Specifieke informatie A'!$L$103",null,null,null,"*='Specifieke informatie A'!$L$103"]
[70123047,"*='Specifieke informatie A'!$L$104",null,null,null,"*='Specifieke informatie A'!$L$104"]
[70123048,"*='Specifieke informatie A'!$L$105",null,null,null,"*='Specifieke informatie A'!$L$105"]
[70123049,"*='Specifieke informatie A'!$L$106",null,null,null,"*='Specifieke informatie A'!$L$106"]
[70123050,"*='Specifieke informatie A'!$L$107",null,null,null,"*='Specifieke informatie A'!$L$107"]
[70123051,"*='Specifieke informatie A'!$L$108",null,null,null,"*='Specifieke informatie A'!$L$108"]
[70123052,"*='Specifieke informatie A'!$L$109",null,null,null,"*='Specifieke informatie A'!$L$109"]
[70123053,"*='Specifieke informatie A'!$L$110",null,null,null,"*='Specifieke informatie A'!$L$110"]
[70123054,"*='Specifieke informatie A'!$L$111",null,null,null,"*='Specifieke informatie A'!$L$111"]
[70123055,"*='Specifieke informatie A'!$L$112",null,null,null,"*='Specifieke informatie A'!$L$112"]
[70123056,"*='Specifieke informatie A'!$L$113",null,null,null,"*='Specifieke informatie A'!$L$113"]
[70123057,"*='Specifieke informatie A'!$L$114",null,null,null,"*='Specifieke informatie A'!$L$114"]
[70123058,"*='Specifieke informatie A'!$L$115",null,null,null,"*='Specifieke informatie A'!$L$115"]
[70123059,"*='Specifieke informatie A'!$L$116",null,null,null,"*='Specifieke informatie A'!$L$116"]
[70123060,"*='Specifieke informatie A'!$L$117",null,null,null,"*='Specifieke informatie A'!$L$117"]
[70123061,"*='Specifieke informatie A'!$L$118",null,null,null,"*='Specifieke informatie A'!$L$118"]
[70123062,"*='Specifieke informatie A'!$L$119",null,null,null,"*='Specifieke informatie A'!$L$119"]
[70123063,"*='Specifieke informatie A'!$L$120",null,null,null,"*='Specifieke informatie A'!$L$120"]
[70123064,"*='Specifieke informatie A'!$L$121",null,null,null,"*='Specifieke informatie A'!$L$121"]
[70123065,"*='Specifieke informatie A'!$L$122",null,null,null,"*='Specifieke informatie A'!$L$122"]
[70123066,"*='Specifieke informatie A'!$L$123",null,null,null,"*='Specifieke informatie A'!$L$123"]
[70123067,"*='Specifieke informatie A'!$L$124",null,null,null,"*='Specifieke informatie A'!$L$124"]
[70123068,"*='Specifieke informatie A'!$L$125",null,null,null,"*='Specifieke informatie A'!$L$125"]
[70123069,"*='Specifieke informatie A'!$L$126",null,null,null,"*='Specifieke informatie A'!$L$126"]
[70123084,"*=Contractinformatie!$K$67",null,null,null,"*=Contractinformatie!$K$67"]
[70123085,"*=Contractinformatie!$L$67",null,null,null,"*=Contractinformatie!$L$67"]
[70123088,"*=Contractinformatie!$K$68",null,null,null,"*=Contractinformatie!$K$68"]
[70123089,"*=Contractinformatie!$L$68",null,null,null,"*=Contractinformatie!$L$68"]
[70123747,"*='Specifieke informatie C'!$J$369",null,null,null,"*='Specifieke informatie C'!$J$369"]
[70123748,"*='Specifieke informatie C'!$K$369",null,null,null,"*='Specifieke informatie C'!$K$369"]
[70123749,"*='Specifieke informatie C'!$L$369",null,null,null,"*='Specifieke informatie C'!$L$369"]
[70123750,"*='Specifieke informatie C'!$J$370",null,null,null,"*='Specifieke informatie C'!$J$370"]
[70123751,"*='Specifieke informatie C'!$K$370",null,null,null,"*='Specifieke informatie C'!$K$370"]
[70123752,"*='Specifieke informatie C'!$L$370",null,null,null,"*='Specifieke informatie C'!$L$370"]
[70123759,"*=Contractinformatie!$K$75",null,null,null,"*=Contractinformatie!$K$75"]
[70123761,"*=Contractinformatie!$K$76",null,null,null,"*=Contractinformatie!$K$76"]
[70123763,"*=Contractinformatie!$K$79",null,null,null,"*=Contractinformatie!$K$79"]
[70123765,"*=Contractinformatie!$K$80",null,null,null,"*=Contractinformatie!$K$80"]

{"sheet":"Parameters","index":10,"n_rows":40,"n_cols":3,"rows_kept":40,"cut":false,"hidden":true,"merged":[]}
[]
["Kwartaal:"]
["Jaar:",2018]
["Wet:","ZVW"]
["Document:",{"$f":"CONCATENATE(\"JS\",jaar_id,wet_id,\".\",kwartaal_id,revisie_id)","v":"JS2018ZVW.A"}]
["Revisie:","A"]
["Revisiedatum:","2018-12-16"]
["Versie:",{"$f":"CONCATENATE(document_id,)","v":"JS2018ZVW.A"}]
[]
[]
[]
["NUMMER_UO","NAAM_UO","FORMAT_UO1"]
["0000","KIES UW UZOVI-NUMMER",{"$f":"CONCATENATE(A13,\" \",B13)","v":"0000 KIES UW UZOVI-NUMMER"}]
["0101","UNIVÉ ZORG","0101 UNIVÉ ZORG"]
["0104","NATIONALE-NEDERLANDEN ZORG","0104 NATIONALE-NEDERLANDEN ZORG"]
["0201","OHRA ZIEKTEKOSTENVERZEKERINGEN","0201 OHRA ZIEKTEKOSTENVERZEKERINGEN"]
["0403","ASR","0403 ASR"]
["0420","CARES ","0420 CARES "]
["0699","IZA","0699 IZA"]
["0736","UMC","0736 UMC"]
["3311","ZILVEREN KRUIS","3311 ZILVEREN KRUIS"]
["3313","INTERPOLIS","3313 INTERPOLIS"]
["3314","OZF","3314 OZF"]
["3329","AVERO",{"$f":"CONCATENATE(A24,\" \",B24)","v":"3329 AVERO"}]
["3332","MENZIS","3332 MENZIS"]
["3333","ANDERZORG","3333 ANDERZORG"]
["3337","AGIS",{"$f":"CONCATENATE(A27,\" \",B27)","v":"3337 AGIS"}]
["3343","ONVZ",{"$f":"CONCATENATE(A28,\" \",B28)","v":"3343 ONVZ"}]
["3351","FBTO",{"$f":"CONCATENATE(A29,\" \",B29)","v":"3351 FBTO"}]
["3352","IPTIQ",{"$f":"CONCATENATE(A30,\" \",B30)","v":"3352 IPTIQ"}]
["7029","DSW","7029 DSW"]
["7032","ENO","7032 ENO"]
["7037","STAD HOLLAND","7037 STAD HOLLAND"]
["7053","OHRA ZORGVERZEKERINGEN","7053 OHRA ZORGVERZEKERINGEN"]
["7054","AZIVO","7054 AZIVO"]
["7084","DE FRIESLAND","7084 DE FRIESLAND"]
["7085","ZORG EN ZEKERHEID","7085 ZORG EN ZEKERHEID"]
["7095","VGZ","7095 VGZ"]
["7119","CZ","7119 CZ"]
["9015","VGZ VOOR DE ZORG","9015 VGZ VOOR DE ZORG"]